Body Name,Mapped No.,Cleansed Supplier Name,Family Category,Sub Category,Ap Net Value,Ap Tax Valve,Ap Gross Value,Paid Date,Cleansed Portfolio
Nottinghamshire County Council,01-00013,REGIS TRAINING COMPANY LIMITED,People,Vocational Training,0,-0.02,-0.02,08-Apr-11,TBC
Nottinghamshire County Council,01-00022,OAKFIELD RECYCLING LIMITED,Soft Facilities Management,Scrap and waste materials,0,0.01,0.01,04-Apr-11,TBC
Nottinghamshire County Council,01-00025,SPRAY TANKER SERVICES LIMITED,External Services (Highways and Culture),Highways and Works,0,-0.01,-0.01,05-Apr-11,TBC
Nottinghamshire County Council,01-00079,XMA LIMITED,ICT,Computer Equipment and Accessories,0,0.01,0.01,01-Apr-11,TBC
Nottinghamshire County Council,01-00099,SIMS GROUP UK LIMITED,Soft Facilities Management,Scrap and waste materials,0,0.01,0.01,04-Apr-11,TBC
Nottinghamshire County Council,01-00100,XMA LIMITED,ICT,Computer Equipment and Accessories,0,-0.01,-0.01,07-Apr-11,TBC
Nottinghamshire County Council,01-00109,XMA LIMITED,ICT,Computer Equipment and Accessories,0,0.01,0.01,07-Apr-11,TBC
Nottinghamshire County Council,01-00110,XMA LIMITED,ICT,Computer Equipment and Accessories,0,-0.01,-0.01,07-Apr-11,TBC
Nottinghamshire County Council,01-00144,EDEN BROWN LIMITED,People,Recruitment,0,379.2,379.2,01-Apr-11,TBC
Nottinghamshire County Council,01-00145,EDEN BROWN LIMITED,People,Recruitment,0,307.3,307.3,01-Apr-11,TBC
Nottinghamshire County Council,01-00146,EDEN BROWN LIMITED,People,Recruitment,0,346.2,346.2,01-Apr-11,TBC
Nottinghamshire County Council,01-00154,TARMAC CENTRAL LIMITED,External Services (Highways and Culture),Highways and Works,0,-0.01,-0.01,05-Apr-11,TBC
Nottinghamshire County Council,01-00157,TARMAC CENTRAL LIMITED,External Services (Highways and Culture),Highways and Works,0,-0.01,-0.01,05-Apr-11,TBC
Nottinghamshire County Council,01-00207,ENNSTONE JOHNSTON LIMITED,External Services (Highways and Culture),Earth and Stone Aggregates ,0,18,18,04-Apr-11,TBC
Nottinghamshire County Council,01-00208,ENNSTONE JOHNSTON LIMITED,External Services (Highways and Culture),Earth and Stone Aggregates ,0,13.5,13.5,07-Apr-11,TBC
Nottinghamshire County Council,01-00287,BRITISH GAS TRADING LIMITED,Hard Facilities Management ,Utilities,0,0.02,0.02,11-Apr-11,TBC
Nottinghamshire County Council,01-00289,BRITISH GAS TRADING LIMITED,Hard Facilities Management ,Utilities,0,0.12,0.12,11-Apr-11,TBC
Nottinghamshire County Council,01-00299,TARMAC CENTRAL LIMITED,External Services (Highways and Culture),Highways and Works,0,-0.01,-0.01,07-Apr-11,TBC
Nottinghamshire County Council,01-00300,TARMAC CENTRAL LIMITED,External Services (Highways and Culture),Highways and Works,0,-0.01,-0.01,07-Apr-11,TBC
Nottinghamshire County Council,01-00301,TARMAC CENTRAL LIMITED,External Services (Highways and Culture),Highways and Works,0,-0.01,-0.01,07-Apr-11,TBC
Nottinghamshire County Council,01-00357,SWIIS (UK) LIMITED,People,Agency Staff - Care,0,192.89,192.89,01-Apr-11,TBC
Nottinghamshire County Council,01-00358,SWIIS (UK) LIMITED,People,Agency Staff - Care,0,203.6,203.6,01-Apr-11,TBC
Nottinghamshire County Council,01-00359,ASHFIELD DISTRICT COUNCIL,Professional Services,Politics and Civic Affairs,0,110.05,110.05,05-Apr-11,TBC
Nottinghamshire County Council,01-00367,EDEN BROWN LIMITED,People,Recruitment,0,339.4,339.4,07-Apr-11,TBC
Nottinghamshire County Council,01-00368,EDEN BROWN LIMITED,People,Recruitment,0,383.28,383.28,07-Apr-11,TBC
Nottinghamshire County Council,01-00369,SWIIS (UK) LIMITED,People,Agency Staff - Care,0,211.64,211.64,08-Apr-11,TBC
Nottinghamshire County Council,01-00370,CAPITA SOCIAL CARE and HOUSING,Care,Domiciliary Care,0,102.91,102.91,07-Apr-11,TBC
Nottinghamshire County Council,01-00371,CAPITA SOCIAL CARE and HOUSING,Care,Domiciliary Care,0,134.09,134.09,07-Apr-11,TBC
Nottinghamshire County Council,01-00372,MEDICARE FIRST,Care,Medical Equipment and  Supplies,0,292.3,292.3,05-Apr-11,TBC
Nottinghamshire County Council,01-00454,TARMAC CENTRAL LIMITED,External Services (Highways and Culture),Highways and Works,0,-0.01,-0.01,19-Apr-11,TBC
Nottinghamshire County Council,01-00456,TARMAC CENTRAL LIMITED,External Services (Highways and Culture),Highways and Works,0,-0.01,-0.01,13-Apr-11,TBC
Nottinghamshire County Council,01-00457,TARMAC CENTRAL LIMITED,External Services (Highways and Culture),Highways and Works,0,-0.01,-0.01,13-Apr-11,TBC
Nottinghamshire County Council,01-00533,XMA LIMITED,ICT,Computer Equipment and Accessories,0,-0.01,-0.01,20-Apr-11,TBC
Nottinghamshire County Council,01-00554,CAPITA SOCIAL CARE and HOUSING,Care,Domiciliary Care,0,95.11,95.11,07-Apr-11,TBC
Nottinghamshire County Council,01-00555,CAPITA SOCIAL CARE and HOUSING,Care,Domiciliary Care,0,113.52,113.52,07-Apr-11,TBC
Nottinghamshire County Council,01-00556,EDEN BROWN LIMITED,People,Recruitment,0,373.05,373.05,01-Apr-11,TBC
Nottinghamshire County Council,01-00557,EDEN BROWN LIMITED,People,Recruitment,0,369.31,369.31,07-Apr-11,TBC
Nottinghamshire County Council,01-00558,EDEN BROWN LIMITED,People,Recruitment,0,435.16,435.16,07-Apr-11,TBC
Nottinghamshire County Council,01-00559,EDEN BROWN LIMITED,People,Recruitment,0,467.36,467.36,07-Apr-11,TBC
Nottinghamshire County Council,01-00560,EDEN BROWN LIMITED,People,Recruitment,0,379.44,379.44,07-Apr-11,TBC
Nottinghamshire County Council,01-00561,EDEN BROWN LIMITED,People,Recruitment,0,365.71,365.71,07-Apr-11,TBC
Nottinghamshire County Council,01-00562,EDEN BROWN LIMITED,People,Recruitment,0,433.64,433.64,18-Apr-11,TBC
Nottinghamshire County Council,01-00563,EDEN BROWN LIMITED,People,Recruitment,0,365.71,365.71,18-Apr-11,TBC
Nottinghamshire County Council,01-00564,EDEN BROWN LIMITED,People,Recruitment,0,962,962,18-Apr-11,TBC
Nottinghamshire County Council,01-00565,EDEN BROWN LIMITED,People,Recruitment,0,567.6,567.6,07-Apr-11,TBC
Nottinghamshire County Council,01-00566,EDEN BROWN LIMITED,People,Recruitment,0,378.24,378.24,18-Apr-11,TBC
Nottinghamshire County Council,01-00567,KONICA MINOLTA,ICT,"Printing and Publishing, Equipment and Supplies",0,274.15,274.15,04-Apr-11,TBC
Nottinghamshire County Council,01-00568,KONICA MINOLTA,ICT,"Printing and Publishing, Equipment and Supplies",0,100.7,100.7,11-Apr-11,TBC
Nottinghamshire County Council,01-00571,GOALS UK CIC,External Services (Highways and Culture),Sports and Recreational Equipment and Supplies,0,"2,400.00","2,400.00",14-Apr-11,TBC
Nottinghamshire County Council,01-00572,XMA LIMITED,ICT,Computer Equipment and Accessories,0,186.66,186.66,12-Apr-11,TBC
Nottinghamshire County Council,01-00573,XMA LIMITED,ICT,Computer Equipment and Accessories,0,116.28,116.28,18-Apr-11,TBC
Nottinghamshire County Council,01-00574,KONICA MINOLTA,ICT,"Printing and Publishing, Equipment and Supplies",0,114.54,114.54,04-Apr-11,TBC
Nottinghamshire County Council,01-00575,EDEN BROWN LIMITED,People,Recruitment,0,189.47,189.47,01-Apr-11,TBC
Nottinghamshire County Council,01-00576,EDEN BROWN LIMITED,People,Recruitment,0,287.04,287.04,18-Apr-11,TBC
Nottinghamshire County Council,01-00577,FULL CIRLCE CARE AGENCY LIMITED,People,Agency Staff - Care,0,255.58,255.58,07-Apr-11,TBC
Nottinghamshire County Council,01-00628,TARMAC CENTRAL LIMITED,External Services (Highways and Culture),Highways and Works,0,-0.01,-0.01,19-Apr-11,TBC
Nottinghamshire County Council,01-00631,TARMAC CENTRAL LIMITED,External Services (Highways and Culture),Highways and Works,0,-0.01,-0.01,12-Apr-11,TBC
Nottinghamshire County Council,01-00639,TARMAC CENTRAL LIMITED,External Services (Highways and Culture),Highways and Works,0,-0.01,-0.01,12-Apr-11,TBC
Nottinghamshire County Council,01-00662,FIESTA CRAFTS LIMITED,Soft Facilities Management,Security,0,-0.02,-0.02,18-Apr-11,TBC
Nottinghamshire County Council,01-00664,TARMAC CENTRAL LIMITED,External Services (Highways and Culture),Highways and Works,0,-0.01,-0.01,13-Apr-11,TBC
Nottinghamshire County Council,01-00665,TARMAC CENTRAL LIMITED,External Services (Highways and Culture),Highways and Works,0,-0.01,-0.01,13-Apr-11,TBC
Nottinghamshire County Council,01-00668,TARMAC CENTRAL LIMITED,External Services (Highways and Culture),Highways and Works,0,-0.01,-0.01,13-Apr-11,TBC
Nottinghamshire County Council,01-00669,TARMAC CENTRAL LIMITED,External Services (Highways and Culture),Highways and Works,0,-0.01,-0.01,13-Apr-11,TBC
Nottinghamshire County Council,01-00692,FLAMETREE PUBLISHING,ICT,"Printing and Publishing, Equipment and Supplies",0,-0.06,-0.06,21-Apr-11,TBC
Nottinghamshire County Council,01-00694,KONICA MINOLTA,ICT,"Printing and Publishing, Equipment and Supplies",0,126.5,126.5,11-Apr-11,TBC
Nottinghamshire County Council,01-00695,KONICA MINOLTA,ICT,"Printing and Publishing, Equipment and Supplies",0,126.5,126.5,11-Apr-11,TBC
Nottinghamshire County Council,01-00696,STRAW and PEARCE SOLICITORS,Professional Services,Legal Services,0,154.7,154.7,12-Apr-11,TBC
Nottinghamshire County Council,01-00697,ENCODED MEDIA UK LIMITED,ICT,Telecommunications and Media,0,"3,094.60","3,094.60",07-Apr-11,TBC
Nottinghamshire County Council,01-00698,MEDICARE FIRST,Care,Medical Equipment and  Supplies,0,247.8,247.8,05-Apr-11,TBC
Nottinghamshire County Council,01-00699,KONICA MINOLTA,ICT,"Printing and Publishing, Equipment and Supplies",0,126.5,126.5,11-Apr-11,TBC
Nottinghamshire County Council,01-00700,SMARTBOX ASSISTIVE TECHNOLOGY LIMITED,External Services (Highways and Culture),Education Services,0,"1,930.60","1,930.60",13-Apr-11,TBC
Nottinghamshire County Council,01-00701,ASKEWS LIBRARY SERVICES LIMITED,ICT,"Printing and Publishing, Equipment and Supplies",0,"1,600.00","1,600.00",12-Apr-11,TBC
Nottinghamshire County Council,01-00702,D T DEVELOPMENTS,TBC,TBC,0,680,680,12-Apr-11,TBC
Nottinghamshire County Council,01-00704,ADVANCE CARE TRAINING LIMITED,People,Vocational Training,0,100,100,18-Apr-11,TBC
Nottinghamshire County Council,01-00705,MEDICARE FIRST,Care,Medical Equipment and  Supplies,0,355.68,355.68,05-Apr-11,TBC
Nottinghamshire County Council,01-00708,SWIM SPECIALIST RECRUITMENT,People,Recruitment,0,333,333,07-Apr-11,TBC
Nottinghamshire County Council,01-00709,CARITAS RECRUITMENT,People,Recruitment,0,"1,330.52","1,330.52",07-Apr-11,TBC
Nottinghamshire County Council,01-00715,EMERY JOHNSON SOLICITORS,Professional Services,Legal Services,0,109.89,109.89,08-Apr-11,TBC
Nottinghamshire County Council,01-00716,R and R ADVISORY SERVICES LIMITED,Professional Services,Financial and Insurance Services,0,"2,530.00","2,530.00",08-Apr-11,TBC
Nottinghamshire County Council,01-00717,ASSETCO RENTALS NO 2 LIMITED,Transport and Travel,Motor Vehicles,0,98.45,98.45,12-Apr-11,TBC
Nottinghamshire County Council,01-00718,EDEN BROWN LIMITED,People,Recruitment,0,286.68,286.68,18-Apr-11,TBC
Nottinghamshire County Council,01-00720,EVRO Limited T/A EVRO RECRUIT,People,Recruitment,0,99.56,99.56,07-Apr-11,TBC
Nottinghamshire County Council,01-00721,FRONTLINE,Hard Facilities Management ,Plumbing Services,0,295.19,295.19,14-Apr-11,TBC
Nottinghamshire County Council,01-00722,EDEN BROWN LIMITED,People,Recruitment,0,230.47,230.47,07-Apr-11,TBC
Nottinghamshire County Council,01-00723,ALLIED BUSINESS SOLUTIONS,People,Vocational Training,0,"1,190.00","1,190.00",14-Apr-11,TBC
Nottinghamshire County Council,01-00724,KONICA MINOLTA,ICT,"Printing and Publishing, Equipment and Supplies",0,105.83,105.83,11-Apr-11,TBC
Nottinghamshire County Council,01-00725,LDC RESTORATION,Hard Facilities Management ,Masonry and Stonework Services,0,645,645,20-Apr-11,TBC
Nottinghamshire County Council,01-00727,ATTENBOROUGH NATURE CENTRE LIMITED,Transport and Travel,Hotels and Venues,0,125.8,125.8,18-Apr-11,TBC
Nottinghamshire County Council,01-00728,TUBES FITTINGS VALVES LIMITED,Hard Facilities Management ,Plumbing Services,0,-0.01,-0.01,12-Apr-11,TBC
Nottinghamshire County Council,01-00730,TUBES FITTINGS VALVES LIMITED,Hard Facilities Management ,Plumbing Services,0,-0.01,-0.01,12-Apr-11,TBC
Nottinghamshire County Council,01-00735,TUBES FITTINGS VALVES LIMITED,Hard Facilities Management ,Plumbing Services,0,-0.01,-0.01,13-Apr-11,TBC
Nottinghamshire County Council,01-00768,EXPRESS ASPHALT LIMITED,External Services (Highways and Culture),Highways and Works,0,0.01,0.01,07-Apr-11,TBC
Nottinghamshire County Council,01-00781,TARMAC CENTRAL LIMITED,External Services (Highways and Culture),Highways and Works,0,-0.01,-0.01,19-Apr-11,TBC
Nottinghamshire County Council,01-00783,TARMAC CENTRAL LIMITED,External Services (Highways and Culture),Highways and Works,0,-0.01,-0.01,19-Apr-11,TBC
Nottinghamshire County Council,01-00784,TARMAC CENTRAL LIMITED,External Services (Highways and Culture),Highways and Works,0,-0.01,-0.01,19-Apr-11,TBC
Nottinghamshire County Council,01-00785,TARMAC CENTRAL LIMITED,External Services (Highways and Culture),Highways and Works,0,-0.01,-0.01,19-Apr-11,TBC
Nottinghamshire County Council,01-00792,TARMAC CENTRAL LIMITED,External Services (Highways and Culture),Highways and Works,0,-0.01,-0.01,19-Apr-11,TBC
Nottinghamshire County Council,01-00796,TARMAC CENTRAL LIMITED,External Services (Highways and Culture),Highways and Works,0,-0.01,-0.01,19-Apr-11,TBC
Nottinghamshire County Council,01-00801,D W WINDSOR LIMITED,External Services (Highways and Culture),Highways and Works,0,-0.01,-0.01,07-Apr-11,TBC
Nottinghamshire County Council,01-00816,VODAFONE LIMITED,ICT,Telecommunications and Media,0,-0.01,-0.01,08-Apr-11,TBC
Nottinghamshire County Council,01-00865,WASTE RECYCLING GROUP PLC,Soft Facilities Management,Environmental Services,0,0.01,0.01,26-Apr-11,TBC
Nottinghamshire County Council,01-00932,XMA LIMITED,ICT,Computer Equipment and Accessories,0,0.01,0.01,27-Apr-11,TBC
Nottinghamshire County Council,01-00961,BRITISH GAS TRADING LIMITED,Hard Facilities Management ,Utilities,0,-0.13,-0.13,11-Apr-11,TBC
Nottinghamshire County Council,01-00973,STOR-A-FILE LIMITED,Hard Facilities Management ,Material Handling and Storage,0,144.57,144.57,18-Apr-11,TBC
Nottinghamshire County Council,01-01012,CARDEA,Care,Healthcare Services,0,136.44,136.44,12-Apr-11,TBC
Nottinghamshire County Council,01-01013,CARDEA,Care,Healthcare Services,0,333,333,12-Apr-11,TBC
Nottinghamshire County Council,01-01014,CARDEA,Care,Healthcare Services,0,333,333,05-Apr-11,TBC
Nottinghamshire County Council,01-01024,MANN JONES LIMITED,External Services (Highways and Culture),Construction Plant and Equipment,0,0.01,0.01,20-Apr-11,TBC
Nottinghamshire County Council,01-01028,CARDEA,Care,Healthcare Services,0,141.88,141.88,05-Apr-11,TBC
Nottinghamshire County Council,01-01033,CARDEA,Care,Healthcare Services,0,238.44,238.44,12-Apr-11,TBC
Nottinghamshire County Council,01-01075,S F PLANT HIRE,External Services (Highways and Culture),Construction Plant and Equipment,0,0.6,0.6,05-Apr-11,TBC
Nottinghamshire County Council,01-01076,S F PLANT HIRE,External Services (Highways and Culture),Construction Plant and Equipment,0,0.6,0.6,05-Apr-11,TBC
Nottinghamshire County Council,01-01200,TARMAC CENTRAL LIMITED,External Services (Highways and Culture),Highways and Works,0,-0.01,-0.01,13-Apr-11,TBC
Nottinghamshire County Council,01-01270,CARDEA,Care,Healthcare Services,0,260.61,260.61,12-Apr-11,TBC
Nottinghamshire County Council,01-01325,JOHN SCHEERER and SONS LIMITED,External Services (Highways and Culture),Musical Instruments,0,315.92,315.92,01-Apr-11,TBC
Nottinghamshire County Council,01-01326,THE AWARD SCHEME LIMITED,External Services (Highways and Culture),Organisations and Clubs,0,5,5,01-Apr-11,TBC
Nottinghamshire County Council,01-01327,PROCHOICE RECRUITMENT SERVICES LIMITED,People,Recruitment,0,86.4,86.4,01-Apr-11,TBC
Nottinghamshire County Council,01-01329,ALARM RADIO MONITORING LIMITED,Soft Facilities Management,Security,0,302.8,302.8,01-Apr-11,TBC
Nottinghamshire County Council,01-01330,TALLON MONITORING LIMITED,ICT,Telecommunications and Media,0,622.4,622.4,07-Apr-11,TBC
Nottinghamshire County Council,01-01331,KINGSFORTH SECURITY FENCING LIMITED,Soft Facilities Management,Security,0,"1,197.69","1,197.69",01-Apr-11,TBC
Nottinghamshire County Council,01-01332,KINGSFORTH SECURITY FENCING LIMITED,Soft Facilities Management,Security,0,101.75,101.75,01-Apr-11,TBC
Nottinghamshire County Council,01-01333,SHELTER MAINTENANCE CO,Hard Facilities Management ,Building Construction Services,0,200.8,200.8,01-Apr-11,TBC
Nottinghamshire County Council,01-01334,NOTTINGHAM FOREST FOOTBALL CLUB,Transport and Travel,Hotels and Venues,0,113,113,01-Apr-11,TBC
Nottinghamshire County Council,01-01335,TRENT VINEYARD,Transport and Travel,Hotels and Venues,0,966,966,01-Apr-11,TBC
Nottinghamshire County Council,01-01337,ALCONTROL HAWARDEN,Hard Facilities Management ,Building Construction Services,0,109.9,109.9,01-Apr-11,TBC
Nottinghamshire County Council,01-01340,WOODBOROUGH PARK,Transport and Travel,Hotels and Venues,0,256,256,01-Apr-11,TBC
Nottinghamshire County Council,01-01341,MERIDIAN BUSINESS SUPPORT LIMITED,People,Recruitment,0,95.36,95.36,20-Apr-11,TBC
Nottinghamshire County Council,01-01342,INCENTIVE PLUS LIMITED,External Services (Highways and Culture),Sports and Recreational Equipment and Supplies,0,112.07,112.07,01-Apr-11,TBC
Nottinghamshire County Council,01-01343,BRITISH RED CROSS SOCIETY,Care,Residential Care,0,"2,890.83","2,890.83",11-Apr-11,TBC
Nottinghamshire County Council,01-01344,BRITISH RED CROSS SOCIETY,Care,Residential Care,0,"7,192.21","7,192.21",01-Apr-11,TBC
Nottinghamshire County Council,01-01345,CLC CONTRACTORS LIMITED,Hard Facilities Management ,Building Construction Services,0,86,86,01-Apr-11,TBC
Nottinghamshire County Council,01-01346,PERSONNEL and CARE BANK,People,Recruitment,0,145.36,145.36,18-Apr-11,TBC
Nottinghamshire County Council,01-01348,TALLON MONITORING LIMITED,ICT,Telecommunications and Media,0,"3,700.00","3,700.00",26-Apr-11,TBC
Nottinghamshire County Council,01-01349,NVISAGE VT LIMITED,Professional Services,"Reproduction, Photographic and Design Services",0,120,120,21-Apr-11,TBC
Nottinghamshire County Council,01-01350,RECRUITMENT SPECIALIST GROUP LIMITED,People,Recruitment,0,-22.5,-22.5,01-Apr-11,TBC
Nottinghamshire County Council,01-01352,RECRUITMENT SPECIALIST GROUP LIMITED,People,Recruitment,0,-32.91,-32.91,01-Apr-11,TBC
Nottinghamshire County Council,01-01353,RECRUITMENT SPECIALIST GROUP LIMITED,People,Recruitment,0,-40.22,-40.22,01-Apr-11,TBC
Nottinghamshire County Council,01-01354,RECRUITMENT SPECIALIST GROUP LIMITED,People,Recruitment,0,-41.62,-41.62,01-Apr-11,TBC
Nottinghamshire County Council,01-01355,RECRUITMENT SPECIALIST GROUP LIMITED,People,Recruitment,0,-35.72,-35.72,01-Apr-11,TBC
Nottinghamshire County Council,01-01356,ORMISTON WIRE LIMITED,Hard Facilities Management ,Electrical Systems and Lighting,0,201.59,201.59,20-Apr-11,TBC
Nottinghamshire County Council,01-01358,ALEXANDER LEIGH CONSULTING LIMITED,Professional Services,Consultancy,0,274.64,274.64,04-Apr-11,TBC
Nottinghamshire County Council,01-01359,INTELLIDENT LIMITED,Care,Infant Or Child Daycare Services,0,581.63,581.63,01-Apr-11,TBC
Nottinghamshire County Council,01-01360,NOTTINGHAM CITY COUNCIL,Professional Services,Politics and Civic Affairs,0,163.88,163.88,01-Apr-11,TBC
Nottinghamshire County Council,01-01362,DAVID BRIGGS ASSOCIATES,Care,Daycare,0,94.25,94.25,01-Apr-11,TBC
Nottinghamshire County Council,01-01365,CENTER PARC LIMITED,External Services (Highways and Culture),Sports and Recreational Equipment and Supplies,0,416.67,416.67,01-Apr-11,TBC
Nottinghamshire County Council,01-01367,THE BEECHES,Transport and Travel,Hotels and Venues,0,204,204,01-Apr-11,TBC
Nottinghamshire County Council,01-01368,ARGOS BUSINESS SOLUTIONS,ICT,"Printing and Publishing, Equipment and Supplies",0,84.86,84.86,01-Apr-11,TBC
Nottinghamshire County Council,01-01369,THE BEECHES,Transport and Travel,Hotels and Venues,0,126,126,01-Apr-11,TBC
Nottinghamshire County Council,01-01370,JULIE LEATHER CLINICAL PSYCHOLOGICAL CON,Care,Mental Health Services,0,214.69,214.69,12-Apr-11,TBC
Nottinghamshire County Council,01-01372,XMA LIMITED,ICT,Computer Equipment and Accessories,0,157.08,157.08,26-Apr-11,TBC
Nottinghamshire County Council,01-01373,CRANTON ELECTRICAL CO LIMITED,Hard Facilities Management ,Electrical Systems and Lighting,0,501.46,501.46,01-Apr-11,TBC
Nottinghamshire County Council,01-01374,XMA LIMITED,ICT,Computer Equipment and Accessories,0,118.32,118.32,26-Apr-11,TBC
Nottinghamshire County Council,01-01375,CBN,External Services (Highways and Culture),Organisations and Clubs,0,140,140,19-Apr-11,TBC
Nottinghamshire County Council,01-01377,CAPITA SOCIAL CARE and HOUSING,Care,Domiciliary Care,0,87.18,87.18,14-Apr-11,TBC
Nottinghamshire County Council,01-01379,CAPITA,Professional Services,Consultancy,0,127.52,127.52,01-Apr-11,TBC
Nottinghamshire County Council,01-01380,@HOME CHILDCARE LIMITED,Care,Infant Or Child Daycare Services,0,200,200,01-Apr-11,TBC
Nottinghamshire County Council,01-01381,SHELTER MAINTENANCE CO,Hard Facilities Management ,Building Construction Services,0,"1,074.00","1,074.00",01-Apr-11,TBC
Nottinghamshire County Council,01-01382,COOKCO LIMITED,Soft Facilities Management,Vending Machines and Food Equipment,0,93,93,01-Apr-11,TBC
Nottinghamshire County Council,01-01384,SONIC COMMUNICATIONS,ICT,Telecommunications and Media,0,"1,210.00","1,210.00",21-Apr-11,TBC
Nottinghamshire County Council,01-01385,KONICA MINOLTA,ICT,"Printing and Publishing, Equipment and Supplies",0,448.43,448.43,01-Apr-11,TBC
Nottinghamshire County Council,01-01386,CUSTOM GROUP LIMITED,Soft Facilities Management,Furniture and Furnishings,0,161.66,161.66,01-Apr-11,TBC
Nottinghamshire County Council,01-01387,SCHOOL SIGNS,Soft Facilities Management,Printed Media and Signage,0,117,117,01-Apr-11,TBC
Nottinghamshire County Council,01-01390,EDEN BROWN LIMITED,People,Recruitment,0,281.16,281.16,26-Apr-11,TBC
Nottinghamshire County Council,01-01391,CARDEA,Care,Healthcare Services,0,"2,739.48","2,739.48",27-Apr-11,TBC
Nottinghamshire County Council,01-01392,REED EMPLOYMENT PLC,People,Recruitment,0,199.8,199.8,01-Apr-11,TBC
Nottinghamshire County Council,01-01394,EDEN BROWN LIMITED,People,Recruitment,0,268.92,268.92,26-Apr-11,TBC
Nottinghamshire County Council,01-01395,HILL TRIDENT,Soft Facilities Management,Security,0,"1,001.21","1,001.21",01-Apr-11,TBC
Nottinghamshire County Council,01-01396,BLUECARE RECRUITMENT LIMITED,People,Recruitment,0,90,90,26-Apr-11,TBC
Nottinghamshire County Council,01-01398,BLUECARE RECRUITMENT LIMITED,People,Recruitment,0,180,180,26-Apr-11,TBC
Nottinghamshire County Council,01-01400,OUTCOMES UK,People,Recruitment,0,"6,572.05","6,572.05",01-Apr-11,TBC
Nottinghamshire County Council,01-01406,LA INTERNATIONAL COMPUTER CONSULTANT LIMITED,Professional Services,Consultancy,0,588,588,01-Apr-11,TBC
Nottinghamshire County Council,01-01420,MIDLAND FILTRATION LIMITED,Hard Facilities Management ,Heating and Ventilation (Inc A/C),0,0.01,0.01,04-Apr-11,TBC
Nottinghamshire County Council,01-01435,KEN BURROWS LIMITED,Hard Facilities Management ,Electrical Systems and Lighting,0,275.96,275.96,01-Apr-11,TBC
Nottinghamshire County Council,01-01436,COOKCO LIMITED,Soft Facilities Management,Vending Machines and Food Equipment,0,247.2,247.2,01-Apr-11,TBC
Nottinghamshire County Council,01-01479,BRAKE BROS LIMITED,Soft Facilities Management,Prepared and preserved foods,0,-0.03,-0.03,01-Apr-11,TBC
Nottinghamshire County Council,01-01498,ENERGAS LIMITED,External Services (Highways and Culture),Chemicals and Gases,0,-117.62,-117.62,04-Apr-11,TBC
Nottinghamshire County Council,01-01512,URBIS LIGHTING LIMITED,Hard Facilities Management ,Electrical Systems and Lighting,0,0.01,0.01,07-Apr-11,TBC
Nottinghamshire County Council,01-01520,EXPRESS ASPHALT LIMITED,External Services (Highways and Culture),Highways and Works,0,15.48,15.48,04-Apr-11,TBC
Nottinghamshire County Council,01-01786,TARMAC CENTRAL LIMITED,External Services (Highways and Culture),Highways and Works,0,-0.01,-0.01,27-Apr-11,TBC
Nottinghamshire County Council,01-01788,TARMAC CENTRAL LIMITED,External Services (Highways and Culture),Highways and Works,0,-0.01,-0.01,27-Apr-11,TBC
Nottinghamshire County Council,01-01789,TARMAC CENTRAL LIMITED,External Services (Highways and Culture),Highways and Works,0,-0.01,-0.01,27-Apr-11,TBC
Nottinghamshire County Council,01-01800,WILSON ELECTRICS,Hard Facilities Management ,Electrical Systems and Lighting,0,359.99,359.99,04-Apr-11,TBC
Nottinghamshire County Council,01-01805,HOUSE OF BATTERIES LIMITED,Hard Facilities Management ,Electronic Components and Supplies,0,0.01,0.01,05-Apr-11,TBC
Nottinghamshire County Council,01-01830,ACCO U K LIMITED SERVICES DIVISION,Soft Facilities Management,Office Supplies and Machines (non IT),0,-0.02,-0.02,05-Apr-11,TBC
Nottinghamshire County Council,01-02019,BATCHMIX LIMITED,Hard Facilities Management ,Concrete installation and repair services,0,0.01,0.01,11-Apr-11,TBC
Nottinghamshire County Council,01-02056,TARMAC CENTRAL LIMITED,External Services (Highways and Culture),Highways and Works,0,-0.01,-0.01,27-Apr-11,TBC
Nottinghamshire County Council,01-02057,TARMAC CENTRAL LIMITED,External Services (Highways and Culture),Highways and Works,0,-0.01,-0.01,27-Apr-11,TBC
Nottinghamshire County Council,01-02058,TARMAC CENTRAL LIMITED,External Services (Highways and Culture),Highways and Works,0,-0.01,-0.01,27-Apr-11,TBC
Nottinghamshire County Council,01-02059,TARMAC CENTRAL LIMITED,External Services (Highways and Culture),Highways and Works,0,-0.01,-0.01,27-Apr-11,TBC
Nottinghamshire County Council,01-02060,TARMAC CENTRAL LIMITED,External Services (Highways and Culture),Highways and Works,0,-0.01,-0.01,27-Apr-11,TBC
Nottinghamshire County Council,01-02062,MALCOLM LANE and SON LIMITED,External Services (Highways and Culture),Education Services,0,151,151,27-Apr-11,TBC
Nottinghamshire County Council,01-02065,TARMAC CENTRAL LIMITED,External Services (Highways and Culture),Highways and Works,0,-0.01,-0.01,27-Apr-11,TBC
Nottinghamshire County Council,01-02066,TARMAC CENTRAL LIMITED,External Services (Highways and Culture),Highways and Works,0,-0.01,-0.01,27-Apr-11,TBC
Nottinghamshire County Council,01-02067,TARMAC CENTRAL LIMITED,External Services (Highways and Culture),Highways and Works,0,-0.01,-0.01,27-Apr-11,TBC
Nottinghamshire County Council,01-02068,TARMAC CENTRAL LIMITED,External Services (Highways and Culture),Highways and Works,0,-0.01,-0.01,27-Apr-11,TBC
Nottinghamshire County Council,01-02070,SPECIALIST COMPUTER CENTRES LIMITED,ICT,Computer services,0,-0.01,-0.01,28-Apr-11,TBC
Nottinghamshire County Council,01-02102,LEICESTERSHIRE COUNTY COUNCIL,Professional Services,Politics and Civic Affairs,0,-120,-120,27-Apr-11,TBC
Nottinghamshire County Council,01-02415,SQUIDCARD LIMITED,Professional Services,Financial and Insurance Services,0,"2,371.65","2,371.65",07-Apr-11,TBC
Nottinghamshire County Council,01-02430,JOHNSONS CATERING EQUIPMENT LIMITED,Soft Facilities Management,Vending Machines and Food Equipment,0,0.01,0.01,07-Apr-11,TBC
Nottinghamshire County Council,01-02477,EGS GROUP LIMITED,Professional Services,Consultancy,0,508.63,508.63,21-Apr-11,TBC
Nottinghamshire County Council,01-02482,WILSON ELECTRICS,Hard Facilities Management ,Electrical Systems and Lighting,0,142.32,142.32,07-Apr-11,TBC
Nottinghamshire County Council,01-02541,DESIGN SEATING LIMITED,Soft Facilities Management,Furniture and Furnishings,0,-0.01,-0.01,07-Apr-11,TBC
Nottinghamshire County Council,01-02587,J P LENNARD LIMITED,External Services (Highways and Culture),Sports and Recreational Equipment and Supplies,0,129.37,129.37,07-Apr-11,TBC
Nottinghamshire County Council,01-02593,MARSTON ROBING LIMITED,Soft Facilities Management,Security,0,5.83,5.83,07-Apr-11,TBC
Nottinghamshire County Council,01-02595,MEDICARE FIRST,Care,Medical Equipment and  Supplies,0,175.16,175.16,19-Apr-11,TBC
Nottinghamshire County Council,01-02596,MEDICARE FIRST,Care,Medical Equipment and  Supplies,0,280.36,280.36,12-Apr-11,TBC
Nottinghamshire County Council,01-02597,MEDICARE FIRST,Care,Medical Equipment and  Supplies,0,346.49,346.49,19-Apr-11,TBC
Nottinghamshire County Council,01-02598,B N A,People,Recruitment,0,122.33,122.33,07-Apr-11,TBC
Nottinghamshire County Council,01-02599,CAPITA SOCIAL CARE and HOUSING,Care,Domiciliary Care,0,128.8,128.8,07-Apr-11,TBC
Nottinghamshire County Council,01-02600,UNIVERSAL LOCUMS,People,Recruitment,0,208.25,208.25,07-Apr-11,TBC
Nottinghamshire County Council,01-02601,CAPITA SOCIAL CARE and HOUSING,Care,Domiciliary Care,0,135.9,135.9,07-Apr-11,TBC
Nottinghamshire County Council,01-02602,CAPITA SOCIAL CARE and HOUSING,Care,Domiciliary Care,0,113.52,113.52,07-Apr-11,TBC
Nottinghamshire County Council,01-02603,CAPITA SOCIAL CARE and HOUSING,Care,Domiciliary Care,0,98.01,98.01,07-Apr-11,TBC
Nottinghamshire County Council,01-02604,CAPITA SOCIAL CARE and HOUSING,Care,Domiciliary Care,0,101.24,101.24,07-Apr-11,TBC
Nottinghamshire County Council,01-02605,CAPITA SOCIAL CARE and HOUSING,Care,Domiciliary Care,0,105.85,105.85,07-Apr-11,TBC
Nottinghamshire County Council,01-02606,CAPITA SOCIAL CARE and HOUSING,Care,Domiciliary Care,0,143.28,143.28,07-Apr-11,TBC
Nottinghamshire County Council,01-02607,CAPITA SOCIAL CARE and HOUSING,Care,Domiciliary Care,0,101.24,101.24,07-Apr-11,TBC
Nottinghamshire County Council,01-02608,CAPITA SOCIAL CARE and HOUSING,Care,Domiciliary Care,0,116.48,116.48,14-Apr-11,TBC
Nottinghamshire County Council,01-02609,CAPITA SOCIAL CARE and HOUSING,Care,Domiciliary Care,0,122.9,122.9,07-Apr-11,TBC
Nottinghamshire County Council,01-02610,CAPITA SOCIAL CARE and HOUSING,Care,Domiciliary Care,0,122.24,122.24,14-Apr-11,TBC
Nottinghamshire County Council,01-02611,CAPITA SOCIAL CARE and HOUSING,Care,Domiciliary Care,0,113.52,113.52,14-Apr-11,TBC
Nottinghamshire County Council,01-02612,CAPITA SOCIAL CARE and HOUSING,Care,Domiciliary Care,0,118.08,118.08,14-Apr-11,TBC
Nottinghamshire County Council,01-02613,CAPITA SOCIAL CARE and HOUSING,Care,Domiciliary Care,0,117.72,117.72,14-Apr-11,TBC
Nottinghamshire County Council,01-02614,CAPITA SOCIAL CARE and HOUSING,Care,Domiciliary Care,0,113.52,113.52,14-Apr-11,TBC
Nottinghamshire County Council,01-02615,CAPITA SOCIAL CARE and HOUSING,Care,Domiciliary Care,0,123.6,123.6,14-Apr-11,TBC
Nottinghamshire County Council,01-02616,TRINITAS CONSULTANCY LIMITED,Professional Services,Consultancy,0,86.55,86.55,27-Apr-11,TBC
Nottinghamshire County Council,01-02617,STRAW and PEARCE SOLICITORS,Professional Services,Legal Services,0,204.06,204.06,27-Apr-11,TBC
Nottinghamshire County Council,01-02618,STRAW and PEARCE SOLICITORS,Professional Services,Legal Services,0,210.6,210.6,27-Apr-11,TBC
Nottinghamshire County Council,01-02619,STRAW and PEARCE SOLICITORS,Professional Services,Legal Services,0,317.18,317.18,27-Apr-11,TBC
Nottinghamshire County Council,01-02620,STRAW and PEARCE SOLICITORS,Professional Services,Legal Services,0,238.88,238.88,27-Apr-11,TBC
Nottinghamshire County Council,01-02621,STRAW and PEARCE SOLICITORS,Professional Services,Legal Services,0,326.6,326.6,27-Apr-11,TBC
Nottinghamshire County Council,01-02622,STRAW and PEARCE SOLICITORS,Professional Services,Legal Services,0,99.13,99.13,21-Apr-11,TBC
Nottinghamshire County Council,01-02623,CAPITA SOCIAL CARE and HOUSING,Care,Domiciliary Care,0,118.16,118.16,14-Apr-11,TBC
Nottinghamshire County Council,01-02624,CAPITA SOCIAL CARE and HOUSING,Care,Domiciliary Care,0,126.08,126.08,14-Apr-11,TBC
Nottinghamshire County Council,01-02625,REED EMPLOYMENT PLC,People,Recruitment,0,217,217,07-Apr-11,TBC
Nottinghamshire County Council,01-02626,EDEN BROWN LIMITED,People,Recruitment,0,481,481,26-Apr-11,TBC
Nottinghamshire County Council,01-02627,EDEN BROWN LIMITED,People,Recruitment,0,435.32,435.32,26-Apr-11,TBC
Nottinghamshire County Council,01-02628,RIG SOCIAL CARE (NORTH) LIMITED,Care,Domiciliary Care,0,304.3,304.3,07-Apr-11,TBC
Nottinghamshire County Council,01-02629,EDEN BROWN LIMITED,People,Recruitment,0,376.17,376.17,26-Apr-11,TBC
Nottinghamshire County Council,01-02630,EDEN BROWN LIMITED,People,Recruitment,0,400.5,400.5,27-Apr-11,TBC
Nottinghamshire County Council,01-02631,EDEN BROWN LIMITED,People,Recruitment,0,217.45,217.45,21-Apr-11,TBC
Nottinghamshire County Council,01-02632,EDEN BROWN LIMITED,People,Recruitment,0,365.71,365.71,26-Apr-11,TBC
Nottinghamshire County Council,01-02633,CYCLESCHEME LIMITED,External Services (Highways and Culture),Sports and Recreational Equipment and Supplies,0,165.83,165.83,07-Apr-11,TBC
Nottinghamshire County Council,01-02634,DODGY CLUTCH,Transport and Travel,Motor Vehicles,0,390,390,07-Apr-11,TBC
Nottinghamshire County Council,01-02635,SQUIDCARD LIMITED,Professional Services,Financial and Insurance Services,0,"2,112.40","2,112.40",07-Apr-11,TBC
Nottinghamshire County Council,01-02636,MEDICARE FIRST,Care,Medical Equipment and  Supplies,0,247.8,247.8,19-Apr-11,TBC
Nottinghamshire County Council,01-02637,CHILTERN INVADEX,Care,Medical Equipment and  Supplies,0,604.64,604.64,07-Apr-11,TBC
Nottinghamshire County Council,01-02638,CARITAS RECRUITMENT,People,Recruitment,0,506.19,506.19,27-Apr-11,TBC
Nottinghamshire County Council,01-02639,COOKCO LIMITED,Soft Facilities Management,Vending Machines and Food Equipment,0,"1,103.00","1,103.00",07-Apr-11,TBC
Nottinghamshire County Council,01-02641,WILSON ELECTRICS,Hard Facilities Management ,Electrical Systems and Lighting,0,258.96,258.96,07-Apr-11,TBC
Nottinghamshire County Council,01-02646,SLACK and CO FLOORCOVERINGS,Soft Facilities Management,Furniture and Furnishings,0,194.2,194.2,07-Apr-11,TBC
Nottinghamshire County Council,01-02647,STRAW and PEARCE SOLICITORS,Professional Services,Legal Services,0,-0.01,-0.01,07-Apr-11,TBC
Nottinghamshire County Council,01-02649,TRAFFIC TECHNOLOGY LIMITED,External Services (Highways and Culture),Highways and Works,0,"7,459.40","7,459.40",21-Apr-11,TBC
Nottinghamshire County Council,01-02650,VEOLIA ENVIRONMENTAL SERVICES,Soft Facilities Management,Scrap and waste materials,0,151.19,151.19,07-Apr-11,TBC
Nottinghamshire County Council,01-02651,ADT FIRE and SECURITY PLC,Soft Facilities Management,Security,0,216.4,216.4,07-Apr-11,TBC
Nottinghamshire County Council,01-02652,CARRIER LANDSCAPES LIMITED,External Services (Highways and Culture),Farming Forestry and Wildlife Services,0,317.82,317.82,07-Apr-11,TBC
Nottinghamshire County Council,01-02653,BRISTOL OILSKIN and OVERALL CO LIMITED,Soft Facilities Management,Clothing,0,230.96,230.96,20-Apr-11,TBC
Nottinghamshire County Council,01-02654,SKILLDRIVE LIMITED,Transport and Travel,Motor Vehicles,0,130.1,130.1,07-Apr-11,TBC
Nottinghamshire County Council,01-02655,LINCOLNSHIRE ICES,Soft Facilities Management,Frozen Goods,0,139.8,139.8,14-Apr-11,TBC
Nottinghamshire County Council,01-02656,N SLEIGHT,Soft Facilities Management,Security,0,12.75,12.75,07-Apr-11,TBC
Nottinghamshire County Council,01-02658,LEICESTERSHIRE COUNTY COUNCIL,Professional Services,Politics and Civic Affairs,0,200,200,27-Apr-11,TBC
Nottinghamshire County Council,01-02659,EDEN BROWN LIMITED,People,Recruitment,0,374.59,374.59,18-Apr-11,TBC
Nottinghamshire County Council,01-02660,MAKING IT! ENTERPRISES LIMITED,External Services (Highways and Culture),Sports and Recreational Equipment and Supplies,0,478.3,478.3,07-Apr-11,TBC
Nottinghamshire County Council,01-02662,CHIPSIDE LIMITED,ICT,Software,0,900,900,07-Apr-11,TBC
Nottinghamshire County Council,01-02663,TACADE,Soft Facilities Management,Security,0,72.6,72.6,18-Apr-11,TBC
Nottinghamshire County Council,01-02664,CARDINUS RISK MANAGEMENT LIMITED,External Services (Highways and Culture),Education Services,0,696.69,696.69,07-Apr-11,TBC
Nottinghamshire County Council,01-02665,KONICA MINOLTA,ICT,"Printing and Publishing, Equipment and Supplies",0,90.97,90.97,11-Apr-11,TBC
Nottinghamshire County Council,01-02667,ROBERT WOODHEAD LIMITED,Hard Facilities Management ,Building Construction Services,0,501.24,501.24,07-Apr-11,TBC
Nottinghamshire County Council,01-02668,ROBERT WOODHEAD LIMITED,Hard Facilities Management ,Building Construction Services,0,"1,051.00","1,051.00",07-Apr-11,TBC
Nottinghamshire County Council,01-02669,ROBERT WOODHEAD LIMITED,Hard Facilities Management ,Building Construction Services,0,736.58,736.58,07-Apr-11,TBC
Nottinghamshire County Council,01-02670,ROBERT WOODHEAD LIMITED,Hard Facilities Management ,Building Construction Services,0,480,480,07-Apr-11,TBC
Nottinghamshire County Council,01-02671,KONICA MINOLTA,ICT,"Printing and Publishing, Equipment and Supplies",0,390,390,11-Apr-11,TBC
Nottinghamshire County Council,01-02672,PICKFORDS LIMITED,Hard Facilities Management ,Material Handling and Storage,0,"1,197.60","1,197.60",28-Apr-11,TBC
Nottinghamshire County Council,01-02673,BEECHDALE ASPHALT,External Services (Highways and Culture),Highways and Works,0,592.8,592.8,07-Apr-11,TBC
Nottinghamshire County Council,01-02674,BEECHDALE ASPHALT,External Services (Highways and Culture),Highways and Works,0,115.6,115.6,07-Apr-11,TBC
Nottinghamshire County Council,01-02675,SOUTH FOREST LEISURE CENTRE,Transport and Travel,Hotels and Venues,0,238.5,238.5,07-Apr-11,TBC
Nottinghamshire County Council,01-02676,NDE CONSULTANTS,Professional Services,Consultancy,0,"2,460.00","2,460.00",07-Apr-11,TBC
Nottinghamshire County Council,01-02677,FARNHAM MALTINGS ASSOCIATION LIMITED,External Services (Highways and Culture),Arts and crafts,0,130,130,07-Apr-11,TBC
Nottinghamshire County Council,01-02678,FARNHAM MALTINGS ASSOCIATION LIMITED,External Services (Highways and Culture),Arts and crafts,0,130,130,07-Apr-11,TBC
Nottinghamshire County Council,01-02679,FARNHAM MALTINGS ASSOCIATION LIMITED,External Services (Highways and Culture),Arts and crafts,0,130,130,07-Apr-11,TBC
Nottinghamshire County Council,01-02680,POSITIVE OPTIONS LIMITED,Professional Services,Consultancy,0,201.16,201.16,07-Apr-11,TBC
Nottinghamshire County Council,01-02682,EDEN BROWN LIMITED,People,Recruitment,0,222.39,222.39,14-Apr-11,TBC
Nottinghamshire County Council,01-02683,CAPITA SOCIAL CARE and HOUSING,Care,Domiciliary Care,0,113.52,113.52,14-Apr-11,TBC
Nottinghamshire County Council,01-02684,CAPITA SOCIAL CARE and HOUSING,Care,Domiciliary Care,0,92.04,92.04,14-Apr-11,TBC
Nottinghamshire County Council,01-02687,EXIMAX LIMITED,Professional Services,Property Management,0,"5,000.00","5,000.00",07-Apr-11,TBC
Nottinghamshire County Council,01-02690,CAPITA SOCIAL CARE and HOUSING,Care,Domiciliary Care,0,113.52,113.52,14-Apr-11,TBC
Nottinghamshire County Council,01-02692,UNIFY BUSINESS SOLUTIONS LIMITED,ICT,Telecommunications and Media,0,"1,070.00","1,070.00",07-Apr-11,TBC
Nottinghamshire County Council,01-02714,BUS SHELTERS LIMITED,Transport and Travel,Bus,0,0.01,0.01,07-Apr-11,TBC
Nottinghamshire County Council,01-02786,WASTE RECYCLING GROUP PLC,Soft Facilities Management,Environmental Services,0,-0.01,-0.01,08-Apr-11,TBC
Nottinghamshire County Council,01-02787,WASTE RECYCLING GROUP PLC,Soft Facilities Management,Environmental Services,0,-0.01,-0.01,08-Apr-11,TBC
Nottinghamshire County Council,01-02806,A4E CONSULT LIMITED,Professional Services,Consultancy,0,86.17,86.17,27-Apr-11,TBC
Nottinghamshire County Council,01-02855,LLOYDS TSB AUTOLEASE LIMITED,Transport and Travel,Motor Vehicles,0,-0.01,-0.01,07-Apr-11,TBC
Nottinghamshire County Council,01-02890,MAKING IT! ENTERPRISES LIMITED,External Services (Highways and Culture),Sports and Recreational Equipment and Supplies,0,"2,042.99","2,042.99",08-Apr-11,TBC
Nottinghamshire County Council,01-02891,SHELLEY SIGNS,Soft Facilities Management,Printed Media and Signage,0,238,238,27-Apr-11,TBC
Nottinghamshire County Council,01-02892,NETWORK RAIL,Transport and Travel,Rail and Air Travel,0,"7,739.60","7,739.60",08-Apr-11,TBC
Nottinghamshire County Council,01-02893,FRESH OPPORTUNITIES LIMITED,Soft Facilities Management,Beverages,0,113.88,113.88,08-Apr-11,TBC
Nottinghamshire County Council,01-02894,CAPITA SOCIAL CARE and HOUSING,Care,Domiciliary Care,0,92.7,92.7,21-Apr-11,TBC
Nottinghamshire County Council,01-02895,CAPITA SOCIAL CARE and HOUSING,Care,Domiciliary Care,0,135.9,135.9,14-Apr-11,TBC
Nottinghamshire County Council,01-02896,ORCHARD MEDICAL RECRUITMENT LIMITED,People,Recruitment,0,217.01,217.01,11-Apr-11,TBC
Nottinghamshire County Council,01-02897,ORCHARD MEDICAL RECRUITMENT LIMITED,People,Recruitment,0,218.93,218.93,11-Apr-11,TBC
Nottinghamshire County Council,01-02898,CAPITA SOCIAL CARE and HOUSING,Care,Domiciliary Care,0,244.24,244.24,21-Apr-11,TBC
Nottinghamshire County Council,01-02900,BUS SHELTERS LIMITED,Transport and Travel,Bus,0,495.95,495.95,08-Apr-11,TBC
Nottinghamshire County Council,01-02908,DDC DOLPHIN LIMITED,Soft Facilities Management,Cleaning Equipment and Janitorial Supplies,0,105.49,105.49,08-Apr-11,TBC
Nottinghamshire County Council,01-02909,COMPUTER AND DESIGN SERVICES LIMITED,ICT,"Printing and Publishing, Equipment and Supplies",0,354,354,08-Apr-11,TBC
Nottinghamshire County Council,01-02910,CAPITA SOCIAL CARE and HOUSING,Care,Domiciliary Care,0,149.5,149.5,08-Apr-11,TBC
Nottinghamshire County Council,01-02911,CAPITA SOCIAL CARE and HOUSING,Care,Domiciliary Care,0,126.37,126.37,08-Apr-11,TBC
Nottinghamshire County Council,01-02912,EMO OIL LIMITED,Hard Facilities Management ,Utilities,0,468.02,468.02,08-Apr-11,TBC
Nottinghamshire County Council,01-02913,EMO OIL LIMITED,Hard Facilities Management ,Utilities,0,337.08,337.08,08-Apr-11,TBC
Nottinghamshire County Council,01-02914,INCLUSIVE SOLUTIONS UK LIMITED,External Services (Highways and Culture),Education Services,0,713.2,713.2,08-Apr-11,TBC
Nottinghamshire County Council,01-02915,A4E CONSULT LIMITED,Professional Services,Consultancy,0,136.5,136.5,14-Apr-11,TBC
Nottinghamshire County Council,01-02916,CRICK SOFTWARE LIMITED,ICT,Software,0,91.19,91.19,08-Apr-11,TBC
Nottinghamshire County Council,01-02917,TOTS ON TOUR LIMITED,External Services (Highways and Culture),Education Services,0,"1,226.58","1,226.58",08-Apr-11,TBC
Nottinghamshire County Council,01-02918,MAKING IT! ENTERPRISES LIMITED,External Services (Highways and Culture),Sports and Recreational Equipment and Supplies,0,198.69,198.69,08-Apr-11,TBC
Nottinghamshire County Council,01-02919,M T H SERVICES,TBC,TBC,0,140,140,11-Apr-11,TBC
Nottinghamshire County Council,01-02921,CYCLESCHEME LIMITED,External Services (Highways and Culture),Sports and Recreational Equipment and Supplies,0,214.49,214.49,08-Apr-11,TBC
Nottinghamshire County Council,01-02922,CHIPSIDE LIMITED,ICT,Software,0,477.59,477.59,08-Apr-11,TBC
Nottinghamshire County Council,01-02923,REED EMPLOYMENT PLC,People,Recruitment,0,259,259,08-Apr-11,TBC
Nottinghamshire County Council,01-02925,CAPITA SOCIAL CARE and HOUSING,Care,Domiciliary Care,0,113.52,113.52,08-Apr-11,TBC
Nottinghamshire County Council,01-02927,MEDICARE FIRST,Care,Medical Equipment and  Supplies,0,360.67,360.67,19-Apr-11,TBC
Nottinghamshire County Council,01-02928,VENTURE4LIFE,External Services (Highways and Culture),Education Services,0,660,660,08-Apr-11,TBC
Nottinghamshire County Council,01-02929,TMH (WEST HALLAM) LIMITED,People,Agency Staff - Manual,0,326.09,326.09,08-Apr-11,TBC
Nottinghamshire County Council,01-02931,NOTTINGHAM CITY COUNCIL,Professional Services,Politics and Civic Affairs,0,650,650,20-Apr-11,TBC
Nottinghamshire County Council,01-02934,CAPITA SOCIAL CARE and HOUSING,Care,Domiciliary Care,0,174.3,174.3,21-Apr-11,TBC
Nottinghamshire County Council,01-02935,NETWORK RAIL,Transport and Travel,Rail and Air Travel,0,296.2,296.2,08-Apr-11,TBC
Nottinghamshire County Council,01-02936,KB RECRUITMENT LIMITED,People,Recruitment,0,87.29,87.29,11-Apr-11,TBC
Nottinghamshire County Council,01-02937,KB RECRUITMENT LIMITED,People,Recruitment,0,193.55,193.55,11-Apr-11,TBC
Nottinghamshire County Council,01-02938,SHEFFIELD FAMILY LAW ASSOCIATES,Professional Services,Legal Services,0,90.05,90.05,18-Apr-11,TBC
Nottinghamshire County Council,01-02939,ILX GROUP PLC,People,Vocational Training,0,"1,200.00","1,200.00",08-Apr-11,TBC
Nottinghamshire County Council,01-02940,CAPITA SOCIAL CARE and HOUSING,Care,Domiciliary Care,0,93.15,93.15,08-Apr-11,TBC
Nottinghamshire County Council,01-02943,ITT WATER and WASTEWATER UK LIMITED,Soft Facilities Management,Environmental Services,0,"1,036.35","1,036.35",08-Apr-11,TBC
Nottinghamshire County Council,01-02944,CAPITA SOCIAL CARE and HOUSING,Care,Domiciliary Care,0,87.18,87.18,21-Apr-11,TBC
Nottinghamshire County Council,01-02945,CHARLES LAWRENCE INTERNATIONAL Limited,External Services (Highways and Culture),Manufacturing Machinery,0,763.72,763.72,27-Apr-11,TBC
Nottinghamshire County Council,01-02946,TRENT AND PEAK ARCHAEOLOGICAL UNIT,Professional Services,Professional Engineering Services,0,339,339,11-Apr-11,TBC
Nottinghamshire County Council,01-02949,SPECIALIST COMPUTER CENTRES LIMITED,ICT,Computer services,0,"4,474.94","4,474.94",27-Apr-11,TBC
Nottinghamshire County Council,01-02953,CAPITA,Professional Services,Consultancy,0,"2,548.00","2,548.00",08-Apr-11,TBC
Nottinghamshire County Council,01-02956,STOURTON FORESTRY,External Services (Highways and Culture),Farming Forestry and Wildlife Services,0,378.8,378.8,08-Apr-11,TBC
Nottinghamshire County Council,01-02960,SIMPKIN and ICKE LIMITED,Hard Facilities Management ,Material Handling and Storage,0,186.34,186.34,08-Apr-11,TBC
Nottinghamshire County Council,01-02964,DCM HEALTHCARE,Care,Healthcare Services,0,113.2,113.2,18-Apr-11,TBC
Nottinghamshire County Council,01-02965,KB RECRUITMENT LIMITED,People,Recruitment,0,506.81,506.81,11-Apr-11,TBC
Nottinghamshire County Council,01-02966,STOR-A-FILE LIMITED,Hard Facilities Management ,Material Handling and Storage,0,161.3,161.3,18-Apr-11,TBC
Nottinghamshire County Council,01-03004,BW PARTNERSHIP,Professional Services,Consultancy,0,-0.01,-0.01,11-Apr-11,TBC
Nottinghamshire County Council,01-03005,BW PARTNERSHIP,Professional Services,Consultancy,0,-0.01,-0.01,11-Apr-11,TBC
Nottinghamshire County Council,01-03007,BW PARTNERSHIP,Professional Services,Consultancy,0,-0.01,-0.01,11-Apr-11,TBC
Nottinghamshire County Council,01-03008,BW PARTNERSHIP,Professional Services,Consultancy,0,-0.01,-0.01,11-Apr-11,TBC
Nottinghamshire County Council,01-03009,BW PARTNERSHIP,Professional Services,Consultancy,0,-0.01,-0.01,11-Apr-11,TBC
Nottinghamshire County Council,01-03075,BESTWOOD LODGE HOTEL,Transport and Travel,Hotels and Venues,0,0.01,0.01,08-Apr-11,TBC
Nottinghamshire County Council,01-03096,INTELLIDENT LIMITED,Care,Infant Or Child Daycare Services,0,392,392,08-Apr-11,TBC
Nottinghamshire County Council,01-03184,ENNSTONE JOHNSTON LIMITED,External Services (Highways and Culture),Earth and Stone Aggregates ,0,0.01,0.01,26-Apr-11,TBC
Nottinghamshire County Council,01-03185,ENNSTONE JOHNSTON LIMITED,External Services (Highways and Culture),Earth and Stone Aggregates ,0,0.01,0.01,11-Apr-11,TBC
Nottinghamshire County Council,01-03186,ENNSTONE JOHNSTON LIMITED,External Services (Highways and Culture),Earth and Stone Aggregates ,0,-0.01,-0.01,26-Apr-11,TBC
Nottinghamshire County Council,01-03187,ENNSTONE JOHNSTON LIMITED,External Services (Highways and Culture),Earth and Stone Aggregates ,0,-0.01,-0.01,11-Apr-11,TBC
Nottinghamshire County Council,01-03210,BRAKE BROS LIMITED,Soft Facilities Management,Prepared and preserved foods,0,-0.03,-0.03,08-Apr-11,TBC
Nottinghamshire County Council,01-03211,BRAKE BROS LIMITED,Soft Facilities Management,Prepared and preserved foods,0,0.02,0.02,11-Apr-11,TBC
Nottinghamshire County Council,01-03217,PROCYON LIMITED,ICT,Audio and visual equipment,0,411.4,411.4,11-Apr-11,TBC
Nottinghamshire County Council,01-03218,EXTERNITURE LIMITED,TBC,TBC,0,630,630,28-Apr-11,TBC
Nottinghamshire County Council,01-03221,COLUMBUS TRADING LIMITED,External Services (Highways and Culture),Organisations and Clubs,0,290,290,13-Apr-11,TBC
Nottinghamshire County Council,01-03222,COLUMBUS TRADING LIMITED,External Services (Highways and Culture),Organisations and Clubs,0,290,290,13-Apr-11,TBC
Nottinghamshire County Council,01-03223,SHEFFIELD FAMILY LAW ASSOCIATES,Professional Services,Legal Services,0,355.28,355.28,18-Apr-11,TBC
Nottinghamshire County Council,01-03224,GARNERS CATERING EQUIPMENT LIMITED,Soft Facilities Management,Restaurants and Catering,0,337.41,337.41,11-Apr-11,TBC
Nottinghamshire County Council,01-03226,SHEFFIELD FAMILY LAW ASSOCIATES,Professional Services,Legal Services,0,88.17,88.17,18-Apr-11,TBC
Nottinghamshire County Council,01-03227,INTEGRITAS ADVOCACY CIC,External Services (Highways and Culture),Education Services,0,110.7,110.7,11-Apr-11,TBC
Nottinghamshire County Council,01-03228,SHEFFIELD FAMILY LAW ASSOCIATES,Professional Services,Legal Services,0,139.86,139.86,18-Apr-11,TBC
Nottinghamshire County Council,01-03229,CBN,External Services (Highways and Culture),Organisations and Clubs,0,160,160,27-Apr-11,TBC
Nottinghamshire County Council,01-03230,SWIIS (UK) LIMITED,People,Agency Staff - Care,0,96.45,96.45,26-Apr-11,TBC
Nottinghamshire County Council,01-03231,SWIIS (UK) LIMITED,People,Agency Staff - Care,0,167.09,167.09,26-Apr-11,TBC
Nottinghamshire County Council,01-03232,CAPITA SOCIAL CARE and HOUSING,Care,Domiciliary Care,0,100.26,100.26,21-Apr-11,TBC
Nottinghamshire County Council,01-03233,CAPITA SOCIAL CARE and HOUSING,Care,Domiciliary Care,0,122.5,122.5,21-Apr-11,TBC
Nottinghamshire County Council,01-03234,ROMPA LIMITED,Care,Mental Health Services,0,95.17,95.17,11-Apr-11,TBC
Nottinghamshire County Council,01-03236,SHEFFIELD FAMILY LAW ASSOCIATES,Professional Services,Legal Services,0,148.12,148.12,18-Apr-11,TBC
Nottinghamshire County Council,01-03237,SHEFFIELD FAMILY LAW ASSOCIATES,Professional Services,Legal Services,0,294.05,294.05,18-Apr-11,TBC
Nottinghamshire County Council,01-03238,SHEFFIELD FAMILY LAW ASSOCIATES,Professional Services,Legal Services,0,266.87,266.87,18-Apr-11,TBC
Nottinghamshire County Council,01-03239,SHEFFIELD FAMILY LAW ASSOCIATES,Professional Services,Legal Services,0,105.57,105.57,18-Apr-11,TBC
Nottinghamshire County Council,01-03240,SHEFFIELD FAMILY LAW ASSOCIATES,Professional Services,Legal Services,0,115.04,115.04,18-Apr-11,TBC
Nottinghamshire County Council,01-03241,SHEFFIELD FAMILY LAW ASSOCIATES,Professional Services,Legal Services,0,227.29,227.29,18-Apr-11,TBC
Nottinghamshire County Council,01-03242,VERTECH PLANTS,External Services (Highways and Culture),Plant and Animal Supplies,0,93.8,93.8,27-Apr-11,TBC
Nottinghamshire County Council,01-03243,VERTECH PLANTS,External Services (Highways and Culture),Plant and Animal Supplies,0,93.8,93.8,27-Apr-11,TBC
Nottinghamshire County Council,01-03244,BLACK SHEEP PRESS,TBC,TBC,0,168,168,11-Apr-11,TBC
Nottinghamshire County Council,01-03245,WEST YORKSHIRE PTE,TBC,TBC,0,"1,200.00","1,200.00",28-Apr-11,TBC
Nottinghamshire County Council,01-03246,STOPFORD INFORMATION SYSTEMS LIMITED,ICT,Software,0,618,618,11-Apr-11,TBC
Nottinghamshire County Council,01-03247,CAPITA SOCIAL CARE and HOUSING,Care,Domiciliary Care,0,152.01,152.01,14-Apr-11,TBC
Nottinghamshire County Council,01-03248,JH TRAINING and DEVELOPMENT,People,Vocational Training,0,100,100,11-Apr-11,TBC
Nottinghamshire County Council,01-03249,CAPITA SOCIAL CARE and HOUSING,Care,Domiciliary Care,0,89.31,89.31,11-Apr-11,TBC
Nottinghamshire County Council,01-03250,ATKINS LIMITED,Professional Services,Consultancy,0,415.5,415.5,11-Apr-11,TBC
Nottinghamshire County Council,01-03251,AZURE SUPPORT SERVICES LIMITED,Soft Facilities Management,Prepared and preserved foods,0,98.7,98.7,11-Apr-11,TBC
Nottinghamshire County Council,01-03252,WARWICKSHIRE COUNTY COUNCIL,Professional Services,Politics and Civic Affairs,0,120,120,18-Apr-11,TBC
Nottinghamshire County Council,01-03253,SLACK and CO FLOORCOVERINGS,Soft Facilities Management,Furniture and Furnishings,0,157.4,157.4,11-Apr-11,TBC
Nottinghamshire County Council,01-03254,MEDICARE FIRST,Care,Medical Equipment and  Supplies,0,292.3,292.3,19-Apr-11,TBC
Nottinghamshire County Council,01-03255,INCLUSIVE SOLUTIONS UK LIMITED,External Services (Highways and Culture),Education Services,0,94.55,94.55,11-Apr-11,TBC
Nottinghamshire County Council,01-03256,THE BEECHES,Transport and Travel,Hotels and Venues,0,198,198,11-Apr-11,TBC
Nottinghamshire County Council,01-03257,ACADEMY SOCIAL CARE LIMITED,Care,Domiciliary Care,0,94.34,94.34,11-Apr-11,TBC
Nottinghamshire County Council,01-03258,ACADEMY SOCIAL CARE LIMITED,Care,Domiciliary Care,0,118.33,118.33,11-Apr-11,TBC
Nottinghamshire County Council,01-03259,ALFRED MCALPINE BUSINESS SERVICES LIMITED,Professional Services,Consultancy,0,439.72,439.72,11-Apr-11,TBC
Nottinghamshire County Council,01-03261,SMARTT SOFTWARE LIMITED,ICT,Software,0,"1,508.24","1,508.24",11-Apr-11,TBC
Nottinghamshire County Council,01-03319,WALKER OF ASHBOURNE,External Services (Highways and Culture),Construction Plant and Equipment,0,-25.87,-25.87,11-Apr-11,TBC
Nottinghamshire County Council,01-03321,ENNSTONE JOHNSTON LIMITED,External Services (Highways and Culture),Earth and Stone Aggregates ,0,-0.01,-0.01,11-Apr-11,TBC
Nottinghamshire County Council,01-03328,ENNSTONE JOHNSTON LIMITED,External Services (Highways and Culture),Earth and Stone Aggregates ,0,0.01,0.01,11-Apr-11,TBC
Nottinghamshire County Council,01-03351,ORCHARD HILL FARM MACHINERY,TBC,TBC,0,-161,-161,20-Apr-11,TBC
Nottinghamshire County Council,01-03371,MAUN MOTORS SELF DRIVE,Transport and Travel,Motor Vehicles,0,-0.1,-0.1,11-Apr-11,TBC
Nottinghamshire County Council,01-03390,BUS SHELTERS LIMITED,Transport and Travel,Bus,0,533.15,533.15,12-Apr-11,TBC
Nottinghamshire County Council,01-03391,WILLIAM FREER LIMITED,Soft Facilities Management,Vending Machines and Food Equipment,0,127.66,127.66,12-Apr-11,TBC
Nottinghamshire County Council,01-03419,NORTHCLIFFE MEDIA LIMITED,ICT,Telecommunications and Media,0,-0.03,-0.03,13-Apr-11,TBC
Nottinghamshire County Council,01-03420,TSL EDUCATION LIMITED,External Services (Highways and Culture),Education Services,0,-0.06,-0.06,13-Apr-11,TBC
Nottinghamshire County Council,01-03483,HIRST SIGNS LIMITED,Soft Facilities Management,Printed Media and Signage,0,-0.01,-0.01,26-Apr-11,TBC
Nottinghamshire County Council,01-03489,EXPRESS ASPHALT LIMITED,External Services (Highways and Culture),Highways and Works,0,0.01,0.01,18-Apr-11,TBC
Nottinghamshire County Council,01-03491,NEWARK CONCRETE,Hard Facilities Management ,Concrete installation and repair services,0,0.01,0.01,21-Apr-11,TBC
Nottinghamshire County Council,01-03723,REGATTA LIMITED,Soft Facilities Management,Clothing,0,0.03,0.03,13-Apr-11,TBC
Nottinghamshire County Council,01-03724,REGATTA LIMITED,Soft Facilities Management,Clothing,0,0.03,0.03,13-Apr-11,TBC
Nottinghamshire County Council,01-03726,HULLEYS,Soft Facilities Management,Frozen Goods,0,-0.01,-0.01,13-Apr-11,TBC
Nottinghamshire County Council,01-03727,HULLEYS,Soft Facilities Management,Frozen Goods,0,-0.01,-0.01,13-Apr-11,TBC
Nottinghamshire County Council,01-03823,EDF ENERGY,Hard Facilities Management ,Utilities,0,0.01,0.01,14-Apr-11,TBC
Nottinghamshire County Council,01-03984,KEYCRAFT (NOTTINGHAM) LIMITED,External Services (Highways and Culture),Arts and Crafts,0,0.01,0.01,27-Apr-11,TBC
Nottinghamshire County Council,01-03993,REGATTA LIMITED,Soft Facilities Management,Clothing,0,0.03,0.03,14-Apr-11,TBC
Nottinghamshire County Council,01-03994,REGATTA LIMITED,Soft Facilities Management,Clothing,0,0.04,0.04,14-Apr-11,TBC
Nottinghamshire County Council,01-04007,REGATTA LIMITED,Soft Facilities Management,Clothing,0,0.07,0.07,14-Apr-11,TBC
Nottinghamshire County Council,01-04008,REGATTA LIMITED,Soft Facilities Management,Clothing,0,0.07,0.07,14-Apr-11,TBC
Nottinghamshire County Council,01-04105,NEWARK CONCRETE,Hard Facilities Management ,Concrete installation and repair services,0,0.01,0.01,26-Apr-11,TBC
Nottinghamshire County Council,01-04200,JOHNSTON PUBLISHING LIMITED,ICT,"Printing and Publishing, Equipment and Supplies",0,0.05,0.05,18-Apr-11,TBC
Nottinghamshire County Council,01-04219,BRAKE BROS LIMITED,Soft Facilities Management,Prepared and preserved foods,0,-0.04,-0.04,15-Apr-11,TBC
Nottinghamshire County Council,01-04366,REGATTA LIMITED,Soft Facilities Management,Clothing,0,0.03,0.03,15-Apr-11,TBC
Nottinghamshire County Council,01-04367,REGATTA LIMITED,Soft Facilities Management,Clothing,0,0.05,0.05,15-Apr-11,TBC
Nottinghamshire County Council,01-04368,REGATTA LIMITED,Soft Facilities Management,Clothing,0,0.05,0.05,15-Apr-11,TBC
Nottinghamshire County Council,01-04373,REGATTA LIMITED,Soft Facilities Management,Clothing,0,-0.03,-0.03,15-Apr-11,TBC
Nottinghamshire County Council,01-04374,REGATTA LIMITED,Soft Facilities Management,Clothing,0,-0.05,-0.05,15-Apr-11,TBC
Nottinghamshire County Council,01-04375,REGATTA LIMITED,Soft Facilities Management,Clothing,0,-0.05,-0.05,15-Apr-11,TBC
Nottinghamshire County Council,01-04429,INTELLIDENT LIMITED,Care,Infant Or Child Daycare Services,0,620.4,620.4,18-Apr-11,TBC
Nottinghamshire County Council,01-04430,CAPITA SOCIAL CARE and HOUSING,Care,Domiciliary Care,0,105.79,105.79,28-Apr-11,TBC
Nottinghamshire County Council,01-04431,BUS SHELTERS LIMITED,Transport and Travel,Bus,0,909.18,909.18,18-Apr-11,TBC
Nottinghamshire County Council,01-04432,NOTTINGHAM SECURITY LIMITED,Soft Facilities Management,Security,0,159.59,159.59,18-Apr-11,TBC
Nottinghamshire County Council,01-04433,NOTTINGHAM SECURITY LIMITED,Soft Facilities Management,Security,0,133.85,133.85,18-Apr-11,TBC
Nottinghamshire County Council,01-04434,NOTTINGHAM SECURITY LIMITED,Soft Facilities Management,Security,0,137.28,137.28,18-Apr-11,TBC
Nottinghamshire County Council,01-04435,POSITIVE PEOPLE COMPANY,Care,Personal and Domestic Services,0,870,870,18-Apr-11,TBC
Nottinghamshire County Council,01-04436,CALANDINE LIFTS LIMITED,External Services (Highways and Culture),Manufacturing Machinery,0,122,122,18-Apr-11,TBC
Nottinghamshire County Council,01-04446,REDSPEED INTERNATION LIMITED,External Services (Highways and Culture),Highways and Works,0,"14,257.98","14,257.98",21-Apr-11,TBC
Nottinghamshire County Council,01-04447,REDSPEED INTERNATION LIMITED,External Services (Highways and Culture),Highways and Works,0,"14,675.84","14,675.84",21-Apr-11,TBC
Nottinghamshire County Council,01-04448,CYCLESCHEME LIMITED,External Services (Highways and Culture),Sports and Recreational Equipment and Supplies,0,83.33,83.33,18-Apr-11,TBC
Nottinghamshire County Council,01-04449,SWIM SPECIALIST RECRUITMENT,People,Recruitment,0,342.6,342.6,28-Apr-11,TBC
Nottinghamshire County Council,01-04450,EDEN BROWN LIMITED,People,Recruitment,0,221.48,221.48,26-Apr-11,TBC
Nottinghamshire County Council,01-04451,EVRO Limited T/A EVRO RECRUIT,People,Recruitment,0,134.14,134.14,27-Apr-11,TBC
Nottinghamshire County Council,01-04452,KB RECRUITMENT LIMITED,People,Recruitment,0,288.6,288.6,18-Apr-11,TBC
Nottinghamshire County Council,01-04453,MEDICARE FIRST,Care,Medical Equipment and  Supplies,0,310.8,310.8,27-Apr-11,TBC
Nottinghamshire County Council,01-04454,OUTCOMES UK,People,Recruitment,0,703,703,18-Apr-11,TBC
Nottinghamshire County Council,01-04455,FRONTLINE,Hard Facilities Management ,Plumbing Services,0,295.19,295.19,21-Apr-11,TBC
Nottinghamshire County Council,01-04456,FRONTLINE,Hard Facilities Management ,Plumbing Services,0,295.19,295.19,28-Apr-11,TBC
Nottinghamshire County Council,01-04457,MEDICARE FIRST,Care,Medical Equipment and  Supplies,0,355.2,355.2,27-Apr-11,TBC
Nottinghamshire County Council,01-04458,MEDICARE FIRST,Care,Medical Equipment and  Supplies,0,292.3,292.3,27-Apr-11,TBC
Nottinghamshire County Council,01-04459,MEDICARE FIRST,Care,Medical Equipment and  Supplies,0,292.3,292.3,27-Apr-11,TBC
Nottinghamshire County Council,01-04461,KB RECRUITMENT LIMITED,People,Recruitment,0,115.1,115.1,18-Apr-11,TBC
Nottinghamshire County Council,01-04462,CAPITA SOCIAL CARE and HOUSING,Care,Domiciliary Care,0,113.52,113.52,21-Apr-11,TBC
Nottinghamshire County Council,01-04463,CAPITA SOCIAL CARE and HOUSING,Care,Domiciliary Care,0,113.52,113.52,18-Apr-11,TBC
Nottinghamshire County Council,01-04464,CAPITA SOCIAL CARE and HOUSING,Care,Domiciliary Care,0,113.52,113.52,18-Apr-11,TBC
Nottinghamshire County Council,01-04465,CAPITA SOCIAL CARE and HOUSING,Care,Domiciliary Care,0,113.52,113.52,18-Apr-11,TBC
Nottinghamshire County Council,01-04466,CAPITA SOCIAL CARE and HOUSING,Care,Domiciliary Care,0,113.52,113.52,18-Apr-11,TBC
Nottinghamshire County Council,01-04467,CAPITA SOCIAL CARE and HOUSING,Care,Domiciliary Care,0,113.52,113.52,18-Apr-11,TBC
Nottinghamshire County Council,01-04468,CAPITA SOCIAL CARE and HOUSING,Care,Domiciliary Care,0,113.52,113.52,21-Apr-11,TBC
Nottinghamshire County Council,01-04469,CAPITA SOCIAL CARE and HOUSING,Care,Domiciliary Care,0,113.52,113.52,18-Apr-11,TBC
Nottinghamshire County Council,01-04470,CAPITA SOCIAL CARE and HOUSING,Care,Domiciliary Care,0,113.52,113.52,21-Apr-11,TBC
Nottinghamshire County Council,01-04471,CAPITA SOCIAL CARE and HOUSING,Care,Domiciliary Care,0,113.52,113.52,21-Apr-11,TBC
Nottinghamshire County Council,01-04472,CAPITA SOCIAL CARE and HOUSING,Care,Domiciliary Care,0,113.52,113.52,18-Apr-11,TBC
Nottinghamshire County Council,01-04473,CAPITA SOCIAL CARE and HOUSING,Care,Domiciliary Care,0,113.52,113.52,18-Apr-11,TBC
Nottinghamshire County Council,01-04474,CAPITA SOCIAL CARE and HOUSING,Care,Domiciliary Care,0,113.52,113.52,18-Apr-11,TBC
Nottinghamshire County Council,01-04475,CAPITA SOCIAL CARE and HOUSING,Care,Domiciliary Care,0,113.52,113.52,21-Apr-11,TBC
Nottinghamshire County Council,01-04476,CAPITA SOCIAL CARE and HOUSING,Care,Domiciliary Care,0,117.12,117.12,18-Apr-11,TBC
Nottinghamshire County Council,01-04477,CAPITA SOCIAL CARE and HOUSING,Care,Domiciliary Care,0,113.52,113.52,18-Apr-11,TBC
Nottinghamshire County Council,01-04478,SIEMENS PLC,Hard Facilities Management ,Electrical Systems and Lighting,0,199.92,199.92,18-Apr-11,TBC
Nottinghamshire County Council,01-04479,TELEVISION INSTALL.SERV MANSFIELD LIMITED,ICT,Telecommunications and Media,0,90,90,18-Apr-11,TBC
Nottinghamshire County Council,01-04480,SQUIDCARD LIMITED,Professional Services,Financial and Insurance Services,0,"2,984.32","2,984.32",28-Apr-11,TBC
Nottinghamshire County Council,01-04481,KEN BURROWS LIMITED,Hard Facilities Management ,Electrical Systems and Lighting,0,91.99,91.99,18-Apr-11,TBC
Nottinghamshire County Council,01-04482,WILLIAM FREER LIMITED,Soft Facilities Management,Vending Machines and Food Equipment,0,313.34,313.34,18-Apr-11,TBC
Nottinghamshire County Council,01-04483,SQUIDCARD LIMITED,Professional Services,Financial and Insurance Services,0,"2,737.63","2,737.63",28-Apr-11,TBC
Nottinghamshire County Council,01-04484,SHELTER MAINTENANCE CO,Hard Facilities Management ,Building Construction Services,0,172,172,18-Apr-11,TBC
Nottinghamshire County Council,01-04485,BUS SHELTERS LIMITED,Transport and Travel,Bus,0,664,664,18-Apr-11,TBC
Nottinghamshire County Council,01-04486,CARDEA,Care,Healthcare Services,0,376.82,376.82,19-Apr-11,TBC
Nottinghamshire County Council,01-04488,POSITIVE OPTIONS LIMITED,Professional Services,Consultancy,0,193.78,193.78,18-Apr-11,TBC
Nottinghamshire County Council,01-04489,WATCH-IT SECURITY SERVICES,Soft Facilities Management,Security,0,273,273,18-Apr-11,TBC
Nottinghamshire County Council,01-04490,NOTTINGHAM CITY COUNCIL,Professional Services,Politics and Civic Affairs,0,37.73,37.73,21-Apr-11,TBC
Nottinghamshire County Council,01-04491,FOREVER FUELS LIMITED,Transport and Travel,Gas fuels and lubricants ,0,43.75,43.75,18-Apr-11,TBC
Nottinghamshire County Council,01-04492,STANLEY SECURITY SOLUTIONS,Soft Facilities Management,Security,0,"1,180.00","1,180.00",18-Apr-11,TBC
Nottinghamshire County Council,01-04494,CAPITA SOCIAL CARE and HOUSING,Care,Domiciliary Care,0,140.24,140.24,28-Apr-11,TBC
Nottinghamshire County Council,01-04495,CAPITA SOCIAL CARE and HOUSING,Care,Domiciliary Care,0,143.81,143.81,21-Apr-11,TBC
Nottinghamshire County Council,01-04537,EMO OIL LIMITED,Hard Facilities Management ,Utilities,0,-99.56,-99.56,18-Apr-11,TBC
Nottinghamshire County Council,01-04538,MATTERSEY PARISH COUNCIL,Public Bodies,Public Bodies,0,-240.98,-240.98,18-Apr-11,TBC
Nottinghamshire County Council,01-04548,WEIGHTMANS LLP,Professional Services,Legal Services,0,-0.01,-0.01,18-Apr-11,TBC
Nottinghamshire County Council,01-04626,WILLIAM FREER LIMITED,Soft Facilities Management,Vending Machines and Food Equipment,0,584.6,584.6,18-Apr-11,TBC
Nottinghamshire County Council,01-04636,CENTRAL NETWORKS,Hard Facilities Management ,Utilities,0,"13,449.52","13,449.52",19-Apr-11,TBC
Nottinghamshire County Council,01-04637,SODEXO PRESTIGE LIMITED,Soft Facilities Management,Vending Machines and Food Equipment,0,120,120,19-Apr-11,TBC
Nottinghamshire County Council,01-04638,RIGBY TAYLOR LIMITED,Hard Facilities Management ,Facilities Maintenance and Repair,0,113.4,113.4,19-Apr-11,TBC
Nottinghamshire County Council,01-04639,NUMATIC INTERNATIONAL LIMITED,Soft Facilities Management,Cleaning Equipment and Janitorial Supplies,0,242.48,242.48,19-Apr-11,TBC
Nottinghamshire County Council,01-04640,NUMATIC INTERNATIONAL LIMITED,Soft Facilities Management,Cleaning Equipment and Janitorial Supplies,0,176.7,176.7,19-Apr-11,TBC
Nottinghamshire County Council,01-04641,CAPITA SOCIAL CARE and HOUSING,Care,Domiciliary Care,0,87.86,87.86,19-Apr-11,TBC
Nottinghamshire County Council,01-04643,WILLIAM FREER LIMITED,Soft Facilities Management,Vending Machines and Food Equipment,0,148.85,148.85,19-Apr-11,TBC
Nottinghamshire County Council,01-04644,KEN BURROWS LIMITED,Hard Facilities Management ,Electrical Systems and Lighting,0,183.98,183.98,19-Apr-11,TBC
Nottinghamshire County Council,01-04645,CARDEA,Care,Healthcare Services,0,138.76,138.76,19-Apr-11,TBC
Nottinghamshire County Council,01-04648,CAPITA SOCIAL CARE and HOUSING,Care,Domiciliary Care,0,113.52,113.52,19-Apr-11,TBC
Nottinghamshire County Council,01-04649,B N A,People,Recruitment,0,108.34,108.34,19-Apr-11,TBC
Nottinghamshire County Council,01-04650,ASTOR-BANNERMAN (MEDICAL) LIMITED,Care,Healthcare Services,0,467.8,467.8,27-Apr-11,TBC
Nottinghamshire County Council,01-04651,G and S SMIRTHWAITE LIMITED,Soft Facilities Management,Furniture and Furnishings,0,106.4,106.4,19-Apr-11,TBC
Nottinghamshire County Council,01-04652,LIFE CHANNEL LIMITED,ICT,Telecommunications and Media,0,300,300,19-Apr-11,TBC
Nottinghamshire County Council,01-04653,LIFE CHANNEL LIMITED,ICT,Telecommunications and Media,0,300,300,19-Apr-11,TBC
Nottinghamshire County Council,01-04654,LIFE CHANNEL LIMITED,ICT,Telecommunications and Media,0,300,300,19-Apr-11,TBC
Nottinghamshire County Council,01-04655,LIFE CHANNEL LIMITED,ICT,Telecommunications and Media,0,300,300,19-Apr-11,TBC
Nottinghamshire County Council,01-04656,LIFE CHANNEL LIMITED,ICT,Telecommunications and Media,0,300,300,19-Apr-11,TBC
Nottinghamshire County Council,01-04657,LIFE CHANNEL LIMITED,ICT,Telecommunications and Media,0,300,300,19-Apr-11,TBC
Nottinghamshire County Council,01-04659,CAPITA SOCIAL CARE and HOUSING,Care,Domiciliary Care,0,100.26,100.26,28-Apr-11,TBC
Nottinghamshire County Council,01-04660,CAPITA SOCIAL CARE and HOUSING,Care,Domiciliary Care,0,87.18,87.18,28-Apr-11,TBC
Nottinghamshire County Council,01-04662,PORTABLE APPLIANCE SAFETY SERVICES LIMITED,Hard Facilities Management ,Health and Safety,0,490.2,490.2,19-Apr-11,TBC
Nottinghamshire County Council,01-04663,REED EMPLOYMENT PLC,People,Recruitment,0,199.8,199.8,19-Apr-11,TBC
Nottinghamshire County Council,01-04664,REED EMPLOYMENT PLC,People,Recruitment,0,162,162,19-Apr-11,TBC
Nottinghamshire County Council,01-04665,CARDEA,Care,Healthcare Services,0,130.46,130.46,19-Apr-11,TBC
Nottinghamshire County Council,01-04666,CAPITA SOCIAL CARE and HOUSING,Care,Domiciliary Care,0,134.09,134.09,28-Apr-11,TBC
Nottinghamshire County Council,01-04667,CAPITA SOCIAL CARE and HOUSING,Care,Domiciliary Care,0,113.52,113.52,28-Apr-11,TBC
Nottinghamshire County Council,01-04668,CAPITA SOCIAL CARE and HOUSING,Care,Domiciliary Care,0,115.05,115.05,28-Apr-11,TBC
Nottinghamshire County Council,01-04669,CAPITA SOCIAL CARE and HOUSING,Care,Domiciliary Care,0,96.64,96.64,28-Apr-11,TBC
Nottinghamshire County Council,01-04671,UNIVERSAL LOCUMS,People,Recruitment,0,199.8,199.8,19-Apr-11,TBC
Nottinghamshire County Council,01-04672,UNIVERSAL LOCUMS,People,Recruitment,0,206.5,206.5,19-Apr-11,TBC
Nottinghamshire County Council,01-04673,CARDEA,Care,Healthcare Services,0,106.5,106.5,27-Apr-11,TBC
Nottinghamshire County Council,01-04674,UNIVERSAL LOCUMS,People,Recruitment,0,162,162,19-Apr-11,TBC
Nottinghamshire County Council,01-04675,CARDEA,Care,Healthcare Services,0,132.24,132.24,27-Apr-11,TBC
Nottinghamshire County Council,01-04676,OUTCOMES UK,People,Recruitment,0,"1,169.52","1,169.52",19-Apr-11,TBC
Nottinghamshire County Council,01-04677,RECRUITMENT SPECIALIST GROUP LIMITED,People,Recruitment,0,352.09,352.09,19-Apr-11,TBC
Nottinghamshire County Council,01-04678,CARDEA,Care,Healthcare Services,0,136.68,136.68,19-Apr-11,TBC
Nottinghamshire County Council,01-04679,CARDEA,Care,Healthcare Services,0,117.15,117.15,19-Apr-11,TBC
Nottinghamshire County Council,01-04680,ACADEMY SOCIAL CARE LIMITED,Care,Domiciliary Care,0,200.92,200.92,19-Apr-11,TBC
Nottinghamshire County Council,01-04681,ACADEMY SOCIAL CARE LIMITED,Care,Domiciliary Care,0,156.98,156.98,19-Apr-11,TBC
Nottinghamshire County Council,01-04682,ACADEMY SOCIAL CARE LIMITED,Care,Domiciliary Care,0,156.98,156.98,19-Apr-11,TBC
Nottinghamshire County Council,01-04683,RECRUITMENT SPECIALIST GROUP LIMITED,People,Recruitment,0,352.09,352.09,19-Apr-11,TBC
Nottinghamshire County Council,01-04684,ACADEMY SOCIAL CARE LIMITED,Care,Domiciliary Care,0,156.98,156.98,19-Apr-11,TBC
Nottinghamshire County Council,01-04685,ACADEMY SOCIAL CARE LIMITED,Care,Domiciliary Care,0,156.98,156.98,19-Apr-11,TBC
Nottinghamshire County Council,01-04686,ACADEMY SOCIAL CARE LIMITED,Care,Domiciliary Care,0,156.98,156.98,19-Apr-11,TBC
Nottinghamshire County Council,01-04687,ACADEMY SOCIAL CARE LIMITED,Care,Domiciliary Care,0,156.98,156.98,19-Apr-11,TBC
Nottinghamshire County Council,01-04688,RUFFORD PARK GOLF and COUNTRY CLUB,Transport and Travel,Hotels and Venues,0,118.8,118.8,19-Apr-11,TBC
Nottinghamshire County Council,01-04689,EMO OIL LIMITED,Hard Facilities Management ,Utilities,0,66.68,66.68,19-Apr-11,TBC
Nottinghamshire County Council,01-04690,ACADEMY SOCIAL CARE LIMITED,Care,Domiciliary Care,0,125.58,125.58,19-Apr-11,TBC
Nottinghamshire County Council,01-04692,CORBETT OFFICE SOLUTIONS,Soft Facilities Management,Office Supplies and Machines (Non It),0,189.6,189.6,28-Apr-11,TBC
Nottinghamshire County Council,01-04693,FIRE SAFETY SERVICES (UK) LIMITED,Soft Facilities Management,Security,0,110,110,27-Apr-11,TBC
Nottinghamshire County Council,01-04695,KONICA MINOLTA,ICT,"Printing and Publishing, Equipment and Supplies",0,109.24,109.24,19-Apr-11,TBC
Nottinghamshire County Council,01-04696,ADVANTAGE HEALTHCARE NURSING andCARE LIMITED,Care,Healthcare Services,0,264.55,264.55,19-Apr-11,TBC
Nottinghamshire County Council,01-04697,ADVANTAGE HEALTHCARE NURSING andCARE LIMITED,Care,Healthcare Services,0,264.55,264.55,19-Apr-11,TBC
Nottinghamshire County Council,01-04700,RECRUITMENT SPECIALIST GROUP LIMITED,People,Recruitment,0,352.09,352.09,19-Apr-11,TBC
Nottinghamshire County Council,01-04701,RIG SOCIAL CARE (NORTH) LIMITED,Care,Domiciliary Care,0,300.63,300.63,19-Apr-11,TBC
Nottinghamshire County Council,01-04702,CAPITA SOCIAL CARE and HOUSING,Care,Domiciliary Care,0,116.08,116.08,28-Apr-11,TBC
Nottinghamshire County Council,01-04703,CAPITA SOCIAL CARE and HOUSING,Care,Domiciliary Care,0,111.98,111.98,28-Apr-11,TBC
Nottinghamshire County Council,01-04704,CAPITA SOCIAL CARE and HOUSING,Care,Domiciliary Care,0,113.52,113.52,21-Apr-11,TBC
Nottinghamshire County Council,01-04705,HOBART UK LIMITED,Soft Facilities Management,Prepared and preserved foods,0,"1,538.80","1,538.80",19-Apr-11,TBC
Nottinghamshire County Council,01-04706,NOTTINGHAM CITY COUNCIL,Professional Services,Politics and Civic Affairs,0,215.48,215.48,27-Apr-11,TBC
Nottinghamshire County Council,01-04758,JACOBS ENGINEERING UK LIMITED,Professional Services,Professional Engineering Services,0,0.01,0.01,18-Apr-11,TBC
Nottinghamshire County Council,01-04760,RICKITT EDUCATIONAL MEDIA,External Services (Highways and Culture),Education Services,0,-0.01,-0.01,26-Apr-11,TBC
Nottinghamshire County Council,01-04827,CHROMA EUROPE LIMITED,External Services (Highways and Culture),Education Services,0,-0.01,-0.01,21-Apr-11,TBC
Nottinghamshire County Council,01-05106,PRIMO PLAY LIMITED,External Services (Highways and Culture),Sports and Recreational Equipment and Supplies,0,-0.05,-0.05,21-Apr-11,TBC
Nottinghamshire County Council,01-05110,BRITISH TELECOMMUNICATIONS PLC,ICT,Telecommunications and Media,0,591.2,591.2,20-Apr-11,TBC
Nottinghamshire County Council,01-05112,HULLEYS,Soft Facilities Management,Frozen Goods,0,-0.01,-0.01,20-Apr-11,TBC
Nottinghamshire County Council,01-05113,HULLEYS,Soft Facilities Management,Frozen Goods,0,-0.01,-0.01,20-Apr-11,TBC
Nottinghamshire County Council,01-05139,PREMIERE POLISH COMPANY LIMITED,Soft Facilities Management,Cleaning Equipment and Janitorial Supplies,0,579.86,579.86,20-Apr-11,TBC
Nottinghamshire County Council,01-05146,1ST CALL COMMUNICATIONS LIMITED,ICT,Telecommunications and Media,0,-0.02,-0.02,20-Apr-11,TBC
Nottinghamshire County Council,01-05148,BEESWIFT,Soft Facilities Management,Clothing,0,-114.96,-114.96,26-Apr-11,TBC
Nottinghamshire County Council,01-05153,1ST CALL COMMUNICATIONS LIMITED,ICT,Telecommunications and Media,0,-0.01,-0.01,21-Apr-11,TBC
Nottinghamshire County Council,01-05167,GEORGES CONTRACTORS LIMITED,Hard Facilities Management ,Building Construction Services,0,230,230,21-Apr-11,TBC
Nottinghamshire County Council,01-05168,IDEAL CLEANING SERVICES LIMITED,Soft Facilities Management,Industrial Cleaning Services,0,107.92,107.92,21-Apr-11,TBC
Nottinghamshire County Council,01-05169,JBA CONSULTING,Professional Services,Consultancy,0,560,560,21-Apr-11,TBC
Nottinghamshire County Council,01-05170,E S P SYSTEX LIMITED,Soft Facilities Management,Security,0,"2,810.00","2,810.00",21-Apr-11,TBC
Nottinghamshire County Council,01-05171,ACADEMY SOCIAL CARE LIMITED,Care,Domiciliary Care,0,150.63,150.63,21-Apr-11,TBC
Nottinghamshire County Council,01-05172,CAPITA SOCIAL CARE and HOUSING,Care,Domiciliary Care,0,108.72,108.72,28-Apr-11,TBC
Nottinghamshire County Council,01-05173,EGS GROUP LIMITED,Professional Services,Consultancy,0,"13,000.00","13,000.00",21-Apr-11,TBC
Nottinghamshire County Council,01-05174,REED EMPLOYMENT PLC,People,Recruitment,0,199.8,199.8,21-Apr-11,TBC
Nottinghamshire County Council,01-05175,FIRST ORDER RED LIMITED,Soft Facilities Management,Scrap and waste materials,0,114,114,21-Apr-11,TBC
Nottinghamshire County Council,01-05176,PARTNERSKILLS LIMITED,Professional Services,Consultancy,0,190,190,21-Apr-11,TBC
Nottinghamshire County Council,01-05177,YELL LIMITED,Professional Services,"Reproduction, Photographic and Design Services",0,157.6,157.6,21-Apr-11,TBC
Nottinghamshire County Council,01-05178,REED EMPLOYMENT PLC,People,Recruitment,0,201.15,201.15,21-Apr-11,TBC
Nottinghamshire County Council,01-05179,NOTTINGHAM CITY COUNCIL,Professional Services,Politics and Civic Affairs,0,90.45,90.45,27-Apr-11,TBC
Nottinghamshire County Council,01-05182,OLD HALL NURSERIES LIMITED,External Services (Highways and Culture),Plant and Animal Supplies,0,106,106,21-Apr-11,TBC
Nottinghamshire County Council,01-05187,HULLEYS,Soft Facilities Management,Frozen Goods,0,-0.01,-0.01,21-Apr-11,TBC
Nottinghamshire County Council,01-05241,CEMEX UK OPERATIONS,External Services (Highways and Culture),Earth and Stone Aggregates ,0,-0.01,-0.01,21-Apr-11,TBC
Nottinghamshire County Council,01-05254,BRAKE BROS LIMITED,Soft Facilities Management,Prepared and preserved foods,0,-0.05,-0.05,21-Apr-11,TBC
Nottinghamshire County Council,01-05278,CAPITA SOCIAL CARE and HOUSING,Care,Domiciliary Care,0,214.22,214.22,28-Apr-11,TBC
Nottinghamshire County Council,01-05279,CARDEA,Care,Healthcare Services,0,96.5,96.5,26-Apr-11,TBC
Nottinghamshire County Council,01-05280,CARDEA,Care,Healthcare Services,0,91.38,91.38,27-Apr-11,TBC
Nottinghamshire County Council,01-05281,SOUTH FOREST LEISURE CENTRE,Transport and Travel,Hotels and Venues,0,159,159,26-Apr-11,TBC
Nottinghamshire County Council,01-05282,MAKING IT! ENTERPRISES LIMITED,External Services (Highways and Culture),Sports and Recreational Equipment and Supplies,0,850.3,850.3,26-Apr-11,TBC
Nottinghamshire County Council,01-05283,MAKING IT! ENTERPRISES LIMITED,External Services (Highways and Culture),Sports and Recreational Equipment and Supplies,0,850.3,850.3,26-Apr-11,TBC
Nottinghamshire County Council,01-05284,NUMATIC INTERNATIONAL LIMITED,Soft Facilities Management,Cleaning Equipment and Janitorial Supplies,0,206.13,206.13,26-Apr-11,TBC
Nottinghamshire County Council,01-05286,NOTTINGHAM REHAB LIMITED,Care,Medical Equipment and  Supplies,0,105.59,105.59,26-Apr-11,TBC
Nottinghamshire County Council,01-05287,CAPITA SOCIAL CARE and HOUSING,Care,Domiciliary Care,0,138.48,138.48,26-Apr-11,TBC
Nottinghamshire County Council,01-05290,KB RECRUITMENT LIMITED,People,Recruitment,0,205.9,205.9,27-Apr-11,TBC
Nottinghamshire County Council,01-05291,I CAN SERVICES LIMITED,External Services (Highways and Culture),Education Services,0,"1,790.00","1,790.00",26-Apr-11,TBC
Nottinghamshire County Council,01-05293,CARDEA,Care,Healthcare Services,0,167.65,167.65,27-Apr-11,TBC
Nottinghamshire County Council,01-05295,KONICA MINOLTA,ICT,"Printing and Publishing, Equipment and Supplies",0,189.21,189.21,26-Apr-11,TBC
Nottinghamshire County Council,01-05296,KONICA MINOLTA,ICT,"Printing and Publishing, Equipment and Supplies",0,282.52,282.52,26-Apr-11,TBC
Nottinghamshire County Council,01-05297,KONICA MINOLTA,ICT,"Printing and Publishing, Equipment and Supplies",0,108.18,108.18,26-Apr-11,TBC
Nottinghamshire County Council,01-05298,MAKING IT! ENTERPRISES LIMITED,External Services (Highways and Culture),Sports and Recreational Equipment and Supplies,0,191.74,191.74,26-Apr-11,TBC
Nottinghamshire County Council,01-05299,COAL 4 ENERGY,Hard Facilities Management ,Utilities,0,233.43,233.43,26-Apr-11,TBC
Nottinghamshire County Council,01-05305,EDEN BROWN LIMITED,People,Recruitment,0,376.56,376.56,26-Apr-11,TBC
Nottinghamshire County Council,01-05315,KONICA MINOLTA,ICT,"Printing and Publishing, Equipment and Supplies",0,209.74,209.74,26-Apr-11,TBC
Nottinghamshire County Council,01-05318,SELLICK PARTNERSHIP (LEGAL) LIMITED,Professional Services,Legal Services,0,110.4,110.4,26-Apr-11,TBC
Nottinghamshire County Council,01-05319,M CHISHOLM,Professional Services,Legal Services,0,250,250,26-Apr-11,TBC
Nottinghamshire County Council,01-05320,FULL CIRLCE CARE AGENCY LIMITED,People,Agency Staff - Care,0,412.13,412.13,27-Apr-11,TBC
Nottinghamshire County Council,01-05321,DAVID BRIGGS ASSOCIATES,Care,Daycare,0,132.7,132.7,26-Apr-11,TBC
Nottinghamshire County Council,01-05322,STRELLEY SYSTEMS LIMITED,Transport and Travel,Hotels and Venues,0,771.51,771.51,26-Apr-11,TBC
Nottinghamshire County Council,01-05323,J L HARPHAM LIMITED,TBC,TBC,0,84.76,84.76,27-Apr-11,TBC
Nottinghamshire County Council,01-05324,KEYBOARD SPECIALISTS LIMITED,ICT,Hardware,0,670.73,670.73,26-Apr-11,TBC
Nottinghamshire County Council,01-05325,JENX LIMITED,Care,Medical Equipment and  Supplies,0,109.4,109.4,26-Apr-11,TBC
Nottinghamshire County Council,01-05330,MEDICARE FIRST,Care,Medical Equipment and  Supplies,0,330.25,330.25,27-Apr-11,TBC
Nottinghamshire County Council,01-05334,GOLD STANDARDS FRAMEWORK,Care,Domiciliary Care,0,"2,721.00","2,721.00",27-Apr-11,TBC
Nottinghamshire County Council,01-05335,MEDICARE FIRST,Care,Medical Equipment and  Supplies,0,292.3,292.3,26-Apr-11,TBC
Nottinghamshire County Council,01-05336,STONEBRIDGE TRUST,External Services (Highways and Culture),Organisations and Clubs,0,202.5,202.5,27-Apr-11,TBC
Nottinghamshire County Council,01-05337,REED EMPLOYMENT PLC,People,Recruitment,0,84,84,26-Apr-11,TBC
Nottinghamshire County Council,01-05338,BUREAU VAN DIJK ELECTRONIC PUBLISHING LIMITED,ICT,"Printing and Publishing, Equipment and Supplies",0,"2,142.00","2,142.00",28-Apr-11,TBC
Nottinghamshire County Council,01-05339,CARITAS RECRUITMENT,People,Recruitment,0,997.89,997.89,28-Apr-11,TBC
Nottinghamshire County Council,01-05340,FEET (LINE MARKERS ) LIMITED,External Services (Highways and Culture),Sports and Recreational Equipment and Supplies,0,182,182,26-Apr-11,TBC
Nottinghamshire County Council,01-05341,PHS GROUP PLC,Soft Facilities Management,Cleaning Equipment and Janitorial Supplies,0,149.08,149.08,26-Apr-11,TBC
Nottinghamshire County Council,01-05342,N POWER,Hard Facilities Management ,Utilities,0,-0.01,-0.01,26-Apr-11,TBC
Nottinghamshire County Council,01-05460,H C DOUGHTY and SONS,Hard Facilities Management ,Carpentry Services,0,660.51,660.51,27-Apr-11,TBC
Nottinghamshire County Council,01-05461,CLEMENT CLARKE COMMUNICATIONS LIMITED,ICT,Audio and visual equipment,0,98.2,98.2,27-Apr-11,TBC
Nottinghamshire County Council,01-05462,RATTLE and DRUM,External Services (Highways and Culture),Education Services,0,134,134,27-Apr-11,TBC
Nottinghamshire County Council,01-05463,CYCLESCHEME LIMITED,External Services (Highways and Culture),Sports and Recreational Equipment and Supplies,0,166.67,166.67,27-Apr-11,TBC
Nottinghamshire County Council,01-05464,CARDEA,Care,Healthcare Services,0,84.31,84.31,27-Apr-11,TBC
Nottinghamshire County Council,01-05466,ROAD MARKING SERVICES LIMITED,External Services (Highways and Culture),Highways and Works,0,97.8,97.8,27-Apr-11,TBC
Nottinghamshire County Council,01-05467,FEET (LINE MARKERS ) LIMITED,External Services (Highways and Culture),Sports and Recreational Equipment and Supplies,0,104.24,104.24,27-Apr-11,TBC
Nottinghamshire County Council,01-05468,CARITAS RECRUITMENT,People,Recruitment,0,300.72,300.72,28-Apr-11,TBC
Nottinghamshire County Council,01-05469,CARITAS RECRUITMENT,People,Recruitment,0,620.86,620.86,28-Apr-11,TBC
Nottinghamshire County Council,01-05470,KONICA MINOLTA,ICT,"Printing and Publishing, Equipment and Supplies",0,154.66,154.66,27-Apr-11,TBC
Nottinghamshire County Council,01-05471,KONICA MINOLTA,ICT,"Printing and Publishing, Equipment and Supplies",0,100.09,100.09,27-Apr-11,TBC
Nottinghamshire County Council,01-05472,KONICA MINOLTA,ICT,"Printing and Publishing, Equipment and Supplies",0,106.48,106.48,27-Apr-11,TBC
Nottinghamshire County Council,01-05475,CAPITA SOCIAL CARE and HOUSING,Care,Domiciliary Care,0,135.15,135.15,28-Apr-11,TBC
Nottinghamshire County Council,01-05477,CAPITA SOCIAL CARE and HOUSING,Care,Domiciliary Care,0,113.52,113.52,27-Apr-11,TBC
Nottinghamshire County Council,01-05478,CAPITA SOCIAL CARE and HOUSING,Care,Domiciliary Care,0,113.52,113.52,27-Apr-11,TBC
Nottinghamshire County Council,01-05479,CAPITA SOCIAL CARE and HOUSING,Care,Domiciliary Care,0,113.52,113.52,28-Apr-11,TBC
Nottinghamshire County Council,01-05480,CAPITA,Professional Services,Consultancy,0,121.2,121.2,27-Apr-11,TBC
Nottinghamshire County Council,01-05481,NOTTINGHAMSHIRE COUNTY FOOTBALL CLUB,Transport and Travel,Hotels and Venues,0,103.34,103.34,27-Apr-11,TBC
Nottinghamshire County Council,01-05482,CAPITA SOCIAL CARE and HOUSING,Care,Domiciliary Care,0,137.95,137.95,27-Apr-11,TBC
Nottinghamshire County Council,01-05483,CAPITA SOCIAL CARE and HOUSING,Care,Domiciliary Care,0,105.4,105.4,28-Apr-11,TBC
Nottinghamshire County Council,01-05484,CAPITA SOCIAL CARE and HOUSING,Care,Domiciliary Care,0,113.52,113.52,28-Apr-11,TBC
Nottinghamshire County Council,01-05485,DRAEFERN LIMITED T/A RIGHT4STAFF,People,Recruitment,0,86.52,86.52,27-Apr-11,TBC
Nottinghamshire County Council,01-05486,CAPITA SOCIAL CARE and HOUSING,Care,Domiciliary Care,0,113.52,113.52,28-Apr-11,TBC
Nottinghamshire County Council,01-05487,ORCHARD MEDICAL RECRUITMENT LIMITED,People,Recruitment,0,210.53,210.53,27-Apr-11,TBC
Nottinghamshire County Council,01-05488,HATHERLEY COMMERCIAL SERVICES,Soft Facilities Management,Prepared and preserved foods,0,133.6,133.6,27-Apr-11,TBC
Nottinghamshire County Council,01-05489,LOCKHART CATERING EQUIPMENT,Soft Facilities Management,Restaurants and Catering,0,175.95,175.95,27-Apr-11,TBC
Nottinghamshire County Council,01-05490,COOKCO LIMITED,Soft Facilities Management,Vending Machines and Food Equipment,0,"2,518.40","2,518.40",27-Apr-11,TBC
Nottinghamshire County Council,01-05491,LA INTERNATIONAL COMPUTER CONSULTANT LIMITED,Professional Services,Consultancy,0,588,588,27-Apr-11,TBC
Nottinghamshire County Council,01-05492,CAPITA SOCIAL CARE and HOUSING,Care,Domiciliary Care,0,118.28,118.28,27-Apr-11,TBC
Nottinghamshire County Council,01-05493,MAKING IT! ENTERPRISES LIMITED,External Services (Highways and Culture),Sports and Recreational Equipment and Supplies,0,300.16,300.16,27-Apr-11,TBC
Nottinghamshire County Council,01-05494,G4S SECURITY SERVICES (UK) LIMITED,Soft Facilities Management,Security,0,320,320,27-Apr-11,TBC
Nottinghamshire County Council,01-05495,COAL 4 ENERGY,Hard Facilities Management ,Utilities,0,151.76,151.76,27-Apr-11,TBC
Nottinghamshire County Council,01-05496,WATCH-IT SECURITY SERVICES,Soft Facilities Management,Security,0,231,231,27-Apr-11,TBC
Nottinghamshire County Council,01-05497,DX NETWORK SERVICES LIMITED,Soft Facilities Management,Mail and Couriers,0,119.14,119.14,27-Apr-11,TBC
Nottinghamshire County Council,01-05498,CAPITA,Professional Services,Consultancy,0,127.52,127.52,27-Apr-11,TBC
Nottinghamshire County Council,01-05499,CAPITA,Professional Services,Consultancy,0,141.6,141.6,27-Apr-11,TBC
Nottinghamshire County Council,01-05500,WILLIAM FREER LIMITED,Soft Facilities Management,Vending Machines and Food Equipment,0,157.32,157.32,27-Apr-11,TBC
Nottinghamshire County Council,01-05503,PERSONNEL and CARE BANK,People,Recruitment,0,148.99,148.99,27-Apr-11,TBC
Nottinghamshire County Council,01-05504,PERSONNEL and CARE BANK,People,Recruitment,0,148.99,148.99,27-Apr-11,TBC
Nottinghamshire County Council,01-05505,PEDAL EXPRESS LIMITED,Soft Facilities Management,Mail and Couriers,0,159.4,159.4,27-Apr-11,TBC
Nottinghamshire County Council,01-05509,AQUILA BUSINESS PRODUCTS LIMITED,Soft Facilities Management,Furniture and Furnishings,0,-0.02,-0.02,27-Apr-11,TBC
Nottinghamshire County Council,01-05529,DAWSON RENTALS PORTABLE COLD STORAGE LIMITED,Soft Facilities Management,Vending Machines and Food Equipment,0,-0.01,-0.01,27-Apr-11,TBC
Nottinghamshire County Council,01-05617,BRAKE BROS LIMITED,Soft Facilities Management,Prepared and preserved foods,0,-0.03,-0.03,28-Apr-11,TBC
Nottinghamshire County Council,01-05622,BRAKE BROS LIMITED,Soft Facilities Management,Prepared and preserved foods,0,0.02,0.02,28-Apr-11,TBC
Nottinghamshire County Council,01-08761,INTERACTIVE EDUCATION,External Services (Highways and Culture),Education Services,0,763.2,763.2,28-Apr-11,TBC
Nottinghamshire County Council,01-08762,SEIONT NURSERIES,External Services (Highways and Culture),Plant and Animal Supplies,0,91.46,91.46,28-Apr-11,TBC
Nottinghamshire County Council,01-08763,TUNSTALL TELECOM LIMITED,ICT,Telecommunications and Media,0,84.42,84.42,28-Apr-11,TBC
Nottinghamshire County Council,01-08764,KONICA MINOLTA,ICT,"Printing and Publishing, Equipment and Supplies",0,109.15,109.15,28-Apr-11,TBC
Nottinghamshire County Council,01-08765,RUGBY FOOTBALL UNION,Soft Facilities Management,Security,0,166.67,166.67,28-Apr-11,TBC
Nottinghamshire County Council,01-08766,KB RECRUITMENT LIMITED,People,Recruitment,0,112.19,112.19,28-Apr-11,TBC
Nottinghamshire County Council,01-08767,CAPITA SOCIAL CARE and HOUSING,Care,Domiciliary Care,0,300.18,300.18,28-Apr-11,TBC
Nottinghamshire County Council,01-08768,PERSONNEL and CARE BANK,People,Recruitment,0,148.99,148.99,28-Apr-11,TBC
Nottinghamshire County Council,01-08769,POTENTIAL UK,People,Vocational Training,0,536,536,28-Apr-11,TBC
Nottinghamshire County Council,01-08770,KONICA MINOLTA,ICT,"Printing and Publishing, Equipment and Supplies",0,309.56,309.56,28-Apr-11,TBC
Nottinghamshire County Council,01-08771,KONICA MINOLTA,ICT,"Printing and Publishing, Equipment and Supplies",0,338.27,338.27,28-Apr-11,TBC
Nottinghamshire County Council,01-08772,CARDEA,Care,Healthcare Services,0,160.11,160.11,28-Apr-11,TBC
Nottinghamshire County Council,01-08773,KONICA MINOLTA,ICT,"Printing and Publishing, Equipment and Supplies",0,88,88,28-Apr-11,TBC
Nottinghamshire County Council,01-08775,SQUIDCARD LIMITED,Professional Services,Financial and Insurance Services,0,188.37,188.37,28-Apr-11,TBC
Nottinghamshire County Council,01-08776,SQUIDCARD LIMITED,Professional Services,Financial and Insurance Services,0,189.94,189.94,28-Apr-11,TBC
Nottinghamshire County Council,01-08777,SQUIDCARD LIMITED,Professional Services,Financial and Insurance Services,0,113.99,113.99,28-Apr-11,TBC
Nottinghamshire County Council,01-08778,SQUIDCARD LIMITED,Professional Services,Financial and Insurance Services,0,155.35,155.35,28-Apr-11,TBC
Nottinghamshire County Council,01-08780,KB RECRUITMENT LIMITED,People,Recruitment,0,451.84,451.84,28-Apr-11,TBC
Nottinghamshire County Council,01-08781,REED EMPLOYMENT PLC,People,Recruitment,0,252,252,28-Apr-11,TBC
Nottinghamshire County Council,01-08782,RIG SOCIAL CARE (NORTH) LIMITED,Care,Domiciliary Care,0,306.89,306.89,28-Apr-11,TBC
Nottinghamshire County Council,01-08783,SPRING TECHNOLOGY STAFFING SERVICES,People,Recruitment,0,348,348,28-Apr-11,TBC
Nottinghamshire County Council,01-08784,SPRING TECHNOLOGY STAFFING SERVICES,People,Recruitment,0,208.8,208.8,28-Apr-11,TBC
Nottinghamshire County Council,01-08785,SPRING TECHNOLOGY STAFFING SERVICES,People,Recruitment,0,278.4,278.4,28-Apr-11,TBC
Nottinghamshire County Council,01-08786,CYCLESCHEME LIMITED,External Services (Highways and Culture),Sports and Recreational Equipment and Supplies,0,129,129,28-Apr-11,TBC
Nottinghamshire County Council,01-08789,CUSTOM GROUP LIMITED,Soft Facilities Management,Furniture and Furnishings,0,228.75,228.75,28-Apr-11,TBC
Nottinghamshire County Council,01-08791,CARTER BROWN ASSOCIATES,Professional Services,Legal Services,0,157.4,157.4,28-Apr-11,TBC
Nottinghamshire County Council,01-08792,EXEGESIS,ICT,Software,0,450.6,450.6,28-Apr-11,TBC
Nottinghamshire County Council,01-08793,STRAW and PEARCE SOLICITORS,Professional Services,Legal Services,0,232,232,28-Apr-11,TBC
Nottinghamshire County Council,01-08794,J M COUNTRYSIDE LANDSCAPES,External Services (Highways and Culture),Farming Forestry and Wildlife Services,0,115,115,28-Apr-11,TBC
Nottinghamshire County Council,01-08795,CAPITA SOCIAL CARE and HOUSING,Care,Domiciliary Care,0,87.85,87.85,28-Apr-11,TBC
Nottinghamshire County Council,01-08796,REED EMPLOYMENT PLC,People,Recruitment,0,191.7,191.7,28-Apr-11,TBC
Nottinghamshire County Council,01-08797,HAROLD POTTER and COMPANY LIMITED,Professional Services,Professional Engineering Services,0,217.35,217.35,28-Apr-11,TBC
Nottinghamshire County Council,01-08799,SQUIDCARD LIMITED,Professional Services,Financial and Insurance Services,0,176.22,176.22,28-Apr-11,TBC
Nottinghamshire County Council,01-08800,RIGBY TAYLOR LIMITED,Hard Facilities Management ,Facilities Maintenance and Repair,0,335,335,28-Apr-11,TBC
Nottinghamshire County Council,01-08803,CONISTON ASSOCIATES LIMITED,People,Vocational Training,0,194.4,194.4,28-Apr-11,TBC
Nottinghamshire County Council,01-08804,MANSFIELD DISTRICT COUNCIL,Professional Services,Politics and Civic Affairs,0,"2,000.00","2,000.00",28-Apr-11,TBC
Nottinghamshire County Council,01-08805,OUTCOMES UK,People,Recruitment,0,599.6,599.6,28-Apr-11,TBC
Nottinghamshire County Council,01-08806,LANTEC SERVICES LIMITED,ICT,Communications Devices and Accessories,0,93.6,93.6,28-Apr-11,TBC
Nottinghamshire County Council,01-08807,HELEN SANDERSON ASSOCIATES LIMITED,External Services (Highways and Culture),Education Services,0,280,280,28-Apr-11,TBC
Nottinghamshire County Council,01-08876,WEIGHTMANS LLP,Professional Services,Legal Services,0,"4,099.20","4,099.20",28-Apr-11,TBC
Nottinghamshire County Council,01-00539,MANSFIELD DISTRICT COUNCIL,Professional Services,Politics and Civic Affairs,"1,013.44","1,013.44","2,026.88",12-Apr-11,TBC
Nottinghamshire County Council,01-01817,XMA LIMITED,ICT,Computer Equipment and Accessories,540.6,540.6,"1,081.20",04-Apr-11,TBC
Nottinghamshire County Council,01-01102,AGGREGATES R US LIMITED,External Services (Highways and Culture),Earth and Stone Aggregates ,"9,955.00",0,"9,955.00",18-Apr-11,COMMUNITIES
Nottinghamshire County Council,01-03093,EAST MIDLANDS VEHICLE HIRE,Transport and Travel,Motor Vehicles,10,0,10,08-Apr-11,COMMUNITIES
Nottinghamshire County Council,01-03093,EAST MIDLANDS VEHICLE HIRE,Transport and Travel,Motor Vehicles,434,86.8,520.8,08-Apr-11,COMMUNITIES
Nottinghamshire County Council,01-04639,NUMATIC INTERNATIONAL LIMITED,Soft Facilities Management,Cleaning Equipment and Janitorial Supplies,412.26,0,412.26,19-Apr-11,COMMUNITIES
Nottinghamshire County Council,01-04639,NUMATIC INTERNATIONAL LIMITED,Soft Facilities Management,Cleaning Equipment and Janitorial Supplies,800.17,0,800.17,19-Apr-11,COMMUNITIES
Nottinghamshire County Council,01-04640,NUMATIC INTERNATIONAL LIMITED,Soft Facilities Management,Cleaning Equipment and Janitorial Supplies,883.48,0,883.48,19-Apr-11,COMMUNITIES
Nottinghamshire County Council,01-04662,PORTABLE APPLIANCE SAFETY SERVICES LIMITED,Hard Facilities Management ,Health and Safety,"2,331.00",0,"2,331.00",19-Apr-11,COMMUNITIES
Nottinghamshire County Council,01-04662,PORTABLE APPLIANCE SAFETY SERVICES LIMITED,Hard Facilities Management ,Health and Safety,120,0,120,19-Apr-11,COMMUNITIES
Nottinghamshire County Council,01-05284,NUMATIC INTERNATIONAL LIMITED,Soft Facilities Management,Cleaning Equipment and Janitorial Supplies,"1,030.65",0,"1,030.65",26-Apr-11,COMMUNITIES
Nottinghamshire County Council,01-05485,DRAEFERN LIMITED T/A RIGHT4STAFF,People,Recruitment,432.6,0,432.6,27-Apr-11,COMMUNITIES
Nottinghamshire County Council,01-05516,APSE,Professional Services,Politics and Civic Affairs,782.25,156.45,938.7,27-Apr-11,COMMUNITIES
Nottinghamshire County Council,01-01668,DRAEFERN LIMITED T/A RIGHT4STAFF,People,Recruitment,357.48,71.5,428.98,04-Apr-11,COMMUNITIES
Nottinghamshire County Council,01-01668,DRAEFERN LIMITED T/A RIGHT4STAFF,People,Recruitment,371.05,74.21,445.26,04-Apr-11,COMMUNITIES
Nottinghamshire County Council,01-00136,INPLACE PERSONNEL SERVICES LIMITED,People,Recruitment,28.35,5.67,34.02,04-Apr-11,COMMUNITIES
Nottinghamshire County Council,01-00136,INPLACE PERSONNEL SERVICES LIMITED,People,Recruitment,368.55,73.71,442.26,04-Apr-11,COMMUNITIES
Nottinghamshire County Council,01-00136,INPLACE PERSONNEL SERVICES LIMITED,People,Recruitment,189,37.8,226.8,04-Apr-11,COMMUNITIES
Nottinghamshire County Council,01-02554,STAFFLINE RECRUITMENT LIMITED,People,Recruitment,169.8,33.96,203.76,07-Apr-11,COMMUNITIES
Nottinghamshire County Council,01-02555,STAFFLINE RECRUITMENT LIMITED,People,Recruitment,67.92,13.58,81.5,07-Apr-11,COMMUNITIES
Nottinghamshire County Council,01-02555,STAFFLINE RECRUITMENT LIMITED,People,Recruitment,176.17,35.23,211.4,07-Apr-11,COMMUNITIES
Nottinghamshire County Council,01-01660,DRAEFERN LIMITED T/A RIGHT4STAFF,People,Recruitment,86,17.2,103.2,04-Apr-11,COMMUNITIES
Nottinghamshire County Council,01-01660,DRAEFERN LIMITED T/A RIGHT4STAFF,People,Recruitment,86,17.2,103.2,04-Apr-11,COMMUNITIES
Nottinghamshire County Council,01-01660,DRAEFERN LIMITED T/A RIGHT4STAFF,People,Recruitment,86,17.2,103.2,04-Apr-11,COMMUNITIES
Nottinghamshire County Council,01-01660,DRAEFERN LIMITED T/A RIGHT4STAFF,People,Recruitment,86,17.2,103.2,04-Apr-11,COMMUNITIES
Nottinghamshire County Council,01-01660,DRAEFERN LIMITED T/A RIGHT4STAFF,People,Recruitment,86,17.2,103.2,04-Apr-11,COMMUNITIES
Nottinghamshire County Council,01-01660,DRAEFERN LIMITED T/A RIGHT4STAFF,People,Recruitment,94.6,18.92,113.52,04-Apr-11,COMMUNITIES
Nottinghamshire County Council,01-01660,DRAEFERN LIMITED T/A RIGHT4STAFF,People,Recruitment,103.2,20.64,123.84,04-Apr-11,COMMUNITIES
Nottinghamshire County Council,01-02554,STAFFLINE RECRUITMENT LIMITED,People,Recruitment,84.9,16.98,101.88,07-Apr-11,COMMUNITIES
Nottinghamshire County Council,01-02555,STAFFLINE RECRUITMENT LIMITED,People,Recruitment,16.98,3.4,20.38,07-Apr-11,COMMUNITIES
Nottinghamshire County Council,01-02555,STAFFLINE RECRUITMENT LIMITED,People,Recruitment,50.94,10.19,61.13,07-Apr-11,COMMUNITIES
Nottinghamshire County Council,01-05139,PREMIERE POLISH COMPANY LIMITED,Soft Facilities Management,Cleaning Equipment and Janitorial Supplies,"2,899.32",0,"2,899.32",20-Apr-11,COMMUNITIES
Nottinghamshire County Council,01-02554,STAFFLINE RECRUITMENT LIMITED,People,Recruitment,16.98,3.4,20.38,07-Apr-11,COMMUNITIES
Nottinghamshire County Council,01-02554,STAFFLINE RECRUITMENT LIMITED,People,Recruitment,67.92,13.58,81.5,07-Apr-11,COMMUNITIES
Nottinghamshire County Council,01-00739,FIRST ORDER RED LIMITED,Soft Facilities Management,Scrap and waste materials,"1,608.65",321.73,"1,930.38",07-Apr-11,RESOURCES
Nottinghamshire County Council,01-01568,CBP ARCHITECTS LIMITED,Professional Services,Professional Engineering Services,"1,787.50",357.5,"2,145.00",01-Apr-11,RESOURCES
Nottinghamshire County Council,01-02044,CBP ARCHITECTS LIMITED,Professional Services,Professional Engineering Services,"1,729.00",345.8,"2,074.80",05-Apr-11,RESOURCES
Nottinghamshire County Council,01-02045,CBP ARCHITECTS LIMITED,Professional Services,Professional Engineering Services,"2,015.00",403,"2,418.00",05-Apr-11,RESOURCES
Nottinghamshire County Council,01-02375,LANDMARK,TBC,TBC,10,1.75,11.75,07-Apr-11,RESOURCES
Nottinghamshire County Council,01-02375,LANDMARK,TBC,TBC,504.97,88.37,593.34,07-Apr-11,RESOURCES
Nottinghamshire County Council,01-02473,INSTATHERM COMBUSTION SERVICES LIMITED,Hard Facilities Management ,Plumbing Services,"2,854.91",570.98,"3,425.89",07-Apr-11,RESOURCES
Nottinghamshire County Council,01-02476,APPLEYARD and TREW,Professional Services,Professional Engineering Services,"2,062.50",412.5,"2,475.00",07-Apr-11,RESOURCES
Nottinghamshire County Council,01-02494,EDMOND SHIPWAY,Professional Services,Consultancy,"7,000.00","1,400.00","8,400.00",20-Apr-11,RESOURCES
Nottinghamshire County Council,01-02807,FAITHFULL and GOULD,Professional Services,Consultancy,997.7,199.54,"1,197.24",07-Apr-11,RESOURCES
Nottinghamshire County Council,01-05406,WHITE YOUNG GREEN CONSULTING LIM,Professional Services,Consultancy,"4,045.00",809,"4,854.00",26-Apr-11,RESOURCES
Nottinghamshire County Council,01-05420,WHITE YOUNG GREEN CONSULTING LIM,Professional Services,Consultancy,"2,708.00",541.6,"3,249.60",26-Apr-11,RESOURCES
Nottinghamshire County Council,01-05510,VINCENT and GORBING,Professional Services,Professional Engineering Services,"10,274.02","2,054.80","12,328.82",27-Apr-11,RESOURCES
Nottinghamshire County Council,01-05514,VINCENT and GORBING,Professional Services,Professional Engineering Services,"5,128.67","1,025.73","6,154.40",27-Apr-11,RESOURCES
Nottinghamshire County Council,01-05519,VINCENT and GORBING,Professional Services,Professional Engineering Services,"2,287.13",457.43,"2,744.56",27-Apr-11,RESOURCES
Nottinghamshire County Council,01-05520,VINCENT and GORBING,Professional Services,Professional Engineering Services,"2,707.37",541.47,"3,248.84",27-Apr-11,RESOURCES
Nottinghamshire County Council,01-05521,VINCENT and GORBING,Professional Services,Professional Engineering Services,"1,321.50",264.3,"1,585.80",27-Apr-11,RESOURCES
Nottinghamshire County Council,01-08873,TRENT ARCHITECTURE AND DESIGN LIMITED,Professional Services,Professional Engineering Services,"10,210.72","2,042.14","12,252.86",28-Apr-11,RESOURCES
Nottinghamshire County Council,01-08874,TRENT ARCHITECTURE AND DESIGN LIMITED,Professional Services,Professional Engineering Services,"2,279.05",455.81,"2,734.86",28-Apr-11,RESOURCES
Nottinghamshire County Council,01-08875,TRENT ARCHITECTURE AND DESIGN LIMITED,Professional Services,Professional Engineering Services,673.35,134.67,808.02,28-Apr-11,RESOURCES
Nottinghamshire County Council,01-08878,CBP ARCHITECTS LIMITED,Professional Services,Professional Engineering Services,"2,021.50",404.3,"2,425.80",28-Apr-11,RESOURCES
Nottinghamshire County Council,01-08879,CBP ARCHITECTS LIMITED,Professional Services,Professional Engineering Services,"2,034.50",406.9,"2,441.40",28-Apr-11,RESOURCES
Nottinghamshire County Council,01-08880,CBP ARCHITECTS LIMITED,Professional Services,Professional Engineering Services,"2,028.00",405.6,"2,433.60",28-Apr-11,RESOURCES
Nottinghamshire County Council,01-08881,CBP ARCHITECTS LIMITED,Professional Services,Professional Engineering Services,"2,306.00",461.2,"2,767.20",28-Apr-11,RESOURCES
Nottinghamshire County Council,01-08891,GLEEDS MANAGEMENT SERVICES LIMITED,Professional Services,Property Management,"1,279.88",255.98,"1,535.86",28-Apr-11,RESOURCES
Nottinghamshire County Council,01-08892,GLEEDS MANAGEMENT SERVICES LIMITED,Professional Services,Property Management,"5,542.92","1,108.58","6,651.50",28-Apr-11,RESOURCES
Nottinghamshire County Council,01-08893,GLEEDS MANAGEMENT SERVICES LIMITED,Professional Services,Property Management,"1,750.00",350,"2,100.00",28-Apr-11,RESOURCES
Nottinghamshire County Council,01-02929,TMH (WEST HALLAM) LIMITED,People,Agency Staff - Manual,"1,593.66",0,"1,593.66",08-Apr-11,RESOURCES
Nottinghamshire County Council,01-02929,TMH (WEST HALLAM) LIMITED,People,Agency Staff - Manual,36.8,0,36.8,08-Apr-11,RESOURCES
Nottinghamshire County Council,01-00399,NOTTINGHAM CITY COUNCIL,Professional Services,Politics and Civic Affairs,"3,462.30",692.46,"4,154.76",01-Apr-11,RESOURCES
Nottinghamshire County Council,01-02046,NOTTINGHAM CITY COUNCIL,Professional Services,Politics and Civic Affairs,"4,476.50",895.3,"5,371.80",14-Apr-11,RESOURCES
Nottinghamshire County Council,01-02547,GEDLING BOROUGH COUNCIL,Professional Services,Politics and Civic Affairs,515.16,0,515.16,07-Apr-11,COMMUNITIES
Nottinghamshire County Council,01-02537,MANSFIELD DISTRICT COUNCIL,Professional Services,Politics and Civic Affairs,"-1,298.12",0,"-1,298.12",18-Apr-11,COMMUNITIES
Nottinghamshire County Council,01-02534,ASHFIELD DISTRICT COUNCIL,Professional Services,Politics and Civic Affairs,"41,645.00",0,"41,645.00",14-Apr-11,COMMUNITIES
Nottinghamshire County Council,01-02534,ASHFIELD DISTRICT COUNCIL,Professional Services,Politics and Civic Affairs,"-2,893.24",0,"-2,893.24",14-Apr-11,COMMUNITIES
Nottinghamshire County Council,01-00818,BROXTOWE BOROUGH COUNCIL,Professional Services,Politics and Civic Affairs,"33,991.00","6,798.20","40,789.20",18-Apr-11,COMMUNITIES
Nottinghamshire County Council,01-00818,BROXTOWE BOROUGH COUNCIL,Professional Services,Politics and Civic Affairs,"-1,524.00",-304.8,"-1,828.80",18-Apr-11,COMMUNITIES
Nottinghamshire County Council,01-02034,BROXTOWE BOROUGH COUNCIL,Professional Services,Politics and Civic Affairs,"33,991.00","6,798.20","40,789.20",05-Apr-11,COMMUNITIES
Nottinghamshire County Council,01-02034,BROXTOWE BOROUGH COUNCIL,Professional Services,Politics and Civic Affairs,"-1,591.00",-318.2,"-1,909.20",05-Apr-11,COMMUNITIES
Nottinghamshire County Council,01-03859,BROXTOWE BOROUGH COUNCIL,Professional Services,Politics and Civic Affairs,"33,991.00","6,798.20","40,789.20",28-Apr-11,COMMUNITIES
Nottinghamshire County Council,01-03859,BROXTOWE BOROUGH COUNCIL,Professional Services,Politics and Civic Affairs,"-1,336.00",-267.2,"-1,603.20",28-Apr-11,COMMUNITIES
Nottinghamshire County Council,01-01064,BARKER ROSS LIMITED,People,Recruitment,43.6,8.72,52.32,26-Apr-11,COMMUNITIES
Nottinghamshire County Council,01-01064,BARKER ROSS LIMITED,People,Recruitment,"1,247.00",249.4,"1,496.40",26-Apr-11,COMMUNITIES
Nottinghamshire County Council,01-02569,BARKER ROSS LIMITED,People,Recruitment,52,10.4,62.4,26-Apr-11,COMMUNITIES
Nottinghamshire County Council,01-02569,BARKER ROSS LIMITED,People,Recruitment,"1,261.50",252.3,"1,513.80",26-Apr-11,COMMUNITIES
Nottinghamshire County Council,01-04715,BARKER ROSS LIMITED,People,Recruitment,52.5,10.5,63,19-Apr-11,COMMUNITIES
Nottinghamshire County Council,01-04715,BARKER ROSS LIMITED,People,Recruitment,"1,247.00",249.4,"1,496.40",19-Apr-11,COMMUNITIES
Nottinghamshire County Council,01-08865,BARKER ROSS LIMITED,People,Recruitment,117.6,23.52,141.12,28-Apr-11,COMMUNITIES
Nottinghamshire County Council,01-08865,BARKER ROSS LIMITED,People,Recruitment,"1,270.78",254.16,"1,524.94",28-Apr-11,COMMUNITIES
Nottinghamshire County Council,01-03470,ROAD SAFETY MARKINGS ASSOCIATION,External Services (Highways and Culture),Highways and Works,500,100,600,21-Apr-11,COMMUNITIES
Nottinghamshire County Council,01-01063,BARKER ROSS LIMITED,People,Recruitment,"1,076.60",215.32,"1,291.92",11-Apr-11,COMMUNITIES
Nottinghamshire County Council,01-01869,RAI TECHNICAL LIMITED,Hard Facilities Management ,Tools and General Machinery,133.38,26.68,160.06,27-Apr-11,COMMUNITIES
Nottinghamshire County Council,01-01869,RAI TECHNICAL LIMITED,Hard Facilities Management ,Tools and General Machinery,607.5,121.5,729,27-Apr-11,COMMUNITIES
Nottinghamshire County Council,01-03331,BARKER ROSS LIMITED,People,Recruitment,"1,256.80",251.36,"1,508.16",11-Apr-11,COMMUNITIES
Nottinghamshire County Council,01-03478,RAI TECHNICAL LIMITED,Hard Facilities Management ,Tools and General Machinery,108,21.6,129.6,13-Apr-11,COMMUNITIES
Nottinghamshire County Council,01-03478,RAI TECHNICAL LIMITED,Hard Facilities Management ,Tools and General Machinery,607.5,121.5,729,13-Apr-11,COMMUNITIES
Nottinghamshire County Council,01-04716,BARKER ROSS LIMITED,People,Recruitment,969.6,193.92,"1,163.52",21-Apr-11,COMMUNITIES
Nottinghamshire County Council,01-00033,INSTARMAC LIMITED,External Services (Highways and Culture),Highways and Works,"1,358.00",271.6,"1,629.60",07-Apr-11,COMMUNITIES
Nottinghamshire County Council,01-00254,TIMBER CENTRE,Hard Facilities Management ,Carpentry Services,158.4,31.68,190.08,04-Apr-11,COMMUNITIES
Nottinghamshire County Council,01-00254,TIMBER CENTRE,Hard Facilities Management ,Carpentry Services,264.6,52.92,317.52,04-Apr-11,COMMUNITIES
Nottinghamshire County Council,01-00254,TIMBER CENTRE,Hard Facilities Management ,Carpentry Services,751.2,150.24,901.44,04-Apr-11,COMMUNITIES
Nottinghamshire County Council,01-00254,TIMBER CENTRE,Hard Facilities Management ,Carpentry Services,788.76,157.75,946.51,04-Apr-11,COMMUNITIES
Nottinghamshire County Council,01-00406,JOBLING PURSER LIMITED,External Services (Highways and Culture),Earth and Stone Aggregates ,"2,184.60",436.92,"2,621.52",19-Apr-11,COMMUNITIES
Nottinghamshire County Council,01-00406,JOBLING PURSER LIMITED,External Services (Highways and Culture),Earth and Stone Aggregates ,320,64,384,19-Apr-11,COMMUNITIES
Nottinghamshire County Council,01-00442,BRITISH OXYGEN COMPANY LIMITED,External Services (Highways and Culture),Chemicals and Gases,336,67.2,403.2,12-Apr-11,COMMUNITIES
Nottinghamshire County Council,01-00442,BRITISH OXYGEN COMPANY LIMITED,External Services (Highways and Culture),Chemicals and Gases,381.9,76.38,458.28,12-Apr-11,COMMUNITIES
Nottinghamshire County Council,01-00863,W T BURDEN LIMITED,Hard Facilities Management ,Building and Construction Supplies,45.18,9.04,54.22,01-Apr-11,COMMUNITIES
Nottinghamshire County Council,01-00863,W T BURDEN LIMITED,Hard Facilities Management ,Building and Construction Supplies,"1,723.50",344.7,"2,068.20",01-Apr-11,COMMUNITIES
Nottinghamshire County Council,01-01062,AYTON ASPHALT,External Services (Highways and Culture),Highways and Works,"1,478.40",295.68,"1,774.08",07-Apr-11,COMMUNITIES
Nottinghamshire County Council,01-01062,AYTON ASPHALT,External Services (Highways and Culture),Highways and Works,57.6,11.52,69.12,07-Apr-11,COMMUNITIES
Nottinghamshire County Council,01-01069,AGGREGATE INDUSTRIES UK,External Services (Highways and Culture),Earth and Stone Aggregates ,333.12,66.62,399.74,04-Apr-11,COMMUNITIES
Nottinghamshire County Council,01-01069,AGGREGATE INDUSTRIES UK,External Services (Highways and Culture),Earth and Stone Aggregates ,359.04,71.81,430.85,04-Apr-11,COMMUNITIES
Nottinghamshire County Council,01-01069,AGGREGATE INDUSTRIES UK,External Services (Highways and Culture),Earth and Stone Aggregates ,494.64,98.93,593.57,04-Apr-11,COMMUNITIES
Nottinghamshire County Council,01-01070,AGGREGATE INDUSTRIES UK,External Services (Highways and Culture),Earth and Stone Aggregates ,412.2,82.44,494.64,04-Apr-11,COMMUNITIES
Nottinghamshire County Council,01-01070,AGGREGATE INDUSTRIES UK,External Services (Highways and Culture),Earth and Stone Aggregates ,969,193.8,"1,162.80",04-Apr-11,COMMUNITIES
Nottinghamshire County Council,01-01070,AGGREGATE INDUSTRIES UK,External Services (Highways and Culture),Earth and Stone Aggregates ,969,193.8,"1,162.80",04-Apr-11,COMMUNITIES
Nottinghamshire County Council,01-01071,AGGREGATE INDUSTRIES UK,External Services (Highways and Culture),Earth and Stone Aggregates ,948.06,189.61,"1,137.67",04-Apr-11,COMMUNITIES
Nottinghamshire County Council,01-01072,AGGREGATE INDUSTRIES UK,External Services (Highways and Culture),Earth and Stone Aggregates ,70.02,14,84.02,04-Apr-11,COMMUNITIES
Nottinghamshire County Council,01-01072,AGGREGATE INDUSTRIES UK,External Services (Highways and Culture),Earth and Stone Aggregates ,70.02,14,84.02,04-Apr-11,COMMUNITIES
Nottinghamshire County Council,01-01072,AGGREGATE INDUSTRIES UK,External Services (Highways and Culture),Earth and Stone Aggregates ,83.28,16.66,99.94,04-Apr-11,COMMUNITIES
Nottinghamshire County Council,01-01072,AGGREGATE INDUSTRIES UK,External Services (Highways and Culture),Earth and Stone Aggregates ,83.28,16.66,99.94,04-Apr-11,COMMUNITIES
Nottinghamshire County Council,01-01072,AGGREGATE INDUSTRIES UK,External Services (Highways and Culture),Earth and Stone Aggregates ,412.2,82.44,494.64,04-Apr-11,COMMUNITIES
Nottinghamshire County Council,01-01072,AGGREGATE INDUSTRIES UK,External Services (Highways and Culture),Earth and Stone Aggregates ,479.6,95.92,575.52,04-Apr-11,COMMUNITIES
Nottinghamshire County Council,01-01072,AGGREGATE INDUSTRIES UK,External Services (Highways and Culture),Earth and Stone Aggregates ,775.2,155.04,930.24,04-Apr-11,COMMUNITIES
Nottinghamshire County Council,01-01459,TIMBER CENTRE,Hard Facilities Management ,Carpentry Services,-788.76,-157.75,-946.51,04-Apr-11,COMMUNITIES
Nottinghamshire County Council,01-01496,W T BURDEN LIMITED,Hard Facilities Management ,Building and Construction Supplies,537.77,107.55,645.32,04-Apr-11,COMMUNITIES
Nottinghamshire County Council,01-01497,W T BURDEN LIMITED,Hard Facilities Management ,Building and Construction Supplies,717.02,143.4,860.42,04-Apr-11,COMMUNITIES
Nottinghamshire County Council,01-01498,ENERGAS LIMITED,External Services (Highways and Culture),Chemicals and Gases,195.07,39.01,234.08,04-Apr-11,COMMUNITIES
Nottinghamshire County Council,01-01498,ENERGAS LIMITED,External Services (Highways and Culture),Chemicals and Gases,589.06,117.81,706.87,04-Apr-11,COMMUNITIES
Nottinghamshire County Council,01-01498,ENERGAS LIMITED,External Services (Highways and Culture),Chemicals and Gases,71.8,3.59,75.39,04-Apr-11,COMMUNITIES
Nottinghamshire County Council,01-01499,HUGH LOGAN ENGINEERING,Hard Facilities Management ,Structural Steel Erection Services,227.12,45.42,272.54,04-Apr-11,COMMUNITIES
Nottinghamshire County Council,01-01499,HUGH LOGAN ENGINEERING,Hard Facilities Management ,Structural Steel Erection Services,657,131.4,788.4,04-Apr-11,COMMUNITIES
Nottinghamshire County Council,01-01500,INDUSTRIAL DIAMOND SERVICES,External Services (Highways and Culture),Construction Plant and Equipment,"2,200.00",440,"2,640.00",04-Apr-11,COMMUNITIES
Nottinghamshire County Council,01-01501,KEYLINE BUILDERS MERCHANTS,Hard Facilities Management ,Building Construction Services,855.6,171.12,"1,026.72",04-Apr-11,COMMUNITIES
Nottinghamshire County Council,01-01502,KEYLINE BUILDERS MERCHANTS,Hard Facilities Management ,Building Construction Services,855.6,171.12,"1,026.72",04-Apr-11,COMMUNITIES
Nottinghamshire County Council,01-01503,SIGNPOST SOLUTIONS LIMITED,Soft Facilities Management,Printed media and Signage,28,5.6,33.6,04-Apr-11,COMMUNITIES
Nottinghamshire County Council,01-01503,SIGNPOST SOLUTIONS LIMITED,Soft Facilities Management,Printed media and Signage,284,56.8,340.8,04-Apr-11,COMMUNITIES
Nottinghamshire County Council,01-01503,SIGNPOST SOLUTIONS LIMITED,Soft Facilities Management,Printed media and Signage,481,96.2,577.2,04-Apr-11,COMMUNITIES
Nottinghamshire County Council,01-01503,SIGNPOST SOLUTIONS LIMITED,Soft Facilities Management,Printed media and Signage,716,143.2,859.2,04-Apr-11,COMMUNITIES
Nottinghamshire County Council,01-01503,SIGNPOST SOLUTIONS LIMITED,Soft Facilities Management,Printed media and Signage,"2,510.40",502.08,"3,012.48",04-Apr-11,COMMUNITIES
Nottinghamshire County Council,01-01504,SIGNPOST SOLUTIONS LIMITED,Soft Facilities Management,Printed media and Signage,665.4,133.08,798.48,04-Apr-11,COMMUNITIES
Nottinghamshire County Council,01-01505,URBIS LIGHTING LIMITED,Hard Facilities Management ,Electrical Systems and Lighting,"1,196.90",239.38,"1,436.28",04-Apr-11,COMMUNITIES
Nottinghamshire County Council,01-01505,URBIS LIGHTING LIMITED,Hard Facilities Management ,Electrical Systems and Lighting,"1,196.90",239.38,"1,436.28",04-Apr-11,COMMUNITIES
Nottinghamshire County Council,01-01505,URBIS LIGHTING LIMITED,Hard Facilities Management ,Electrical Systems and Lighting,"1,391.80",278.36,"1,670.16",04-Apr-11,COMMUNITIES
Nottinghamshire County Council,01-01505,URBIS LIGHTING LIMITED,Hard Facilities Management ,Electrical Systems and Lighting,60,12,72,04-Apr-11,COMMUNITIES
Nottinghamshire County Council,01-01852,ABACUS LIGHTING LIMITED,Hard Facilities Management ,Electrical Systems and Lighting,"7,748.75","1,549.75","9,298.50",04-Apr-11,COMMUNITIES
Nottinghamshire County Council,01-01853,INSTARMAC LIMITED,External Services (Highways and Culture),Highways and Works,"1,086.40",217.28,"1,303.68",04-Apr-11,COMMUNITIES
Nottinghamshire County Council,01-01870,BUILD CENTER/WOLSELEY CENTERS,Hard Facilities Management ,Building and Construction Supplies,599.4,119.88,719.28,04-Apr-11,COMMUNITIES
Nottinghamshire County Council,01-02091,EMO OIL LIMITED,Hard Facilities Management ,Utilities,"1,327.20",66.36,"1,393.56",05-Apr-11,COMMUNITIES
Nottinghamshire County Council,01-02092,EMO OIL LIMITED,Hard Facilities Management ,Utilities,"4,601.60",920.32,"5,521.92",05-Apr-11,COMMUNITIES
Nottinghamshire County Council,01-02093,EMO OIL LIMITED,Hard Facilities Management ,Utilities,"3,454.20",690.84,"4,145.04",05-Apr-11,COMMUNITIES
Nottinghamshire County Council,01-02103,PUDSEY DIAMOND ENGINEERING LIMITED,Professional Services,Professional Engineering Services,168.3,33.66,201.96,20-Apr-11,COMMUNITIES
Nottinghamshire County Council,01-02103,PUDSEY DIAMOND ENGINEERING LIMITED,Professional Services,Professional Engineering Services,980.8,196.16,"1,176.96",20-Apr-11,COMMUNITIES
Nottinghamshire County Council,01-02103,PUDSEY DIAMOND ENGINEERING LIMITED,Professional Services,Professional Engineering Services,"1,350.70",270.14,"1,620.84",20-Apr-11,COMMUNITIES
Nottinghamshire County Council,01-02158,PUDSEY DIAMOND ENGINEERING LIMITED,Professional Services,Professional Engineering Services,178.4,35.68,214.08,20-Apr-11,COMMUNITIES
Nottinghamshire County Council,01-02158,PUDSEY DIAMOND ENGINEERING LIMITED,Professional Services,Professional Engineering Services,"1,039.60",207.92,"1,247.52",20-Apr-11,COMMUNITIES
Nottinghamshire County Council,01-02158,PUDSEY DIAMOND ENGINEERING LIMITED,Professional Services,Professional Engineering Services,"1,431.70",286.34,"1,718.04",20-Apr-11,COMMUNITIES
Nottinghamshire County Council,01-02568,AYTON ASPHALT,External Services (Highways and Culture),Highways and Works,"1,600.00",320,"1,920.00",11-Apr-11,COMMUNITIES
Nottinghamshire County Council,01-02572,R WHITEHEAD CONCRETE LIMITED,Hard Facilities Management ,Concrete installation and repair services,684,136.8,820.8,11-Apr-11,COMMUNITIES
Nottinghamshire County Council,01-02771,KEYLINE BUILDERS MERCHANTS,Hard Facilities Management ,Building Construction Services,"1,683.60",336.72,"2,020.32",11-Apr-11,COMMUNITIES
Nottinghamshire County Council,01-03152,TRAFFIC MANAGEMENT SUPPLIES LIMITED,External Services (Highways and Culture),Highways and Works,470,94,564,12-Apr-11,COMMUNITIES
Nottinghamshire County Council,01-03201,PARKER MERCHANTING LIMITED,Soft Facilities Management,Paper and Paper Products,11.7,2.34,14.04,28-Apr-11,COMMUNITIES
Nottinghamshire County Council,01-03201,PARKER MERCHANTING LIMITED,Soft Facilities Management,Paper and Paper Products,414,82.8,496.8,28-Apr-11,COMMUNITIES
Nottinghamshire County Council,01-03203,SMITH BROS CAERCONAN WHOLESALE LIMITED,Hard Facilities Management ,Electronic Components and Supplies,"2,269.20",453.84,"2,723.04",13-Apr-11,COMMUNITIES
Nottinghamshire County Council,01-03203,SMITH BROS CAERCONAN WHOLESALE LIMITED,Hard Facilities Management ,Electronic Components and Supplies,40,8,48,13-Apr-11,COMMUNITIES
Nottinghamshire County Council,01-03204,SMITH BROS CAERCONAN WHOLESALE LIMITED,Hard Facilities Management ,Electronic Components and Supplies,680.76,136.15,816.91,21-Apr-11,COMMUNITIES
Nottinghamshire County Council,01-03204,SMITH BROS CAERCONAN WHOLESALE LIMITED,Hard Facilities Management ,Electronic Components and Supplies,12,2.4,14.4,21-Apr-11,COMMUNITIES
Nottinghamshire County Council,01-03205,SMITH BROS CAERCONAN WHOLESALE LIMITED,Hard Facilities Management ,Electronic Components and Supplies,"3,403.80",680.76,"4,084.56",13-Apr-11,COMMUNITIES
Nottinghamshire County Council,01-03205,SMITH BROS CAERCONAN WHOLESALE LIMITED,Hard Facilities Management ,Electronic Components and Supplies,60,12,72,13-Apr-11,COMMUNITIES
Nottinghamshire County Council,01-03440,BLUE DIAMOND SERVICES LIMITED,Soft Facilities Management,Industrial Cleaning Services,248.4,49.68,298.08,12-Apr-11,COMMUNITIES
Nottinghamshire County Council,01-03440,BLUE DIAMOND SERVICES LIMITED,Soft Facilities Management,Industrial Cleaning Services,248.4,49.68,298.08,12-Apr-11,COMMUNITIES
Nottinghamshire County Council,01-03441,CLEVELAND CABLE COMPANY LIMITED,Hard Facilities Management ,Electrical Systems and Lighting,386,77.2,463.2,20-Apr-11,COMMUNITIES
Nottinghamshire County Council,01-03441,CLEVELAND CABLE COMPANY LIMITED,Hard Facilities Management ,Electrical Systems and Lighting,"3,452.00",690.4,"4,142.40",20-Apr-11,COMMUNITIES
Nottinghamshire County Council,01-03441,CLEVELAND CABLE COMPANY LIMITED,Hard Facilities Management ,Electrical Systems and Lighting,"4,226.00",845.2,"5,071.20",20-Apr-11,COMMUNITIES
Nottinghamshire County Council,01-03442,INSTARMAC LIMITED,External Services (Highways and Culture),Highways and Works,543.2,108.64,651.84,12-Apr-11,COMMUNITIES
Nottinghamshire County Council,01-03443,INSTARMAC LIMITED,External Services (Highways and Culture),Highways and Works,"1,358.00",271.6,"1,629.60",12-Apr-11,COMMUNITIES
Nottinghamshire County Council,01-03444,MARWOOD ELECTRICAL CO LIMITED,Hard Facilities Management ,Electrical Systems and Lighting,878.4,175.68,"1,054.08",13-Apr-11,COMMUNITIES
Nottinghamshire County Council,01-03444,MARWOOD ELECTRICAL CO LIMITED,Hard Facilities Management ,Electrical Systems and Lighting,24,4.8,28.8,13-Apr-11,COMMUNITIES
Nottinghamshire County Council,01-03445,SULLIVAN HOLDINGS LIMITED,TBC,TBC,710,142,852,13-Apr-11,COMMUNITIES
Nottinghamshire County Council,01-03445,SULLIVAN HOLDINGS LIMITED,TBC,TBC,865,173,"1,038.00",13-Apr-11,COMMUNITIES
Nottinghamshire County Council,01-03479,W T BURDEN LIMITED,Hard Facilities Management ,Building and Construction Supplies,717.02,143.4,860.42,13-Apr-11,COMMUNITIES
Nottinghamshire County Council,01-03747,BUCKLEY ENGINEERING SERVICES LIMITED,Professional Services,Professional Engineering Services,"1,571.70",314.34,"1,886.04",13-Apr-11,COMMUNITIES
Nottinghamshire County Council,01-03748,I S P INDUSTRIAL SUPPORT PRODUCTS LIMITED,Hard Facilities Management ,Electrical Systems and Lighting,322.5,64.5,387,13-Apr-11,COMMUNITIES
Nottinghamshire County Council,01-03748,I S P INDUSTRIAL SUPPORT PRODUCTS LIMITED,Hard Facilities Management ,Electrical Systems and Lighting,575,115,690,13-Apr-11,COMMUNITIES
Nottinghamshire County Council,01-03749,ZODIAN (ZODION LIMITED),External Services (Highways and Culture),Highways and Works,"1,170.00",234,"1,404.00",13-Apr-11,COMMUNITIES
Nottinghamshire County Council,01-03794,EMO OIL LIMITED,Hard Facilities Management ,Utilities,"5,737.29","1,147.46","6,884.75",13-Apr-11,COMMUNITIES
Nottinghamshire County Council,01-03795,EMO OIL LIMITED,Hard Facilities Management ,Utilities,"3,462.00",692.4,"4,154.40",13-Apr-11,COMMUNITIES
Nottinghamshire County Council,01-04210,EMO OIL LIMITED,Hard Facilities Management ,Utilities,"5,745.65","1,149.13","6,894.78",15-Apr-11,COMMUNITIES
Nottinghamshire County Council,01-04211,EMO OIL LIMITED,Hard Facilities Management ,Utilities,"1,351.28",67.56,"1,418.84",15-Apr-11,COMMUNITIES
Nottinghamshire County Council,01-04266,THE POST and COLUMN CO LIMITED,Hard Facilities Management ,Building and Construction Supplies,"4,176.50",835.3,"5,011.80",21-Apr-11,COMMUNITIES
Nottinghamshire County Council,01-04554,ADR TOWING,Transport and Travel,Fleet Maintenance Services,504,100.8,604.8,20-Apr-11,COMMUNITIES
Nottinghamshire County Council,01-04555,GLASDON UK LIMITED,Soft Facilities Management,Cleaning Equipment and Janitorial Supplies,896.4,179.28,"1,075.68",20-Apr-11,COMMUNITIES
Nottinghamshire County Council,01-04631,RENNICKS (UK) LIMITED,External Services (Highways and Culture),Highways and Works,102.08,20.42,122.5,20-Apr-11,COMMUNITIES
Nottinghamshire County Council,01-04631,RENNICKS (UK) LIMITED,External Services (Highways and Culture),Highways and Works,114.87,22.97,137.84,20-Apr-11,COMMUNITIES
Nottinghamshire County Council,01-04631,RENNICKS (UK) LIMITED,External Services (Highways and Culture),Highways and Works,235.37,47.07,282.44,20-Apr-11,COMMUNITIES
Nottinghamshire County Council,01-05147,AGGREGATE INDUSTRIES UK,External Services (Highways and Culture),Earth and Stone Aggregates ,948.06,189.61,"1,137.67",26-Apr-11,COMMUNITIES
Nottinghamshire County Council,01-05147,AGGREGATE INDUSTRIES UK,External Services (Highways and Culture),Earth and Stone Aggregates ,18,3.6,21.6,26-Apr-11,COMMUNITIES
Nottinghamshire County Council,01-05148,BEESWIFT,Soft Facilities Management,Clothing,95.8,19.16,114.96,26-Apr-11,COMMUNITIES
Nottinghamshire County Council,01-05148,BEESWIFT,Soft Facilities Management,Clothing,95.8,19.16,114.96,26-Apr-11,COMMUNITIES
Nottinghamshire County Council,01-05148,BEESWIFT,Soft Facilities Management,Clothing,143.7,28.74,172.44,26-Apr-11,COMMUNITIES
Nottinghamshire County Council,01-05148,BEESWIFT,Soft Facilities Management,Clothing,239.5,47.9,287.4,26-Apr-11,COMMUNITIES
Nottinghamshire County Council,01-05149,CLEVELAND CABLE COMPANY LIMITED,Hard Facilities Management ,Electrical Systems and Lighting,296,59.2,355.2,26-Apr-11,COMMUNITIES
Nottinghamshire County Council,01-05149,CLEVELAND CABLE COMPANY LIMITED,Hard Facilities Management ,Electrical Systems and Lighting,386,77.2,463.2,26-Apr-11,COMMUNITIES
Nottinghamshire County Council,01-05150,MUDFORDS LIMITED,Hard Facilities Management ,Building and Construction Supplies,460.8,92.16,552.96,26-Apr-11,COMMUNITIES
Nottinghamshire County Council,01-05151,SIGNPOST SOLUTIONS LIMITED,Soft Facilities Management,Printed media and Signage,56,11.2,67.2,26-Apr-11,COMMUNITIES
Nottinghamshire County Council,01-05151,SIGNPOST SOLUTIONS LIMITED,Soft Facilities Management,Printed media and Signage,922.4,184.48,"1,106.88",26-Apr-11,COMMUNITIES
Nottinghamshire County Council,01-05151,SIGNPOST SOLUTIONS LIMITED,Soft Facilities Management,Printed media and Signage,"1,067.60",213.52,"1,281.12",26-Apr-11,COMMUNITIES
Nottinghamshire County Council,01-05369,SIGNPOST SOLUTIONS LIMITED,Soft Facilities Management,Printed media and Signage,"2,128.40",425.68,"2,554.08",26-Apr-11,COMMUNITIES
Nottinghamshire County Council,01-05405,EMO OIL LIMITED,Hard Facilities Management ,Utilities,"3,514.80",702.96,"4,217.76",26-Apr-11,COMMUNITIES
Nottinghamshire County Council,01-05459,COLAS LIMITED,Professional Services,Professional Engineering Services,"1,046.88",209.38,"1,256.26",28-Apr-11,COMMUNITIES
Nottinghamshire County Council,01-00233,KONICA MINOLTA,ICT,"Printing and Publishing, Equipment and Supplies",513.84,102.77,616.61,04-Apr-11,COMMUNITIES
Nottinghamshire County Council,01-00234,KONICA MINOLTA,ICT,"Printing and Publishing, Equipment and Supplies",513.84,102.77,616.61,04-Apr-11,COMMUNITIES
Nottinghamshire County Council,01-00023,ESSO PETROLEUM,Transport and Travel,Gas fuels and lubricants ,"1,250.00",218.75,"1,468.75",11-Apr-11,COMMUNITIES
Nottinghamshire County Council,01-02570,ESSO PETROLEUM,Transport and Travel,Gas fuels and lubricants ,"1,250.00",250,"1,500.00",26-Apr-11,COMMUNITIES
Nottinghamshire County Council,01-02909,COMPUTER AND DESIGN SERVICES LIMITED,ICT,"Printing and Publishing, Equipment and Supplies",200,0,200,08-Apr-11,COMMUNITIES
Nottinghamshire County Council,01-02909,COMPUTER AND DESIGN SERVICES LIMITED,ICT,"Printing and Publishing, Equipment and Supplies",355,0,355,08-Apr-11,COMMUNITIES
Nottinghamshire County Council,01-02909,COMPUTER AND DESIGN SERVICES LIMITED,ICT,"Printing and Publishing, Equipment and Supplies",300,0,300,08-Apr-11,COMMUNITIES
Nottinghamshire County Council,01-02909,COMPUTER AND DESIGN SERVICES LIMITED,ICT,"Printing and Publishing, Equipment and Supplies",300,0,300,08-Apr-11,COMMUNITIES
Nottinghamshire County Council,01-02909,COMPUTER AND DESIGN SERVICES LIMITED,ICT,"Printing and Publishing, Equipment and Supplies",615,0,615,08-Apr-11,COMMUNITIES
Nottinghamshire County Council,01-00431,GOLDEN RIVER TRAFFIC LIMITED,External Services (Highways and Culture),Highways and Works,65,0,65,01-Apr-11,COMMUNITIES
Nottinghamshire County Council,01-00431,GOLDEN RIVER TRAFFIC LIMITED,External Services (Highways and Culture),Highways and Works,65,0,65,01-Apr-11,COMMUNITIES
Nottinghamshire County Council,01-00431,GOLDEN RIVER TRAFFIC LIMITED,External Services (Highways and Culture),Highways and Works,65,0,65,01-Apr-11,COMMUNITIES
Nottinghamshire County Council,01-00431,GOLDEN RIVER TRAFFIC LIMITED,External Services (Highways and Culture),Highways and Works,65,0,65,01-Apr-11,COMMUNITIES
Nottinghamshire County Council,01-00431,GOLDEN RIVER TRAFFIC LIMITED,External Services (Highways and Culture),Highways and Works,65,0,65,01-Apr-11,COMMUNITIES
Nottinghamshire County Council,01-00431,GOLDEN RIVER TRAFFIC LIMITED,External Services (Highways and Culture),Highways and Works,65,0,65,01-Apr-11,COMMUNITIES
Nottinghamshire County Council,01-00431,GOLDEN RIVER TRAFFIC LIMITED,External Services (Highways and Culture),Highways and Works,65,0,65,01-Apr-11,COMMUNITIES
Nottinghamshire County Council,01-00431,GOLDEN RIVER TRAFFIC LIMITED,External Services (Highways and Culture),Highways and Works,65,0,65,01-Apr-11,COMMUNITIES
Nottinghamshire County Council,01-00431,GOLDEN RIVER TRAFFIC LIMITED,External Services (Highways and Culture),Highways and Works,65,0,65,01-Apr-11,COMMUNITIES
Nottinghamshire County Council,01-00431,GOLDEN RIVER TRAFFIC LIMITED,External Services (Highways and Culture),Highways and Works,65,0,65,01-Apr-11,COMMUNITIES
Nottinghamshire County Council,01-00431,GOLDEN RIVER TRAFFIC LIMITED,External Services (Highways and Culture),Highways and Works,65,0,65,01-Apr-11,COMMUNITIES
Nottinghamshire County Council,01-00431,GOLDEN RIVER TRAFFIC LIMITED,External Services (Highways and Culture),Highways and Works,65,0,65,01-Apr-11,COMMUNITIES
Nottinghamshire County Council,01-00431,GOLDEN RIVER TRAFFIC LIMITED,External Services (Highways and Culture),Highways and Works,65,0,65,01-Apr-11,COMMUNITIES
Nottinghamshire County Council,01-01100,GOLDEN RIVER TRAFFIC LIMITED,External Services (Highways and Culture),Highways and Works,"6,000.00",0,"6,000.00",20-Apr-11,COMMUNITIES
Nottinghamshire County Council,01-01100,GOLDEN RIVER TRAFFIC LIMITED,External Services (Highways and Culture),Highways and Works,"1,980.00",0,"1,980.00",20-Apr-11,COMMUNITIES
Nottinghamshire County Council,01-01932,GOLDEN RIVER TRAFFIC LIMITED,External Services (Highways and Culture),Highways and Works,"16,500.00",0,"16,500.00",26-Apr-11,COMMUNITIES
Nottinghamshire County Council,01-01932,GOLDEN RIVER TRAFFIC LIMITED,External Services (Highways and Culture),Highways and Works,"1,090.00",0,"1,090.00",26-Apr-11,COMMUNITIES
Nottinghamshire County Council,01-01932,GOLDEN RIVER TRAFFIC LIMITED,External Services (Highways and Culture),Highways and Works,"2,390.00",0,"2,390.00",26-Apr-11,COMMUNITIES
Nottinghamshire County Council,01-01932,GOLDEN RIVER TRAFFIC LIMITED,External Services (Highways and Culture),Highways and Works,500,0,500,26-Apr-11,COMMUNITIES
Nottinghamshire County Council,01-01932,GOLDEN RIVER TRAFFIC LIMITED,External Services (Highways and Culture),Highways and Works,350,0,350,26-Apr-11,COMMUNITIES
Nottinghamshire County Council,01-01932,GOLDEN RIVER TRAFFIC LIMITED,External Services (Highways and Culture),Highways and Works,"-1,500.00",0,"-1,500.00",26-Apr-11,COMMUNITIES
Nottinghamshire County Council,01-02393,TRAFFIC TECHNOLOGY LIMITED,External Services (Highways and Culture),Highways and Works,480,0,480,21-Apr-11,COMMUNITIES
Nottinghamshire County Council,01-02393,TRAFFIC TECHNOLOGY LIMITED,External Services (Highways and Culture),Highways and Works,240,0,240,21-Apr-11,COMMUNITIES
Nottinghamshire County Council,01-02393,TRAFFIC TECHNOLOGY LIMITED,External Services (Highways and Culture),Highways and Works,480,0,480,21-Apr-11,COMMUNITIES
Nottinghamshire County Council,01-02393,TRAFFIC TECHNOLOGY LIMITED,External Services (Highways and Culture),Highways and Works,240,0,240,21-Apr-11,COMMUNITIES
Nottinghamshire County Council,01-02393,TRAFFIC TECHNOLOGY LIMITED,External Services (Highways and Culture),Highways and Works,"6,840.00",0,"6,840.00",21-Apr-11,COMMUNITIES
Nottinghamshire County Council,01-00911,CA TRAFFIC LIMITED,TBC,TBC,449.25,0,449.25,20-Apr-11,COMMUNITIES
Nottinghamshire County Council,01-03926,LIBERATA UK LIMITED,Care,Community and social services,790,0,790,14-Apr-11,COMMUNITIES
Nottinghamshire County Council,01-03926,LIBERATA UK LIMITED,Care,Community and social services,"28,750.00",0,"28,750.00",14-Apr-11,COMMUNITIES
Nottinghamshire County Council,01-03926,LIBERATA UK LIMITED,Care,Community and social services,"28,750.00",0,"28,750.00",14-Apr-11,COMMUNITIES
Nottinghamshire County Council,01-03926,LIBERATA UK LIMITED,Care,Community and social services,"28,750.00",0,"28,750.00",14-Apr-11,COMMUNITIES
Nottinghamshire County Council,01-04155,TRUVELO (UK) LIMITED,External Services (Highways and Culture),Highways and Works,25,4.38,29.38,15-Apr-11,COMMUNITIES
Nottinghamshire County Council,01-04155,TRUVELO (UK) LIMITED,External Services (Highways and Culture),Highways and Works,30,5.25,35.25,15-Apr-11,COMMUNITIES
Nottinghamshire County Council,01-04155,TRUVELO (UK) LIMITED,External Services (Highways and Culture),Highways and Works,48,8.4,56.4,15-Apr-11,COMMUNITIES
Nottinghamshire County Council,01-04155,TRUVELO (UK) LIMITED,External Services (Highways and Culture),Highways and Works,"1,175.73",205.75,"1,381.48",15-Apr-11,COMMUNITIES
Nottinghamshire County Council,01-04180,TRUVELO (UK) LIMITED,External Services (Highways and Culture),Highways and Works,495,0,495,15-Apr-11,COMMUNITIES
Nottinghamshire County Council,01-04180,TRUVELO (UK) LIMITED,External Services (Highways and Culture),Highways and Works,"1,850.00",0,"1,850.00",15-Apr-11,COMMUNITIES
Nottinghamshire County Council,01-04180,TRUVELO (UK) LIMITED,External Services (Highways and Culture),Highways and Works,240,0,240,15-Apr-11,COMMUNITIES
Nottinghamshire County Council,01-04180,TRUVELO (UK) LIMITED,External Services (Highways and Culture),Highways and Works,475,0,475,15-Apr-11,COMMUNITIES
Nottinghamshire County Council,01-04180,TRUVELO (UK) LIMITED,External Services (Highways and Culture),Highways and Works,60,0,60,15-Apr-11,COMMUNITIES
Nottinghamshire County Council,01-02723,LINCOLNSHIRE COUNTY COUNCIL,Professional Services,Politics and Civic Affairs,386,0,386,13-Apr-11,COMMUNITIES
Nottinghamshire County Council,01-02723,LINCOLNSHIRE COUNTY COUNCIL,Professional Services,Politics and Civic Affairs,225,0,225,13-Apr-11,COMMUNITIES
Nottinghamshire County Council,01-02723,LINCOLNSHIRE COUNTY COUNCIL,Professional Services,Politics and Civic Affairs,313,0,313,13-Apr-11,COMMUNITIES
Nottinghamshire County Council,01-00231,KONICA MINOLTA,ICT,"Printing and Publishing, Equipment and Supplies",513.84,102.77,616.61,04-Apr-11,COMMUNITIES
Nottinghamshire County Council,01-01642,KONICA MINOLTA,ICT,"Printing and Publishing, Equipment and Supplies",680.91,0,680.91,04-Apr-11,COMMUNITIES
Nottinghamshire County Council,01-02665,KONICA MINOLTA,ICT,"Printing and Publishing, Equipment and Supplies",291.94,0,291.94,11-Apr-11,COMMUNITIES
Nottinghamshire County Council,01-02665,KONICA MINOLTA,ICT,"Printing and Publishing, Equipment and Supplies",162.91,0,162.91,11-Apr-11,COMMUNITIES
Nottinghamshire County Council,01-02691,ROYAL MAIL GROUP PLC,Soft Facilities Management,Mail and Couriers,74.88,0,74.88,07-Apr-11,COMMUNITIES
Nottinghamshire County Council,01-02691,ROYAL MAIL GROUP PLC,Soft Facilities Management,Mail and Couriers,62.25,0,62.25,07-Apr-11,COMMUNITIES
Nottinghamshire County Council,01-02691,ROYAL MAIL GROUP PLC,Soft Facilities Management,Mail and Couriers,82.8,0,82.8,07-Apr-11,COMMUNITIES
Nottinghamshire County Council,01-02691,ROYAL MAIL GROUP PLC,Soft Facilities Management,Mail and Couriers,67.25,0,67.25,07-Apr-11,COMMUNITIES
Nottinghamshire County Council,01-02691,ROYAL MAIL GROUP PLC,Soft Facilities Management,Mail and Couriers,50.75,0,50.75,07-Apr-11,COMMUNITIES
Nottinghamshire County Council,01-02691,ROYAL MAIL GROUP PLC,Soft Facilities Management,Mail and Couriers,58.32,0,58.32,07-Apr-11,COMMUNITIES
Nottinghamshire County Council,01-02691,ROYAL MAIL GROUP PLC,Soft Facilities Management,Mail and Couriers,44.5,0,44.5,07-Apr-11,COMMUNITIES
Nottinghamshire County Council,01-02691,ROYAL MAIL GROUP PLC,Soft Facilities Management,Mail and Couriers,109.44,0,109.44,07-Apr-11,COMMUNITIES
Nottinghamshire County Council,01-02691,ROYAL MAIL GROUP PLC,Soft Facilities Management,Mail and Couriers,52.75,0,52.75,07-Apr-11,COMMUNITIES
Nottinghamshire County Council,01-02691,ROYAL MAIL GROUP PLC,Soft Facilities Management,Mail and Couriers,50.4,0,50.4,07-Apr-11,COMMUNITIES
Nottinghamshire County Council,01-02691,ROYAL MAIL GROUP PLC,Soft Facilities Management,Mail and Couriers,90.36,0,90.36,07-Apr-11,COMMUNITIES
Nottinghamshire County Council,01-02691,ROYAL MAIL GROUP PLC,Soft Facilities Management,Mail and Couriers,43.5,0,43.5,07-Apr-11,COMMUNITIES
Nottinghamshire County Council,01-02691,ROYAL MAIL GROUP PLC,Soft Facilities Management,Mail and Couriers,90.72,0,90.72,07-Apr-11,COMMUNITIES
Nottinghamshire County Council,01-02691,ROYAL MAIL GROUP PLC,Soft Facilities Management,Mail and Couriers,57,0,57,07-Apr-11,COMMUNITIES
Nottinghamshire County Council,01-02691,ROYAL MAIL GROUP PLC,Soft Facilities Management,Mail and Couriers,66.96,0,66.96,07-Apr-11,COMMUNITIES
Nottinghamshire County Council,01-02691,ROYAL MAIL GROUP PLC,Soft Facilities Management,Mail and Couriers,50,0,50,07-Apr-11,COMMUNITIES
Nottinghamshire County Council,01-02691,ROYAL MAIL GROUP PLC,Soft Facilities Management,Mail and Couriers,25,0,25,07-Apr-11,COMMUNITIES
Nottinghamshire County Council,01-02691,ROYAL MAIL GROUP PLC,Soft Facilities Management,Mail and Couriers,55.8,0,55.8,07-Apr-11,COMMUNITIES
Nottinghamshire County Council,01-02691,ROYAL MAIL GROUP PLC,Soft Facilities Management,Mail and Couriers,46.5,0,46.5,07-Apr-11,COMMUNITIES
Nottinghamshire County Council,01-02691,ROYAL MAIL GROUP PLC,Soft Facilities Management,Mail and Couriers,35.75,0,35.75,07-Apr-11,COMMUNITIES
Nottinghamshire County Council,01-02691,ROYAL MAIL GROUP PLC,Soft Facilities Management,Mail and Couriers,96.84,0,96.84,07-Apr-11,COMMUNITIES
Nottinghamshire County Council,01-02863,DERBYSHIRE COUNTY COUNCIL,Professional Services,Politics and Civic Affairs,"273,914.87",0,"273,914.87",11-Apr-11,COMMUNITIES
Nottinghamshire County Council,01-02922,CHIPSIDE LIMITED,ICT,Software,"1,076.77",0,"1,076.77",08-Apr-11,COMMUNITIES
Nottinghamshire County Council,01-02922,CHIPSIDE LIMITED,ICT,Software,"1,311.19",0,"1,311.19",08-Apr-11,COMMUNITIES
Nottinghamshire County Council,01-03960,EXPERIAN LIMITED,Professional Services,Financial and Insurance Services,"4,512.00",902.4,"5,414.40",15-Apr-11,COMMUNITIES
Nottinghamshire County Council,01-05006,ROYAL MAIL GROUP PLC,Soft Facilities Management,Mail and Couriers,92.16,0,92.16,20-Apr-11,COMMUNITIES
Nottinghamshire County Council,01-05006,ROYAL MAIL GROUP PLC,Soft Facilities Management,Mail and Couriers,19,0,19,20-Apr-11,COMMUNITIES
Nottinghamshire County Council,01-05006,ROYAL MAIL GROUP PLC,Soft Facilities Management,Mail and Couriers,106.2,0,106.2,20-Apr-11,COMMUNITIES
Nottinghamshire County Council,01-05006,ROYAL MAIL GROUP PLC,Soft Facilities Management,Mail and Couriers,65.5,0,65.5,20-Apr-11,COMMUNITIES
Nottinghamshire County Council,01-05006,ROYAL MAIL GROUP PLC,Soft Facilities Management,Mail and Couriers,49.32,0,49.32,20-Apr-11,COMMUNITIES
Nottinghamshire County Council,01-05006,ROYAL MAIL GROUP PLC,Soft Facilities Management,Mail and Couriers,29,0,29,20-Apr-11,COMMUNITIES
Nottinghamshire County Council,01-05006,ROYAL MAIL GROUP PLC,Soft Facilities Management,Mail and Couriers,35.5,0,35.5,20-Apr-11,COMMUNITIES
Nottinghamshire County Council,01-05006,ROYAL MAIL GROUP PLC,Soft Facilities Management,Mail and Couriers,98.28,0,98.28,20-Apr-11,COMMUNITIES
Nottinghamshire County Council,01-05006,ROYAL MAIL GROUP PLC,Soft Facilities Management,Mail and Couriers,35.28,0,35.28,20-Apr-11,COMMUNITIES
Nottinghamshire County Council,01-05006,ROYAL MAIL GROUP PLC,Soft Facilities Management,Mail and Couriers,18.5,0,18.5,20-Apr-11,COMMUNITIES
Nottinghamshire County Council,01-05006,ROYAL MAIL GROUP PLC,Soft Facilities Management,Mail and Couriers,18.75,0,18.75,20-Apr-11,COMMUNITIES
Nottinghamshire County Council,01-05006,ROYAL MAIL GROUP PLC,Soft Facilities Management,Mail and Couriers,239.76,0,239.76,20-Apr-11,COMMUNITIES
Nottinghamshire County Council,01-05006,ROYAL MAIL GROUP PLC,Soft Facilities Management,Mail and Couriers,52.56,0,52.56,20-Apr-11,COMMUNITIES
Nottinghamshire County Council,01-05006,ROYAL MAIL GROUP PLC,Soft Facilities Management,Mail and Couriers,21.75,0,21.75,20-Apr-11,COMMUNITIES
Nottinghamshire County Council,01-05006,ROYAL MAIL GROUP PLC,Soft Facilities Management,Mail and Couriers,111.6,0,111.6,20-Apr-11,COMMUNITIES
Nottinghamshire County Council,01-05006,ROYAL MAIL GROUP PLC,Soft Facilities Management,Mail and Couriers,28.75,0,28.75,20-Apr-11,COMMUNITIES
Nottinghamshire County Council,01-05006,ROYAL MAIL GROUP PLC,Soft Facilities Management,Mail and Couriers,75.96,0,75.96,20-Apr-11,COMMUNITIES
Nottinghamshire County Council,01-05006,ROYAL MAIL GROUP PLC,Soft Facilities Management,Mail and Couriers,31.25,0,31.25,20-Apr-11,COMMUNITIES
Nottinghamshire County Council,01-05006,ROYAL MAIL GROUP PLC,Soft Facilities Management,Mail and Couriers,70.2,0,70.2,20-Apr-11,COMMUNITIES
Nottinghamshire County Council,01-05006,ROYAL MAIL GROUP PLC,Soft Facilities Management,Mail and Couriers,29,0,29,20-Apr-11,COMMUNITIES
Nottinghamshire County Council,01-05074,P R PRINCIPLES LIMITED,Professional Services,Consultancy,"3,180.00",636,"3,816.00",20-Apr-11,COMMUNITIES
Nottinghamshire County Council,01-05512,P R PRINCIPLES LIMITED,Professional Services,Consultancy,"3,047.50",609.5,"3,657.00",27-Apr-11,COMMUNITIES
Nottinghamshire County Council,01-02594,KONICA MINOLTA,ICT,"Printing and Publishing, Equipment and Supplies",222.57,38.95,261.52,07-Apr-11,COMMUNITIES
Nottinghamshire County Council,01-02594,KONICA MINOLTA,ICT,"Printing and Publishing, Equipment and Supplies","2,378.02",416.15,"2,794.17",07-Apr-11,COMMUNITIES
Nottinghamshire County Council,01-05294,KONICA MINOLTA,ICT,"Printing and Publishing, Equipment and Supplies",946.05,165.56,"1,111.61",26-Apr-11,COMMUNITIES
Nottinghamshire County Council,01-05295,KONICA MINOLTA,ICT,"Printing and Publishing, Equipment and Supplies",946.05,0,946.05,26-Apr-11,COMMUNITIES
Nottinghamshire County Council,01-05296,KONICA MINOLTA,ICT,"Printing and Publishing, Equipment and Supplies",138.6,0,138.6,26-Apr-11,COMMUNITIES
Nottinghamshire County Council,01-05296,KONICA MINOLTA,ICT,"Printing and Publishing, Equipment and Supplies","1,274.00",0,"1,274.00",26-Apr-11,COMMUNITIES
Nottinghamshire County Council,01-05297,KONICA MINOLTA,ICT,"Printing and Publishing, Equipment and Supplies",33.62,0,33.62,26-Apr-11,COMMUNITIES
Nottinghamshire County Council,01-05297,KONICA MINOLTA,ICT,"Printing and Publishing, Equipment and Supplies",507.29,0,507.29,26-Apr-11,COMMUNITIES
Nottinghamshire County Council,01-05470,KONICA MINOLTA,ICT,"Printing and Publishing, Equipment and Supplies",773.31,0,773.31,27-Apr-11,COMMUNITIES
Nottinghamshire County Council,01-05471,KONICA MINOLTA,ICT,"Printing and Publishing, Equipment and Supplies",500.46,0,500.46,27-Apr-11,COMMUNITIES
Nottinghamshire County Council,01-05472,KONICA MINOLTA,ICT,"Printing and Publishing, Equipment and Supplies",532.41,0,532.41,27-Apr-11,COMMUNITIES
Nottinghamshire County Council,01-05474,KONICA MINOLTA,ICT,"Printing and Publishing, Equipment and Supplies",100.7,17.62,118.32,27-Apr-11,COMMUNITIES
Nottinghamshire County Council,01-05474,KONICA MINOLTA,ICT,"Printing and Publishing, Equipment and Supplies",351.98,61.6,413.58,27-Apr-11,COMMUNITIES
Nottinghamshire County Council,01-08770,KONICA MINOLTA,ICT,"Printing and Publishing, Equipment and Supplies",154.72,0,154.72,28-Apr-11,COMMUNITIES
Nottinghamshire County Council,01-08770,KONICA MINOLTA,ICT,"Printing and Publishing, Equipment and Supplies","1,393.08",0,"1,393.08",28-Apr-11,COMMUNITIES
Nottinghamshire County Council,01-08771,KONICA MINOLTA,ICT,"Printing and Publishing, Equipment and Supplies",137.56,0,137.56,28-Apr-11,COMMUNITIES
Nottinghamshire County Council,01-08771,KONICA MINOLTA,ICT,"Printing and Publishing, Equipment and Supplies","1,553.79",0,"1,553.79",28-Apr-11,COMMUNITIES
Nottinghamshire County Council,01-02537,MANSFIELD DISTRICT COUNCIL,Professional Services,Politics and Civic Affairs,"4,500.00",0,"4,500.00",18-Apr-11,COMMUNITIES
Nottinghamshire County Council,01-02534,ASHFIELD DISTRICT COUNCIL,Professional Services,Politics and Civic Affairs,"2,921.00",0,"2,921.00",14-Apr-11,COMMUNITIES
Nottinghamshire County Council,01-02537,MANSFIELD DISTRICT COUNCIL,Professional Services,Politics and Civic Affairs,"20,936.22",0,"20,936.22",18-Apr-11,COMMUNITIES
Nottinghamshire County Council,01-02534,ASHFIELD DISTRICT COUNCIL,Professional Services,Politics and Civic Affairs,"4,328.22",0,"4,328.22",14-Apr-11,COMMUNITIES
Nottinghamshire County Council,01-00818,BROXTOWE BOROUGH COUNCIL,Professional Services,Politics and Civic Affairs,"31,556.00","6,311.20","37,867.20",18-Apr-11,COMMUNITIES
Nottinghamshire County Council,01-02034,BROXTOWE BOROUGH COUNCIL,Professional Services,Politics and Civic Affairs,"41,448.00","8,289.60","49,737.60",05-Apr-11,COMMUNITIES
Nottinghamshire County Council,01-03859,BROXTOWE BOROUGH COUNCIL,Professional Services,Politics and Civic Affairs,"35,000.00","7,000.00","42,000.00",28-Apr-11,COMMUNITIES
Nottinghamshire County Council,01-02537,MANSFIELD DISTRICT COUNCIL,Professional Services,Politics and Civic Affairs,"8,514.38",0,"8,514.38",18-Apr-11,COMMUNITIES
Nottinghamshire County Council,01-02534,ASHFIELD DISTRICT COUNCIL,Professional Services,Politics and Civic Affairs,"17,999.86",0,"17,999.86",14-Apr-11,COMMUNITIES
Nottinghamshire County Council,01-00818,BROXTOWE BOROUGH COUNCIL,Professional Services,Politics and Civic Affairs,"25,949.00","5,189.80","31,138.80",18-Apr-11,COMMUNITIES
Nottinghamshire County Council,01-02034,BROXTOWE BOROUGH COUNCIL,Professional Services,Politics and Civic Affairs,"34,789.00","6,957.80","41,746.80",05-Apr-11,COMMUNITIES
Nottinghamshire County Council,01-03859,BROXTOWE BOROUGH COUNCIL,Professional Services,Politics and Civic Affairs,"30,000.00","6,000.00","36,000.00",28-Apr-11,COMMUNITIES
Nottinghamshire County Council,01-02534,ASHFIELD DISTRICT COUNCIL,Professional Services,Politics and Civic Affairs,"1,668.00",0,"1,668.00",14-Apr-11,COMMUNITIES
Nottinghamshire County Council,01-00818,BROXTOWE BOROUGH COUNCIL,Professional Services,Politics and Civic Affairs,"3,045.00",609,"3,654.00",18-Apr-11,COMMUNITIES
Nottinghamshire County Council,01-02034,BROXTOWE BOROUGH COUNCIL,Professional Services,Politics and Civic Affairs,"4,083.00",816.6,"4,899.60",05-Apr-11,COMMUNITIES
Nottinghamshire County Council,01-03859,BROXTOWE BOROUGH COUNCIL,Professional Services,Politics and Civic Affairs,"2,991.00",598.2,"3,589.20",28-Apr-11,COMMUNITIES
Nottinghamshire County Council,01-08794,J M COUNTRYSIDE LANDSCAPES,External Services (Highways and Culture),Farming Forestry and Wildlife Services,575,0,575,28-Apr-11,COMMUNITIES
Nottinghamshire County Council,01-00038,EXPRESS ASPHALT LIMITED,External Services (Highways and Culture),Highways and Works,619.41,108.4,727.81,04-Apr-11,COMMUNITIES
Nottinghamshire County Council,01-01520,EXPRESS ASPHALT LIMITED,External Services (Highways and Culture),Highways and Works,-619.41,-123.88,-743.29,04-Apr-11,COMMUNITIES
Nottinghamshire County Council,01-02537,MANSFIELD DISTRICT COUNCIL,Professional Services,Politics and Civic Affairs,"2,348.44",0,"2,348.44",18-Apr-11,COMMUNITIES
Nottinghamshire County Council,01-02534,ASHFIELD DISTRICT COUNCIL,Professional Services,Politics and Civic Affairs,"-30,419.00",0,"-30,419.00",14-Apr-11,COMMUNITIES
Nottinghamshire County Council,01-00818,BROXTOWE BOROUGH COUNCIL,Professional Services,Politics and Civic Affairs,"3,798.00",759.6,"4,557.60",18-Apr-11,COMMUNITIES
Nottinghamshire County Council,01-02034,BROXTOWE BOROUGH COUNCIL,Professional Services,Politics and Civic Affairs,"3,091.00",618.2,"3,709.20",05-Apr-11,COMMUNITIES
Nottinghamshire County Council,01-03859,BROXTOWE BOROUGH COUNCIL,Professional Services,Politics and Civic Affairs,"2,904.00",580.8,"3,484.80",28-Apr-11,COMMUNITIES
Nottinghamshire County Council,01-02537,MANSFIELD DISTRICT COUNCIL,Professional Services,Politics and Civic Affairs,"15,100.80",0,"15,100.80",18-Apr-11,COMMUNITIES
Nottinghamshire County Council,01-02534,ASHFIELD DISTRICT COUNCIL,Professional Services,Politics and Civic Affairs,"2,485.76",0,"2,485.76",14-Apr-11,COMMUNITIES
Nottinghamshire County Council,01-00818,BROXTOWE BOROUGH COUNCIL,Professional Services,Politics and Civic Affairs,"9,650.00","1,930.00","11,580.00",18-Apr-11,COMMUNITIES
Nottinghamshire County Council,01-02034,BROXTOWE BOROUGH COUNCIL,Professional Services,Politics and Civic Affairs,"8,299.00","1,659.80","9,958.80",05-Apr-11,COMMUNITIES
Nottinghamshire County Council,01-03859,BROXTOWE BOROUGH COUNCIL,Professional Services,Politics and Civic Affairs,"11,014.00","2,202.80","13,216.80",28-Apr-11,COMMUNITIES
Nottinghamshire County Council,01-05169,JBA CONSULTING,Professional Services,Consultancy,"2,800.00",0,"2,800.00",21-Apr-11,COMMUNITIES
Nottinghamshire County Council,01-05040,E M D D LIMITED,Hard Facilities Management ,Tools and General Machinery,760,152,912,20-Apr-11,COMMUNITIES
Nottinghamshire County Council,01-05067,E M D D LIMITED,Hard Facilities Management ,Tools and General Machinery,443.81,88.76,532.57,20-Apr-11,COMMUNITIES
Nottinghamshire County Council,01-02356,SIEMENS PLC,Hard Facilities Management ,Electrical Systems and Lighting,"1,008.00",176.4,"1,184.40",07-Apr-11,COMMUNITIES
Nottinghamshire County Council,01-04478,SIEMENS PLC,Hard Facilities Management ,Electrical Systems and Lighting,999.6,0,999.6,18-Apr-11,COMMUNITIES
Nottinghamshire County Council,01-05042,E M D D LIMITED,Hard Facilities Management ,Tools and General Machinery,510,102,612,20-Apr-11,COMMUNITIES
Nottinghamshire County Council,01-05081,E M D D LIMITED,Hard Facilities Management ,Tools and General Machinery,800,160,960,20-Apr-11,COMMUNITIES
Nottinghamshire County Council,01-05093,E M D D LIMITED,Hard Facilities Management ,Tools and General Machinery,600,120,720,20-Apr-11,COMMUNITIES
Nottinghamshire County Council,01-05095,E M D D LIMITED,Hard Facilities Management ,Tools and General Machinery,600,120,720,20-Apr-11,COMMUNITIES
Nottinghamshire County Council,01-05041,E M D D LIMITED,Hard Facilities Management ,Tools and General Machinery,986.76,197.35,"1,184.11",20-Apr-11,COMMUNITIES
Nottinghamshire County Council,01-05069,E M D D LIMITED,Hard Facilities Management ,Tools and General Machinery,607.64,121.53,729.17,20-Apr-11,COMMUNITIES
Nottinghamshire County Council,01-05070,E M D D LIMITED,Hard Facilities Management ,Tools and General Machinery,650,130,780,20-Apr-11,COMMUNITIES
Nottinghamshire County Council,01-05083,E M D D LIMITED,Hard Facilities Management ,Tools and General Machinery,837.9,167.58,"1,005.48",20-Apr-11,COMMUNITIES
Nottinghamshire County Council,01-01922,SIEMENS PLC,Hard Facilities Management ,Electrical Systems and Lighting,"2,587.65",0,"2,587.65",05-Apr-11,COMMUNITIES
Nottinghamshire County Council,01-05068,E M D D LIMITED,Hard Facilities Management ,Tools and General Machinery,980,196,"1,176.00",20-Apr-11,COMMUNITIES
Nottinghamshire County Council,01-05082,E M D D LIMITED,Hard Facilities Management ,Tools and General Machinery,"1,650.00",330,"1,980.00",20-Apr-11,COMMUNITIES
Nottinghamshire County Council,01-05091,E M D D LIMITED,Hard Facilities Management ,Tools and General Machinery,"1,500.00",300,"1,800.00",20-Apr-11,COMMUNITIES
Nottinghamshire County Council,01-05092,E M D D LIMITED,Hard Facilities Management ,Tools and General Machinery,"1,035.37",207.07,"1,242.44",20-Apr-11,COMMUNITIES
Nottinghamshire County Council,01-05094,E M D D LIMITED,Hard Facilities Management ,Tools and General Machinery,536,107.2,643.2,20-Apr-11,COMMUNITIES
Nottinghamshire County Council,01-00352,NOTTINGHAM CITY COUNCIL,Professional Services,Politics and Civic Affairs,500,0,500,05-Apr-11,COMMUNITIES
Nottinghamshire County Council,01-05343,E.ON UK ENERGY SERVICES LIMITED,Hard Facilities Management ,Utilities,"33,816.80","6,763.36","40,580.16",26-Apr-11,COMMUNITIES
Nottinghamshire County Council,01-02537,MANSFIELD DISTRICT COUNCIL,Professional Services,Politics and Civic Affairs,"5,188.67",0,"5,188.67",18-Apr-11,COMMUNITIES
Nottinghamshire County Council,01-02534,ASHFIELD DISTRICT COUNCIL,Professional Services,Politics and Civic Affairs,"2,193.29",0,"2,193.29",14-Apr-11,COMMUNITIES
Nottinghamshire County Council,01-00818,BROXTOWE BOROUGH COUNCIL,Professional Services,Politics and Civic Affairs,"1,029.00",205.8,"1,234.80",18-Apr-11,COMMUNITIES
Nottinghamshire County Council,01-02034,BROXTOWE BOROUGH COUNCIL,Professional Services,Politics and Civic Affairs,810,162,972,05-Apr-11,COMMUNITIES
Nottinghamshire County Council,01-03859,BROXTOWE BOROUGH COUNCIL,Professional Services,Politics and Civic Affairs,"2,000.00",400,"2,400.00",28-Apr-11,COMMUNITIES
Nottinghamshire County Council,01-02537,MANSFIELD DISTRICT COUNCIL,Professional Services,Politics and Civic Affairs,48.28,0,48.28,18-Apr-11,COMMUNITIES
Nottinghamshire County Council,01-02534,ASHFIELD DISTRICT COUNCIL,Professional Services,Politics and Civic Affairs,"2,493.14",0,"2,493.14",14-Apr-11,COMMUNITIES
Nottinghamshire County Council,01-00818,BROXTOWE BOROUGH COUNCIL,Professional Services,Politics and Civic Affairs,610,122,732,18-Apr-11,COMMUNITIES
Nottinghamshire County Council,01-02034,BROXTOWE BOROUGH COUNCIL,Professional Services,Politics and Civic Affairs,300,60,360,05-Apr-11,COMMUNITIES
Nottinghamshire County Council,01-03859,BROXTOWE BOROUGH COUNCIL,Professional Services,Politics and Civic Affairs,"1,812.60",362.52,"2,175.12",28-Apr-11,COMMUNITIES
Nottinghamshire County Council,01-02537,MANSFIELD DISTRICT COUNCIL,Professional Services,Politics and Civic Affairs,"1,139.60",0,"1,139.60",18-Apr-11,COMMUNITIES
Nottinghamshire County Council,01-02537,MANSFIELD DISTRICT COUNCIL,Professional Services,Politics and Civic Affairs,"18,703.52",0,"18,703.52",18-Apr-11,COMMUNITIES
Nottinghamshire County Council,01-02534,ASHFIELD DISTRICT COUNCIL,Professional Services,Politics and Civic Affairs,"36,905.25",0,"36,905.25",14-Apr-11,COMMUNITIES
Nottinghamshire County Council,01-00818,BROXTOWE BOROUGH COUNCIL,Professional Services,Politics and Civic Affairs,"34,785.00","6,957.00","41,742.00",18-Apr-11,COMMUNITIES
Nottinghamshire County Council,01-02034,BROXTOWE BOROUGH COUNCIL,Professional Services,Politics and Civic Affairs,"30,684.00","6,136.80","36,820.80",05-Apr-11,COMMUNITIES
Nottinghamshire County Council,01-03859,BROXTOWE BOROUGH COUNCIL,Professional Services,Politics and Civic Affairs,"26,000.00","5,200.00","31,200.00",28-Apr-11,COMMUNITIES
Nottinghamshire County Council,01-02537,MANSFIELD DISTRICT COUNCIL,Professional Services,Politics and Civic Affairs,401.82,0,401.82,18-Apr-11,COMMUNITIES
Nottinghamshire County Council,01-02534,ASHFIELD DISTRICT COUNCIL,Professional Services,Politics and Civic Affairs,28.73,0,28.73,14-Apr-11,COMMUNITIES
Nottinghamshire County Council,01-02537,MANSFIELD DISTRICT COUNCIL,Professional Services,Politics and Civic Affairs,"2,719.94",0,"2,719.94",18-Apr-11,COMMUNITIES
Nottinghamshire County Council,01-02534,ASHFIELD DISTRICT COUNCIL,Professional Services,Politics and Civic Affairs,"4,369.71",0,"4,369.71",14-Apr-11,COMMUNITIES
Nottinghamshire County Council,01-00204,N POWER,Hard Facilities Management ,Utilities,"447,885.28","22,394.26","470,279.54",04-Apr-11,COMMUNITIES
Nottinghamshire County Council,01-05342,N POWER,Hard Facilities Management ,Utilities,"443,235.98","88,647.20","531,883.18",26-Apr-11,COMMUNITIES
Nottinghamshire County Council,01-05344,E.ON UK ENERGY SERVICES LIMITED,Hard Facilities Management ,Utilities,"13,159.31","2,631.86","15,791.17",26-Apr-11,COMMUNITIES
Nottinghamshire County Council,01-05382,POWER DATA ASSOCIATES LIMITED,Soft Facilities Management,Information Services,800,160,960,26-Apr-11,COMMUNITIES
Nottinghamshire County Council,01-02534,ASHFIELD DISTRICT COUNCIL,Professional Services,Politics and Civic Affairs,"15,374.00",0,"15,374.00",14-Apr-11,COMMUNITIES
Nottinghamshire County Council,01-00818,BROXTOWE BOROUGH COUNCIL,Professional Services,Politics and Civic Affairs,"6,783.20","1,356.64","8,139.84",18-Apr-11,COMMUNITIES
Nottinghamshire County Council,01-02034,BROXTOWE BOROUGH COUNCIL,Professional Services,Politics and Civic Affairs,"6,782.80","1,356.56","8,139.36",05-Apr-11,COMMUNITIES
Nottinghamshire County Council,01-03859,BROXTOWE BOROUGH COUNCIL,Professional Services,Politics and Civic Affairs,"6,784.00","1,356.80","8,140.80",28-Apr-11,COMMUNITIES
Nottinghamshire County Council,01-02537,MANSFIELD DISTRICT COUNCIL,Professional Services,Politics and Civic Affairs,825,0,825,18-Apr-11,COMMUNITIES
Nottinghamshire County Council,01-02534,ASHFIELD DISTRICT COUNCIL,Professional Services,Politics and Civic Affairs,"6,571.86",0,"6,571.86",14-Apr-11,COMMUNITIES
Nottinghamshire County Council,01-00818,BROXTOWE BOROUGH COUNCIL,Professional Services,Politics and Civic Affairs,80.8,16.16,96.96,18-Apr-11,COMMUNITIES
Nottinghamshire County Council,01-02034,BROXTOWE BOROUGH COUNCIL,Professional Services,Politics and Civic Affairs,294.4,58.88,353.28,05-Apr-11,COMMUNITIES
Nottinghamshire County Council,01-03859,BROXTOWE BOROUGH COUNCIL,Professional Services,Politics and Civic Affairs,"1,666.40",333.28,"1,999.68",28-Apr-11,COMMUNITIES
Nottinghamshire County Council,01-02537,MANSFIELD DISTRICT COUNCIL,Professional Services,Politics and Civic Affairs,403.2,0,403.2,18-Apr-11,COMMUNITIES
Nottinghamshire County Council,01-02534,ASHFIELD DISTRICT COUNCIL,Professional Services,Politics and Civic Affairs,"2,986.10",0,"2,986.10",14-Apr-11,COMMUNITIES
Nottinghamshire County Council,01-00818,BROXTOWE BOROUGH COUNCIL,Professional Services,Politics and Civic Affairs,"6,686.20","1,337.24","8,023.44",18-Apr-11,COMMUNITIES
Nottinghamshire County Council,01-02034,BROXTOWE BOROUGH COUNCIL,Professional Services,Politics and Civic Affairs,"6,740.60","1,348.12","8,088.72",05-Apr-11,COMMUNITIES
Nottinghamshire County Council,01-03859,BROXTOWE BOROUGH COUNCIL,Professional Services,Politics and Civic Affairs,"7,083.60","1,416.72","8,500.32",28-Apr-11,COMMUNITIES
Nottinghamshire County Council,01-04758,JACOBS ENGINEERING UK LIMITED,Professional Services,Professional Engineering Services,"3,006.41",601.28,"3,607.69",18-Apr-11,COMMUNITIES
Nottinghamshire County Council,01-04758,JACOBS ENGINEERING UK LIMITED,Professional Services,Professional Engineering Services,"5,763.67","1,152.73","6,916.40",18-Apr-11,COMMUNITIES
Nottinghamshire County Council,01-02537,MANSFIELD DISTRICT COUNCIL,Professional Services,Politics and Civic Affairs,"1,351.36",0,"1,351.36",18-Apr-11,COMMUNITIES
Nottinghamshire County Council,01-02534,ASHFIELD DISTRICT COUNCIL,Professional Services,Politics and Civic Affairs,"2,738.68",0,"2,738.68",14-Apr-11,COMMUNITIES
Nottinghamshire County Council,01-02537,MANSFIELD DISTRICT COUNCIL,Professional Services,Politics and Civic Affairs,"4,095.16",0,"4,095.16",18-Apr-11,COMMUNITIES
Nottinghamshire County Council,01-02534,ASHFIELD DISTRICT COUNCIL,Professional Services,Politics and Civic Affairs,663.94,0,663.94,14-Apr-11,COMMUNITIES
Nottinghamshire County Council,01-02571,1ST CALL COMMUNICATIONS LIMITED,ICT,Telecommunications and Media,720.42,144.08,864.5,28-Apr-11,COMMUNITIES
Nottinghamshire County Council,01-02537,MANSFIELD DISTRICT COUNCIL,Professional Services,Politics and Civic Affairs,"2,408.52",0,"2,408.52",18-Apr-11,COMMUNITIES
Nottinghamshire County Council,01-02534,ASHFIELD DISTRICT COUNCIL,Professional Services,Politics and Civic Affairs,"11,322.04",0,"11,322.04",14-Apr-11,COMMUNITIES
Nottinghamshire County Council,01-00818,BROXTOWE BOROUGH COUNCIL,Professional Services,Politics and Civic Affairs,"2,809.00",561.8,"3,370.80",18-Apr-11,COMMUNITIES
Nottinghamshire County Council,01-02034,BROXTOWE BOROUGH COUNCIL,Professional Services,Politics and Civic Affairs,"1,341.00",268.2,"1,609.20",05-Apr-11,COMMUNITIES
Nottinghamshire County Council,01-03859,BROXTOWE BOROUGH COUNCIL,Professional Services,Politics and Civic Affairs,"3,007.00",601.4,"3,608.40",28-Apr-11,COMMUNITIES
Nottinghamshire County Council,01-02537,MANSFIELD DISTRICT COUNCIL,Professional Services,Politics and Civic Affairs,"1,313.65",0,"1,313.65",18-Apr-11,COMMUNITIES
Nottinghamshire County Council,01-02534,ASHFIELD DISTRICT COUNCIL,Professional Services,Politics and Civic Affairs,"1,277.76",0,"1,277.76",14-Apr-11,COMMUNITIES
Nottinghamshire County Council,01-02534,ASHFIELD DISTRICT COUNCIL,Professional Services,Politics and Civic Affairs,"1,590.02",0,"1,590.02",14-Apr-11,COMMUNITIES
Nottinghamshire County Council,01-02537,MANSFIELD DISTRICT COUNCIL,Professional Services,Politics and Civic Affairs,"15,817.38",0,"15,817.38",18-Apr-11,COMMUNITIES
Nottinghamshire County Council,01-02534,ASHFIELD DISTRICT COUNCIL,Professional Services,Politics and Civic Affairs,"57,808.92",0,"57,808.92",14-Apr-11,COMMUNITIES
Nottinghamshire County Council,01-00818,BROXTOWE BOROUGH COUNCIL,Professional Services,Politics and Civic Affairs,"78,499.44","15,699.89","94,199.33",18-Apr-11,COMMUNITIES
Nottinghamshire County Council,01-03859,BROXTOWE BOROUGH COUNCIL,Professional Services,Politics and Civic Affairs,"35,189.34","7,037.87","42,227.21",28-Apr-11,COMMUNITIES
Nottinghamshire County Council,01-02358,SIEMENS PLC,Hard Facilities Management ,Electrical Systems and Lighting,500,87.5,587.5,07-Apr-11,COMMUNITIES
Nottinghamshire County Council,01-01924,SIEMENS PLC,Hard Facilities Management ,Electrical Systems and Lighting,657,0,657,05-Apr-11,COMMUNITIES
Nottinghamshire County Council,01-05343,E.ON UK ENERGY SERVICES LIMITED,Hard Facilities Management ,Utilities,"3,954.67",790.93,"4,745.60",26-Apr-11,COMMUNITIES
Nottinghamshire County Council,01-08761,INTERACTIVE EDUCATION,External Services (Highways and Culture),Education Services,5.9,0,5.9,28-Apr-11,COMMUNITIES
Nottinghamshire County Council,01-08761,INTERACTIVE EDUCATION,External Services (Highways and Culture),Education Services,29.5,0,29.5,28-Apr-11,COMMUNITIES
Nottinghamshire County Council,01-08761,INTERACTIVE EDUCATION,External Services (Highways and Culture),Education Services,"2,424.00",0,"2,424.00",28-Apr-11,COMMUNITIES
Nottinghamshire County Council,01-08761,INTERACTIVE EDUCATION,External Services (Highways and Culture),Education Services,236,0,236,28-Apr-11,COMMUNITIES
Nottinghamshire County Council,01-08761,INTERACTIVE EDUCATION,External Services (Highways and Culture),Education Services,356,0,356,28-Apr-11,COMMUNITIES
Nottinghamshire County Council,01-08761,INTERACTIVE EDUCATION,External Services (Highways and Culture),Education Services,180,0,180,28-Apr-11,COMMUNITIES
Nottinghamshire County Council,01-08761,INTERACTIVE EDUCATION,External Services (Highways and Culture),Education Services,125,0,125,28-Apr-11,COMMUNITIES
Nottinghamshire County Council,01-08761,INTERACTIVE EDUCATION,External Services (Highways and Culture),Education Services,495,0,495,28-Apr-11,COMMUNITIES
Nottinghamshire County Council,01-05616,BTB MILLFIGHT LIMITED,Soft Facilities Management,Security,"1,063.83",186.17,"1,250.00",27-Apr-11,COMMUNITIES
Nottinghamshire County Council,01-02653,BRISTOL OILSKIN and OVERALL CO LIMITED,Soft Facilities Management,Clothing,499.5,0,499.5,20-Apr-11,COMMUNITIES
Nottinghamshire County Council,01-02653,BRISTOL OILSKIN and OVERALL CO LIMITED,Soft Facilities Management,Clothing,197.7,0,197.7,20-Apr-11,COMMUNITIES
Nottinghamshire County Council,01-02653,BRISTOL OILSKIN and OVERALL CO LIMITED,Soft Facilities Management,Clothing,80.55,0,80.55,20-Apr-11,COMMUNITIES
Nottinghamshire County Council,01-02653,BRISTOL OILSKIN and OVERALL CO LIMITED,Soft Facilities Management,Clothing,80.55,0,80.55,20-Apr-11,COMMUNITIES
Nottinghamshire County Council,01-02653,BRISTOL OILSKIN and OVERALL CO LIMITED,Soft Facilities Management,Clothing,58.5,0,58.5,20-Apr-11,COMMUNITIES
Nottinghamshire County Council,01-02653,BRISTOL OILSKIN and OVERALL CO LIMITED,Soft Facilities Management,Clothing,58.5,0,58.5,20-Apr-11,COMMUNITIES
Nottinghamshire County Council,01-02653,BRISTOL OILSKIN and OVERALL CO LIMITED,Soft Facilities Management,Clothing,179.5,0,179.5,20-Apr-11,COMMUNITIES
Nottinghamshire County Council,01-03859,BROXTOWE BOROUGH COUNCIL,Professional Services,Politics and Civic Affairs,"40,000.00","8,000.00","48,000.00",28-Apr-11,COMMUNITIES
Nottinghamshire County Council,01-01340,WOODBOROUGH PARK,Transport and Travel,Hotels and Venues,"1,280.00",0,"1,280.00",01-Apr-11,COMMUNITIES
Nottinghamshire County Council,01-01886,BRISSCO SIGNS and GRAPHICS,Soft Facilities Management,Printed Media and Signage,"3,183.00",0,"3,183.00",05-Apr-11,COMMUNITIES
Nottinghamshire County Council,01-01886,BRISSCO SIGNS and GRAPHICS,Soft Facilities Management,Printed Media and Signage,"1,170.00",0,"1,170.00",05-Apr-11,COMMUNITIES
Nottinghamshire County Council,01-01886,BRISSCO SIGNS and GRAPHICS,Soft Facilities Management,Printed Media and Signage,250.2,0,250.2,05-Apr-11,COMMUNITIES
Nottinghamshire County Council,01-01886,BRISSCO SIGNS and GRAPHICS,Soft Facilities Management,Printed Media and Signage,45,0,45,05-Apr-11,COMMUNITIES
Nottinghamshire County Council,01-01886,BRISSCO SIGNS and GRAPHICS,Soft Facilities Management,Printed Media and Signage,490,0,490,05-Apr-11,COMMUNITIES
Nottinghamshire County Council,01-02811,NATIONAL TRUST,External Services (Highways and Culture),Organisations and Clubs,524.1,104.82,628.92,27-Apr-11,COMMUNITIES
Nottinghamshire County Council,01-03324,THE WEST BRIDGFORD SCHOOL,Education and Training,Pre School/ Nursery/ School,500,0,500,11-Apr-11,COMMUNITIES
Nottinghamshire County Council,01-05033,EPS GROUP,Professional Services,Consultancy,900,180,"1,080.00",21-Apr-11,COMMUNITIES
Nottinghamshire County Council,01-00366,MANSFIELD DISTRICT COUNCIL,Professional Services,Politics and Civic Affairs,"1,200.00",0,"1,200.00",13-Apr-11,#N/A
Nottinghamshire County Council,01-00909,LOCAL ENERGY,Care,Community and Social Services,"1,500.00",0,"1,500.00",08-Apr-11,COMMUNITIES
Nottinghamshire County Council,01-08792,EXEGESIS,ICT,Software,"1,794.00",0,"1,794.00",28-Apr-11,COMMUNITIES
Nottinghamshire County Council,01-08792,EXEGESIS,ICT,Software,331,0,331,28-Apr-11,COMMUNITIES
Nottinghamshire County Council,01-08792,EXEGESIS,ICT,Software,128,0,128,28-Apr-11,COMMUNITIES
Nottinghamshire County Council,01-00774,BIRSE CIVILS LIMITED,TBC,TBC,748.13,130.92,879.05,04-Apr-11,COMMUNITIES
Nottinghamshire County Council,01-01090,NVISAGE VT LIMITED,Professional Services,"Reproduction, Photographic and Design Services","2,450.00",0,"2,450.00",13-Apr-11,COMMUNITIES
Nottinghamshire County Council,01-00642,WASTE RECYCLING GROUP PLC,Soft Facilities Management,Environmental Services,"-13,467.68","-2,693.54","-16,161.22",26-Apr-11,COMMUNITIES
Nottinghamshire County Council,01-02786,WASTE RECYCLING GROUP PLC,Soft Facilities Management,Environmental Services,"27,842.70","5,568.54","33,411.24",08-Apr-11,COMMUNITIES
Nottinghamshire County Council,01-02787,WASTE RECYCLING GROUP PLC,Soft Facilities Management,Environmental Services,"28,594.42","5,718.88","34,313.30",08-Apr-11,COMMUNITIES
Nottinghamshire County Council,01-02788,WASTE RECYCLING GROUP PLC,Soft Facilities Management,Environmental Services,"26,336.34","5,267.27","31,603.61",08-Apr-11,COMMUNITIES
Nottinghamshire County Council,01-01592,WASTE RECYCLING GROUP PLC,Soft Facilities Management,Environmental Services,"8,209.28","1,641.86","9,851.14",07-Apr-11,COMMUNITIES
Nottinghamshire County Council,01-03242,VERTECH PLANTS,External Services (Highways and Culture),Plant and Animal Supplies,469,0,469,27-Apr-11,COMMUNITIES
Nottinghamshire County Council,01-03243,VERTECH PLANTS,External Services (Highways and Culture),Plant and Animal Supplies,469,0,469,27-Apr-11,COMMUNITIES
Nottinghamshire County Council,01-00736,BILLY BOWIE SPECIAL PROJECTS LIMITED,Soft Facilities Management,Scrap and waste materials,997.6,199.52,"1,197.12",01-Apr-11,COMMUNITIES
Nottinghamshire County Council,01-04698,PARK FARMING LIMITED,Soft Facilities Management,Scrap and Waste Materials,484,84.7,568.7,19-Apr-11,COMMUNITIES
Nottinghamshire County Council,01-04699,PARK FARMING LIMITED,Soft Facilities Management,Scrap and Waste Materials,782.58,136.95,919.53,19-Apr-11,COMMUNITIES
Nottinghamshire County Council,01-08804,MANSFIELD DISTRICT COUNCIL,Professional Services,Politics and Civic Affairs,"10,000.00",0,"10,000.00",28-Apr-11,COMMUNITIES
Nottinghamshire County Council,01-04176,BASSETLAW DISTRICT COUNCIL,Professional Services,Politics and Civic Affairs,"2,900.00",0,"2,900.00",18-Apr-11,COMMUNITIES
Nottinghamshire County Council,01-00270,MANSFIELD DISTRICT COUNCIL,Professional Services,Politics and Civic Affairs,"4,041.03",0,"4,041.03",11-Apr-11,COMMUNITIES
Nottinghamshire County Council,01-00271,MANSFIELD DISTRICT COUNCIL,Professional Services,Politics and Civic Affairs,"4,503.08",0,"4,503.08",11-Apr-11,COMMUNITIES
Nottinghamshire County Council,01-00272,MANSFIELD DISTRICT COUNCIL,Professional Services,Politics and Civic Affairs,"4,840.80",0,"4,840.80",11-Apr-11,COMMUNITIES
Nottinghamshire County Council,01-01565,NSPCC,External Services (Highways and Culture),Organisations and Clubs,740.85,0,740.85,04-Apr-11,COMMUNITIES
Nottinghamshire County Council,01-02189,BROXTOWE BOROUGH COUNCIL,Professional Services,Politics and Civic Affairs,"12,658.44",0,"12,658.44",07-Apr-11,COMMUNITIES
Nottinghamshire County Council,01-02857,GEDLING BOROUGH COUNCIL,Professional Services,Politics and Civic Affairs,"11,420.29",0,"11,420.29",11-Apr-11,COMMUNITIES
Nottinghamshire County Council,01-02858,BASSETLAW DISTRICT COUNCIL,Professional Services,Politics and Civic Affairs,"3,831.81",0,"3,831.81",11-Apr-11,COMMUNITIES
Nottinghamshire County Council,01-02859,ASHFIELD DISTRICT COUNCIL,Professional Services,Politics and Civic Affairs,"15,996.20",0,"15,996.20",11-Apr-11,COMMUNITIES
Nottinghamshire County Council,01-01410,WASTE RECYCLING GROUP PLC,Soft Facilities Management,Environmental Services,"82,024.20","16,404.84","98,429.04",01-Apr-11,COMMUNITIES
Nottinghamshire County Council,01-01411,WASTE RECYCLING GROUP PLC,Soft Facilities Management,Environmental Services,"9,233.26","1,846.65","11,079.91",01-Apr-11,COMMUNITIES
Nottinghamshire County Council,01-01412,WASTE RECYCLING GROUP PLC,Soft Facilities Management,Environmental Services,"56,113.05","11,222.61","67,335.66",01-Apr-11,COMMUNITIES
Nottinghamshire County Council,01-00359,ASHFIELD DISTRICT COUNCIL,Professional Services,Politics and Civic Affairs,550.23,0,550.23,05-Apr-11,COMMUNITIES
Nottinghamshire County Council,01-03296,VEOLIA ENVIRONMENTAL SERVICES,Soft Facilities Management,Scrap and waste materials,"566,273.43","113,254.69","679,528.12",19-Apr-11,COMMUNITIES
Nottinghamshire County Council,01-03296,VEOLIA ENVIRONMENTAL SERVICES,Soft Facilities Management,Scrap and waste materials,"23,742.83","4,748.57","28,491.40",19-Apr-11,COMMUNITIES
Nottinghamshire County Council,01-03296,VEOLIA ENVIRONMENTAL SERVICES,Soft Facilities Management,Scrap and waste materials,"31,964.56","6,392.91","38,357.47",19-Apr-11,COMMUNITIES
Nottinghamshire County Council,01-03296,VEOLIA ENVIRONMENTAL SERVICES,Soft Facilities Management,Scrap and waste materials,"314,687.80","62,937.56","377,625.36",19-Apr-11,COMMUNITIES
Nottinghamshire County Council,01-03296,VEOLIA ENVIRONMENTAL SERVICES,Soft Facilities Management,Scrap and waste materials,"30,898.05","6,179.61","37,077.66",19-Apr-11,COMMUNITIES
Nottinghamshire County Council,01-03296,VEOLIA ENVIRONMENTAL SERVICES,Soft Facilities Management,Scrap and waste materials,"23,642.01","4,728.40","28,370.41",19-Apr-11,COMMUNITIES
Nottinghamshire County Council,01-03296,VEOLIA ENVIRONMENTAL SERVICES,Soft Facilities Management,Scrap and waste materials,"124,042.24","24,808.45","148,850.69",19-Apr-11,COMMUNITIES
Nottinghamshire County Council,01-03296,VEOLIA ENVIRONMENTAL SERVICES,Soft Facilities Management,Scrap and waste materials,"11,843.48","2,368.70","14,212.18",19-Apr-11,COMMUNITIES
Nottinghamshire County Council,01-03296,VEOLIA ENVIRONMENTAL SERVICES,Soft Facilities Management,Scrap and waste materials,"7,123.26","1,424.65","8,547.91",19-Apr-11,COMMUNITIES
Nottinghamshire County Council,01-03296,VEOLIA ENVIRONMENTAL SERVICES,Soft Facilities Management,Scrap and waste materials,"113,713.40","22,742.68","136,456.08",19-Apr-11,COMMUNITIES
Nottinghamshire County Council,01-03296,VEOLIA ENVIRONMENTAL SERVICES,Soft Facilities Management,Scrap and waste materials,"194,166.05","38,833.21","232,999.26",19-Apr-11,COMMUNITIES
Nottinghamshire County Council,01-03296,VEOLIA ENVIRONMENTAL SERVICES,Soft Facilities Management,Scrap and waste materials,"53,500.85","10,700.17","64,201.02",19-Apr-11,COMMUNITIES
Nottinghamshire County Council,01-05034,VEOLIA ENVIRONMENTAL SERVICES,Soft Facilities Management,Scrap and waste materials,"6,709.00","1,341.80","8,050.80",21-Apr-11,COMMUNITIES
Nottinghamshire County Council,01-03296,VEOLIA ENVIRONMENTAL SERVICES,Soft Facilities Management,Scrap and waste materials,"29,133.03","5,826.61","34,959.64",19-Apr-11,COMMUNITIES
Nottinghamshire County Council,01-03296,VEOLIA ENVIRONMENTAL SERVICES,Soft Facilities Management,Scrap and waste materials,"6,821.57","1,364.31","8,185.88",19-Apr-11,COMMUNITIES
Nottinghamshire County Council,01-04980,NORTH LINCOLNSHIRE COUNCIL,Public Bodies,Public Bodies,"4,800.00",840,"5,640.00",20-Apr-11,COMMUNITIES
Nottinghamshire County Council,01-05103,OTIS LIMITED,Hard Facilities Management ,Building and Construction Supplies,574.85,114.97,689.82,21-Apr-11,RESOURCES
Nottinghamshire County Council,01-01114,CONTROLCARE,Care,Domiciliary Care,"1,910.73",382.15,"2,292.88",01-Apr-11,RESOURCES
Nottinghamshire County Council,01-03265,ENVIRONTEC LIMITED,Professional Services,Consultancy,634,110.95,744.95,11-Apr-11,RESOURCES
Nottinghamshire County Council,01-05421,PTL OCCUPATIONAL HYGIENE CONSULTANTS,Professional Services,Consultancy,"1,757.60",351.52,"2,109.12",26-Apr-11,RESOURCES
Nottinghamshire County Council,01-08886,ASHWELL ENGINEERING SERVICES LIMITED,Professional Services,Professional Engineering Services,"4,404.00",880.8,"5,284.80",28-Apr-11,RESOURCES
Nottinghamshire County Council,01-01554,TRENT VALLEY WINDOW and DOOR CO LIMITED,Hard Facilities Management ,Window and Door Installation Services,"13,499.97","2,699.99","16,199.96",01-Apr-11,RESOURCES
Nottinghamshire County Council,01-08887,ASHWELL ENGINEERING SERVICES LIMITED,Professional Services,Professional Engineering Services,"4,404.00",880.8,"5,284.80",28-Apr-11,RESOURCES
Nottinghamshire County Council,01-05071,P R S HIRE SERVICES LIMITED,External Services (Highways and Culture),Construction Plant and Equipment,-237,-47.4,-284.4,21-Apr-11,RESOURCES
Nottinghamshire County Council,01-05071,P R S HIRE SERVICES LIMITED,External Services (Highways and Culture),Construction Plant and Equipment,237,11.85,248.85,21-Apr-11,RESOURCES
Nottinghamshire County Council,01-05071,P R S HIRE SERVICES LIMITED,External Services (Highways and Culture),Construction Plant and Equipment,844.2,168.84,"1,013.04",21-Apr-11,RESOURCES
Nottinghamshire County Council,01-08889,TRENT VALLEY WINDOW and DOOR CO LIMITED,Hard Facilities Management ,Window and Door Installation Services,"6,754.13","1,350.83","8,104.96",28-Apr-11,RESOURCES
Nottinghamshire County Council,01-00339,MANSELL CONSTRUCTION SERVICES LIMITED,Hard Facilities Management ,Building Construction Services,"39,000.00","7,800.00","46,800.00",04-Apr-11,RESOURCES
Nottinghamshire County Council,01-02072,MANSELL CONSTRUCTION SERVICES LIMITED,Hard Facilities Management ,Building Construction Services,"43,539.59","8,707.92","52,247.51",05-Apr-11,RESOURCES
Nottinghamshire County Council,01-02792,TRENT VALLEY WINDOW and DOOR CO LIMITED,Hard Facilities Management ,Window and Door Installation Services,472,94.4,566.4,21-Apr-11,RESOURCES
Nottinghamshire County Council,01-00747,FIRST ORDER RED LIMITED,Soft Facilities Management,Scrap and waste materials,"3,597.50",719.5,"4,317.00",07-Apr-11,RESOURCES
Nottinghamshire County Council,01-01571,HERBERT BAGGALEY CONSTRUCTION Limited,Hard Facilities Management ,Building Construction Services,"32,979.66","6,595.93","39,575.59",01-Apr-11,RESOURCES
Nottinghamshire County Council,01-02793,TRENT VALLEY WINDOW and DOOR CO LIMITED,Hard Facilities Management ,Window and Door Installation Services,"7,944.11","1,588.82","9,532.93",21-Apr-11,RESOURCES
Nottinghamshire County Council,01-00746,FIRST ORDER RED LIMITED,Soft Facilities Management,Scrap and waste materials,"1,888.00",377.6,"2,265.60",07-Apr-11,RESOURCES
Nottinghamshire County Council,01-02721,M J W ASBESTOS REMOVAL LIMITED,Soft Facilities Management,Scrap and waste materials,"1,731.00",346.2,"2,077.20",07-Apr-11,RESOURCES
Nottinghamshire County Council,01-02043,HERBERT BAGGALEY CONSTRUCTION Limited,Hard Facilities Management ,Building Construction Services,"23,503.71","4,700.74","28,204.45",05-Apr-11,RESOURCES
Nottinghamshire County Council,01-02708,MIDLAND ROOFING SERVICES (DERBY) LIMITED,Hard Facilities Management ,Roofing Services,"7,852.00","1,570.40","9,422.40",07-Apr-11,RESOURCES
Nottinghamshire County Council,01-02053,FIRST ORDER RED LIMITED,Soft Facilities Management,Scrap and waste materials,910,182,"1,092.00",18-Apr-11,RESOURCES
Nottinghamshire County Council,01-08888,MANSELL CONSTRUCTION SERVICES LIMITED,Hard Facilities Management ,Building Construction Services,"43,749.77","8,749.95","52,499.72",28-Apr-11,RESOURCES
Nottinghamshire County Council,01-05072,P R S HIRE SERVICES LIMITED,External Services (Highways and Culture),Construction Plant and Equipment,-158,-31.6,-189.6,21-Apr-11,RESOURCES
Nottinghamshire County Council,01-05072,P R S HIRE SERVICES LIMITED,External Services (Highways and Culture),Construction Plant and Equipment,158,7.9,165.9,21-Apr-11,RESOURCES
Nottinghamshire County Council,01-05072,P R S HIRE SERVICES LIMITED,External Services (Highways and Culture),Construction Plant and Equipment,562.8,112.56,675.36,21-Apr-11,RESOURCES
Nottinghamshire County Council,01-00749,FIRST ORDER RED LIMITED,Soft Facilities Management,Scrap and waste materials,"2,374.00",474.8,"2,848.80",07-Apr-11,RESOURCES
Nottinghamshire County Council,01-00745,FIRST ORDER RED LIMITED,Soft Facilities Management,Scrap and waste materials,"1,904.00",380.8,"2,284.80",07-Apr-11,RESOURCES
Nottinghamshire County Council,01-04273,TRENT VALLEY WINDOW and DOOR CO LIMITED,Hard Facilities Management ,Window and Door Installation Services,555.3,111.06,666.36,18-Apr-11,RESOURCES
Nottinghamshire County Council,01-05511,PTL OCCUPATIONAL HYGIENE CONSULTANTS,Professional Services,Consultancy,579.4,115.88,695.28,27-Apr-11,RESOURCES
Nottinghamshire County Council,01-02463,GEDLING BOROUGH COUNCIL,Professional Services,Politics and Civic Affairs,420,84,504,19-Apr-11,RESOURCES
Nottinghamshire County Council,01-04272,TRENT VALLEY WINDOW and DOOR CO LIMITED,Hard Facilities Management ,Window and Door Installation Services,"67,000.00","13,400.00","80,400.00",18-Apr-11,RESOURCES
Nottinghamshire County Council,01-02073,INTERSERVE PROJECT SERVICES LIMITED,Professional Services,Professional Engineering Services,"38,421.98","7,684.40","46,106.38",11-Apr-11,RESOURCES
Nottinghamshire County Council,01-03292,PTL OCCUPATIONAL HYGIENE CONSULTANTS,Professional Services,Consultancy,660.6,132.12,792.72,11-Apr-11,RESOURCES
Nottinghamshire County Council,01-02809,INSTATHERM COMBUSTION SERVICES LIMITED,Hard Facilities Management ,Plumbing Services,"3,000.00",600,"3,600.00",07-Apr-11,#N/A
Nottinghamshire County Council,01-08896,ROBERT WOODHEAD LIMITED,Hard Facilities Management ,Building Construction Services,"17,092.75","3,418.55","20,511.30",28-Apr-11,RESOURCES
Nottinghamshire County Council,01-05103,OTIS LIMITED,Hard Facilities Management ,Building and Construction Supplies,25.61,5.12,30.73,21-Apr-11,RESOURCES
Nottinghamshire County Council,01-01144,KEN BURROWS LIMITED,Hard Facilities Management ,Electrical Systems and Lighting,229.97,45.99,275.96,01-Apr-11,RESOURCES
Nottinghamshire County Council,01-05104,HAROLD POTTER and COMPANY LIMITED,Professional Services,Professional Engineering Services,720,144,864,21-Apr-11,RESOURCES
Nottinghamshire County Council,01-01144,KEN BURROWS LIMITED,Hard Facilities Management ,Electrical Systems and Lighting,98.61,19.72,118.33,01-Apr-11,RESOURCES
Nottinghamshire County Council,01-05101,KEN BURROWS LIMITED,Hard Facilities Management ,Electrical Systems and Lighting,98.61,19.72,118.33,21-Apr-11,RESOURCES
Nottinghamshire County Council,01-01144,KEN BURROWS LIMITED,Hard Facilities Management ,Electrical Systems and Lighting,98.61,19.72,118.33,01-Apr-11,RESOURCES
Nottinghamshire County Council,01-01144,KEN BURROWS LIMITED,Hard Facilities Management ,Electrical Systems and Lighting,98.61,19.72,118.33,01-Apr-11,RESOURCES
Nottinghamshire County Council,01-05101,KEN BURROWS LIMITED,Hard Facilities Management ,Electrical Systems and Lighting,98.61,19.72,118.33,21-Apr-11,RESOURCES
Nottinghamshire County Council,01-01144,KEN BURROWS LIMITED,Hard Facilities Management ,Electrical Systems and Lighting,98.61,19.72,118.33,01-Apr-11,RESOURCES
Nottinghamshire County Council,01-01144,KEN BURROWS LIMITED,Hard Facilities Management ,Electrical Systems and Lighting,98.61,19.72,118.33,01-Apr-11,RESOURCES
Nottinghamshire County Council,01-05101,KEN BURROWS LIMITED,Hard Facilities Management ,Electrical Systems and Lighting,98.61,19.72,118.33,21-Apr-11,RESOURCES
Nottinghamshire County Council,01-01144,KEN BURROWS LIMITED,Hard Facilities Management ,Electrical Systems and Lighting,98.61,19.72,118.33,01-Apr-11,RESOURCES
Nottinghamshire County Council,01-01144,KEN BURROWS LIMITED,Hard Facilities Management ,Electrical Systems and Lighting,98.61,19.72,118.33,01-Apr-11,RESOURCES
Nottinghamshire County Council,01-05101,KEN BURROWS LIMITED,Hard Facilities Management ,Electrical Systems and Lighting,98.61,19.72,118.33,21-Apr-11,RESOURCES
Nottinghamshire County Council,01-01144,KEN BURROWS LIMITED,Hard Facilities Management ,Electrical Systems and Lighting,98.61,19.72,118.33,01-Apr-11,RESOURCES
Nottinghamshire County Council,01-01144,KEN BURROWS LIMITED,Hard Facilities Management ,Electrical Systems and Lighting,98.61,19.72,118.33,01-Apr-11,RESOURCES
Nottinghamshire County Council,01-05105,HAROLD POTTER and COMPANY LIMITED,Professional Services,Professional Engineering Services,500,100,600,21-Apr-11,RESOURCES
Nottinghamshire County Council,01-05101,KEN BURROWS LIMITED,Hard Facilities Management ,Electrical Systems and Lighting,98.61,19.72,118.33,21-Apr-11,RESOURCES
Nottinghamshire County Council,01-02715,SECOND ELEMENT LIMITED,Hard Facilities Management ,Health and Safety,425,85,510,07-Apr-11,RESOURCES
Nottinghamshire County Council,01-02765,SECOND ELEMENT LIMITED,Hard Facilities Management ,Health and Safety,470,94,564,07-Apr-11,RESOURCES
Nottinghamshire County Council,01-02789,SECOND ELEMENT LIMITED,Hard Facilities Management ,Health and Safety,875,175,"1,050.00",07-Apr-11,RESOURCES
Nottinghamshire County Council,01-02769,SECOND ELEMENT LIMITED,Hard Facilities Management ,Health and Safety,540,108,648,07-Apr-11,RESOURCES
Nottinghamshire County Council,01-02777,SEVERN TRENT METERING SERVICES LIMITED,Hard Facilities Management ,Utilities,834,166.8,"1,000.80",20-Apr-11,RESOURCES
Nottinghamshire County Council,01-02496,SEVERN TRENT METERING SERVICES LIMITED,Hard Facilities Management ,Utilities,504,100.8,604.8,20-Apr-11,RESOURCES
Nottinghamshire County Council,01-02497,SEVERN TRENT METERING SERVICES LIMITED,Hard Facilities Management ,Utilities,799,159.8,958.8,20-Apr-11,RESOURCES
Nottinghamshire County Council,01-02498,SEVERN TRENT METERING SERVICES LIMITED,Hard Facilities Management ,Utilities,689,137.8,826.8,20-Apr-11,RESOURCES
Nottinghamshire County Council,01-02499,SEVERN TRENT METERING SERVICES LIMITED,Hard Facilities Management ,Utilities,495,99,594,20-Apr-11,RESOURCES
Nottinghamshire County Council,01-02500,SEVERN TRENT METERING SERVICES LIMITED,Hard Facilities Management ,Utilities,878,175.6,"1,053.60",20-Apr-11,RESOURCES
Nottinghamshire County Council,01-02501,SEVERN TRENT METERING SERVICES LIMITED,Hard Facilities Management ,Utilities,958,191.6,"1,149.60",20-Apr-11,RESOURCES
Nottinghamshire County Council,01-02517,SEVERN TRENT METERING SERVICES LIMITED,Hard Facilities Management ,Utilities,510,102,612,20-Apr-11,RESOURCES
Nottinghamshire County Council,01-02518,SEVERN TRENT METERING SERVICES LIMITED,Hard Facilities Management ,Utilities,"1,150.00",230,"1,380.00",20-Apr-11,RESOURCES
Nottinghamshire County Council,01-02520,SEVERN TRENT METERING SERVICES LIMITED,Hard Facilities Management ,Utilities,737,147.4,884.4,20-Apr-11,RESOURCES
Nottinghamshire County Council,01-02521,SEVERN TRENT METERING SERVICES LIMITED,Hard Facilities Management ,Utilities,717,143.4,860.4,20-Apr-11,RESOURCES
Nottinghamshire County Council,01-02522,SEVERN TRENT METERING SERVICES LIMITED,Hard Facilities Management ,Utilities,468,93.6,561.6,20-Apr-11,RESOURCES
Nottinghamshire County Council,01-02523,SEVERN TRENT METERING SERVICES LIMITED,Hard Facilities Management ,Utilities,773,154.6,927.6,20-Apr-11,RESOURCES
Nottinghamshire County Council,01-02524,SEVERN TRENT METERING SERVICES LIMITED,Hard Facilities Management ,Utilities,662,132.4,794.4,20-Apr-11,RESOURCES
Nottinghamshire County Council,01-02525,SEVERN TRENT METERING SERVICES LIMITED,Hard Facilities Management ,Utilities,736,147.2,883.2,20-Apr-11,RESOURCES
Nottinghamshire County Council,01-02526,SEVERN TRENT METERING SERVICES LIMITED,Hard Facilities Management ,Utilities,692,138.4,830.4,20-Apr-11,RESOURCES
Nottinghamshire County Council,01-02527,SEVERN TRENT METERING SERVICES LIMITED,Hard Facilities Management ,Utilities,725,145,870,20-Apr-11,RESOURCES
Nottinghamshire County Council,01-02528,SEVERN TRENT METERING SERVICES LIMITED,Hard Facilities Management ,Utilities,696,139.2,835.2,20-Apr-11,RESOURCES
Nottinghamshire County Council,01-02529,SEVERN TRENT METERING SERVICES LIMITED,Hard Facilities Management ,Utilities,750,150,900,20-Apr-11,RESOURCES
Nottinghamshire County Council,01-02530,SEVERN TRENT METERING SERVICES LIMITED,Hard Facilities Management ,Utilities,"1,325.00",265,"1,590.00",20-Apr-11,RESOURCES
Nottinghamshire County Council,01-02531,SEVERN TRENT METERING SERVICES LIMITED,Hard Facilities Management ,Utilities,"1,018.00",203.6,"1,221.60",20-Apr-11,RESOURCES
Nottinghamshire County Council,01-02768,SECOND ELEMENT LIMITED,Hard Facilities Management ,Health and Safety,650,130,780,07-Apr-11,RESOURCES
Nottinghamshire County Council,01-02772,SEVERN TRENT METERING SERVICES LIMITED,Hard Facilities Management ,Utilities,"2,992.00",598.4,"3,590.40",20-Apr-11,RESOURCES
Nottinghamshire County Council,01-02773,SEVERN TRENT METERING SERVICES LIMITED,Hard Facilities Management ,Utilities,"1,006.00",201.2,"1,207.20",20-Apr-11,RESOURCES
Nottinghamshire County Council,01-02774,SEVERN TRENT METERING SERVICES LIMITED,Hard Facilities Management ,Utilities,790,158,948,20-Apr-11,RESOURCES
Nottinghamshire County Council,01-02775,SEVERN TRENT METERING SERVICES LIMITED,Hard Facilities Management ,Utilities,684,136.8,820.8,20-Apr-11,RESOURCES
Nottinghamshire County Council,01-02776,SEVERN TRENT METERING SERVICES LIMITED,Hard Facilities Management ,Utilities,710,142,852,20-Apr-11,RESOURCES
Nottinghamshire County Council,01-02778,SEVERN TRENT METERING SERVICES LIMITED,Hard Facilities Management ,Utilities,921,184.2,"1,105.20",20-Apr-11,RESOURCES
Nottinghamshire County Council,01-02780,SEVERN TRENT METERING SERVICES LIMITED,Hard Facilities Management ,Utilities,"1,282.00",256.4,"1,538.40",21-Apr-11,RESOURCES
Nottinghamshire County Council,01-02781,SEVERN TRENT METERING SERVICES LIMITED,Hard Facilities Management ,Utilities,"1,068.00",213.6,"1,281.60",21-Apr-11,RESOURCES
Nottinghamshire County Council,01-02782,SEVERN TRENT METERING SERVICES LIMITED,Hard Facilities Management ,Utilities,725,145,870,27-Apr-11,RESOURCES
Nottinghamshire County Council,01-02783,SEVERN TRENT METERING SERVICES LIMITED,Hard Facilities Management ,Utilities,"1,220.00",244,"1,464.00",27-Apr-11,RESOURCES
Nottinghamshire County Council,01-02790,SECOND ELEMENT LIMITED,Hard Facilities Management ,Health and Safety,720,144,864,07-Apr-11,RESOURCES
Nottinghamshire County Council,01-02823,SEVERN TRENT METERING SERVICES LIMITED,Hard Facilities Management ,Utilities,"1,150.00",230,"1,380.00",27-Apr-11,RESOURCES
Nottinghamshire County Council,01-02824,SEVERN TRENT METERING SERVICES LIMITED,Hard Facilities Management ,Utilities,572,114.4,686.4,27-Apr-11,RESOURCES
Nottinghamshire County Council,01-02825,SEVERN TRENT METERING SERVICES LIMITED,Hard Facilities Management ,Utilities,660,132,792,27-Apr-11,RESOURCES
Nottinghamshire County Council,01-02826,SEVERN TRENT METERING SERVICES LIMITED,Hard Facilities Management ,Utilities,476,95.2,571.2,27-Apr-11,RESOURCES
Nottinghamshire County Council,01-02827,SEVERN TRENT METERING SERVICES LIMITED,Hard Facilities Management ,Utilities,677,135.4,812.4,27-Apr-11,RESOURCES
Nottinghamshire County Council,01-02828,SEVERN TRENT METERING SERVICES LIMITED,Hard Facilities Management ,Utilities,533,106.6,639.6,27-Apr-11,RESOURCES
Nottinghamshire County Council,01-02829,SEVERN TRENT METERING SERVICES LIMITED,Hard Facilities Management ,Utilities,680,136,816,27-Apr-11,RESOURCES
Nottinghamshire County Council,01-02830,SEVERN TRENT METERING SERVICES LIMITED,Hard Facilities Management ,Utilities,706,141.2,847.2,27-Apr-11,RESOURCES
Nottinghamshire County Council,01-02831,SEVERN TRENT METERING SERVICES LIMITED,Hard Facilities Management ,Utilities,462,92.4,554.4,27-Apr-11,RESOURCES
Nottinghamshire County Council,01-02835,SEVERN TRENT METERING SERVICES LIMITED,Hard Facilities Management ,Utilities,685,137,822,27-Apr-11,RESOURCES
Nottinghamshire County Council,01-02836,SEVERN TRENT METERING SERVICES LIMITED,Hard Facilities Management ,Utilities,930,186,"1,116.00",27-Apr-11,RESOURCES
Nottinghamshire County Council,01-03010,SEVERN TRENT METERING SERVICES LIMITED,Hard Facilities Management ,Utilities,"1,115.00",223,"1,338.00",20-Apr-11,RESOURCES
Nottinghamshire County Council,01-04274,SEVERN TRENT METERING SERVICES LIMITED,Hard Facilities Management ,Utilities,"1,000.00",200,"1,200.00",20-Apr-11,RESOURCES
Nottinghamshire County Council,01-05408,SEVERN TRENT METERING SERVICES LIMITED,Hard Facilities Management ,Utilities,"1,023.00",204.6,"1,227.60",26-Apr-11,RESOURCES
Nottinghamshire County Council,01-01550,SEVERN TRENT METERING SERVICES LIMITED,Hard Facilities Management ,Utilities,716,143.2,859.2,01-Apr-11,RESOURCES
Nottinghamshire County Council,01-02770,SECOND ELEMENT LIMITED,Hard Facilities Management ,Health and Safety,595,119,714,07-Apr-11,RESOURCES
Nottinghamshire County Council,01-01551,SEVERN TRENT METERING SERVICES LIMITED,Hard Facilities Management ,Utilities,782,156.4,938.4,01-Apr-11,RESOURCES
Nottinghamshire County Council,01-01552,SEVERN TRENT METERING SERVICES LIMITED,Hard Facilities Management ,Utilities,"1,265.00",253,"1,518.00",01-Apr-11,RESOURCES
Nottinghamshire County Council,01-02519,SEVERN TRENT METERING SERVICES LIMITED,Hard Facilities Management ,Utilities,482,96.4,578.4,20-Apr-11,RESOURCES
Nottinghamshire County Council,01-02779,SEVERN TRENT METERING SERVICES LIMITED,Hard Facilities Management ,Utilities,"2,000.00",400,"2,400.00",20-Apr-11,RESOURCES
Nottinghamshire County Council,01-01569,GEDLING BOROUGH COUNCIL,Grants and Loans                        ,Grants and Loans                        ,"1,432.97",286.59,"1,719.56",26-Apr-11,RESOURCES
Nottinghamshire County Council,01-02837,MIDLAND ROOFING SERVICES (DERBY) LIMITED,Hard Facilities Management ,Roofing Services,"10,336.75","2,067.35","12,404.10",27-Apr-11,RESOURCES
Nottinghamshire County Council,01-00743,FIRST ORDER RED LIMITED,Soft Facilities Management,Scrap and waste materials,836.4,167.28,"1,003.68",07-Apr-11,RESOURCES
Nottinghamshire County Council,01-00740,FIRST ORDER RED LIMITED,Soft Facilities Management,Scrap and waste materials,999.3,199.86,"1,199.16",07-Apr-11,RESOURCES
Nottinghamshire County Council,01-02707,ROBERT WOODHEAD LIMITED,Hard Facilities Management ,Building Construction Services,609.5,106.66,716.16,07-Apr-11,RESOURCES
Nottinghamshire County Council,01-03264,ROBERT WOODHEAD LIMITED,Hard Facilities Management ,Building Construction Services,"2,183.45",382.1,"2,565.55",08-Apr-11,RESOURCES
Nottinghamshire County Council,01-02706,ROBERT WOODHEAD LIMITED,Hard Facilities Management ,Building Construction Services,"1,197.50",209.56,"1,407.06",07-Apr-11,RESOURCES
Nottinghamshire County Council,01-00744,FIRST ORDER RED LIMITED,Soft Facilities Management,Scrap and waste materials,862.6,172.52,"1,035.12",07-Apr-11,RESOURCES
Nottinghamshire County Council,01-00742,FIRST ORDER RED LIMITED,Soft Facilities Management,Scrap and waste materials,550.9,110.18,661.08,07-Apr-11,RESOURCES
Nottinghamshire County Council,01-02716,TRENT VALLEY WINDOW and DOOR CO LIMITED,Hard Facilities Management ,Window and Door Installation Services,"3,573.05",714.61,"4,287.66",07-Apr-11,RESOURCES
Nottinghamshire County Council,01-08809,ARROW LIGHT RAIL LIMITED,External Services (Highways and Culture),Highways and Works,"20,000.00",0,"20,000.00",28-Apr-11,COMMUNITIES
Nottinghamshire County Council,01-08810,K and H DOYLE COACHES LIMITED,Transport and Travel,Bus,"5,600.00",0,"5,600.00",28-Apr-11,COMMUNITIES
Nottinghamshire County Council,01-08811,KETTLEWELL RETFORD LIMITED,Transport and Travel,Bus,800,0,800,28-Apr-11,COMMUNITIES
Nottinghamshire County Council,01-08812,MARSHALLS OF SUTTON ON TRENT,Transport and Travel,Bus,"17,500.00",0,"17,500.00",28-Apr-11,COMMUNITIES
Nottinghamshire County Council,01-08813,TRAVEL WRIGHT LIMITED,Transport and Travel,Travel Agencies and Booking,"8,000.00",0,"8,000.00",28-Apr-11,COMMUNITIES
Nottinghamshire County Council,01-08814,PREMIERE TRAVEL LIMITED,Transport and Travel,Travel Agencies and Booking,"25,000.00",0,"25,000.00",28-Apr-11,COMMUNITIES
Nottinghamshire County Council,01-08815,CENTREBUS LIMITED,Transport and Travel,Bus,801.55,0,801.55,28-Apr-11,COMMUNITIES
Nottinghamshire County Council,01-08816,K and H DOYLE COACHES LIMITED,Transport and Travel,Bus,"5,000.00",0,"5,000.00",28-Apr-11,COMMUNITIES
Nottinghamshire County Council,01-08817,YOUR BUS,Transport and Travel,Bus,"20,000.00",0,"20,000.00",28-Apr-11,COMMUNITIES
Nottinghamshire County Council,01-08819,ARROW LIGHT RAIL LIMITED,External Services (Highways and Culture),Highways and Works,"20,000.00",0,"20,000.00",28-Apr-11,COMMUNITIES
Nottinghamshire County Council,01-08820,K and H DOYLE COACHES LIMITED,Transport and Travel,Bus,"5,700.00",0,"5,700.00",28-Apr-11,COMMUNITIES
Nottinghamshire County Council,01-08821,KETTLEWELL RETFORD LIMITED,Transport and Travel,Bus,800,0,800,28-Apr-11,COMMUNITIES
Nottinghamshire County Council,01-08822,MARSHALLS OF SUTTON ON TRENT,Transport and Travel,Bus,"17,500.00",0,"17,500.00",28-Apr-11,COMMUNITIES
Nottinghamshire County Council,01-08823,PREMIERE TRAVEL LIMITED,Transport and Travel,Travel Agencies and Booking,"50,672.53",0,"50,672.53",28-Apr-11,COMMUNITIES
Nottinghamshire County Council,01-08824,TRAVEL WRIGHT LIMITED,Transport and Travel,Travel Agencies and Booking,"8,000.00",0,"8,000.00",28-Apr-11,COMMUNITIES
Nottinghamshire County Council,01-08825,YOUR BUS,Transport and Travel,Bus,"41,133.49",0,"41,133.49",28-Apr-11,COMMUNITIES
Nottinghamshire County Council,01-08826,K and H DOYLE COACHES LIMITED,Transport and Travel,Bus,"5,000.00",0,"5,000.00",28-Apr-11,COMMUNITIES
Nottinghamshire County Council,01-08827,K J B (NOTTINGHAM) LIMITED,Transport and Travel,Bus,837.21,0,837.21,28-Apr-11,COMMUNITIES
Nottinghamshire County Council,01-08829,NOTTINGHAM CITY TRANSPORT LIMITED,Transport and Travel,Bus,"161,520.00",0,"161,520.00",28-Apr-11,COMMUNITIES
Nottinghamshire County Council,01-08830,STAGECOACH EAST MIDLANDS,Transport and Travel,Bus,"261,520.00",0,"261,520.00",28-Apr-11,COMMUNITIES
Nottinghamshire County Council,01-08831,TRENT MOTOR TRACTION COMPANY LIMITED,Transport and Travel,Bus,"230,000.00",0,"230,000.00",28-Apr-11,COMMUNITIES
Nottinghamshire County Council,01-08818,OUR CENTRE,Care,Community and Social Services,675.17,0,675.17,28-Apr-11,COMMUNITIES
Nottinghamshire County Council,01-05515,P J ASSOCIATES,Professional Services,Consultancy,"10,671.59","2,134.32","12,805.91",27-Apr-11,COMMUNITIES
Nottinghamshire County Council,01-02489,STAGECOACH EAST MIDLANDS,Transport and Travel,Bus,"45,000.00",0,"45,000.00",20-Apr-11,COMMUNITIES
Nottinghamshire County Council,01-02562,GOSPELS COACHES,Transport and Travel,Bus,"3,781.48",0,"3,781.48",07-Apr-11,COMMUNITIES
Nottinghamshire County Council,01-05230,SOAR VALLEY BUS,Transport and Travel,Bus,"4,969.03",0,"4,969.03",21-Apr-11,COMMUNITIES
Nottinghamshire County Council,01-05231,HOFT AND WESSEL AG,Professional Services,Professional Engineering Services,"10,495.37",0,"10,495.37",20-Apr-11,COMMUNITIES
Nottinghamshire County Council,01-05232,HOFT AND WESSEL AG,Professional Services,Professional Engineering Services,"1,690.25",0,"1,690.25",20-Apr-11,COMMUNITIES
Nottinghamshire County Council,01-00172,STAGECOACH EAST MIDLANDS,Transport and Travel,Bus,"2,937.12",0,"2,937.12",05-Apr-11,COMMUNITIES
Nottinghamshire County Council,01-00173,STAGECOACH EAST MIDLANDS,Transport and Travel,Bus,"1,761.84",0,"1,761.84",05-Apr-11,COMMUNITIES
Nottinghamshire County Council,01-00174,STAGECOACH EAST MIDLANDS,Transport and Travel,Bus,"1,269.36",0,"1,269.36",05-Apr-11,COMMUNITIES
Nottinghamshire County Council,01-00175,STAGECOACH EAST MIDLANDS,Transport and Travel,Bus,"1,417.44",0,"1,417.44",05-Apr-11,COMMUNITIES
Nottinghamshire County Council,01-00176,STAGECOACH EAST MIDLANDS,Transport and Travel,Bus,"2,383.92",0,"2,383.92",05-Apr-11,COMMUNITIES
Nottinghamshire County Council,01-00177,STAGECOACH EAST MIDLANDS,Transport and Travel,Bus,"2,016.00",0,"2,016.00",05-Apr-11,COMMUNITIES
Nottinghamshire County Council,01-00178,STAGECOACH EAST MIDLANDS,Transport and Travel,Bus,"9,240.00",0,"9,240.00",05-Apr-11,COMMUNITIES
Nottinghamshire County Council,01-00179,STAGECOACH EAST MIDLANDS,Transport and Travel,Bus,"3,000.00",0,"3,000.00",05-Apr-11,COMMUNITIES
Nottinghamshire County Council,01-00180,STAGECOACH EAST MIDLANDS,Transport and Travel,Bus,"4,200.00",0,"4,200.00",05-Apr-11,COMMUNITIES
Nottinghamshire County Council,01-00181,STAGECOACH EAST MIDLANDS,Transport and Travel,Bus,"3,000.00",0,"3,000.00",05-Apr-11,COMMUNITIES
Nottinghamshire County Council,01-00182,STAGECOACH EAST MIDLANDS,Transport and Travel,Bus,"1,200.00",0,"1,200.00",05-Apr-11,COMMUNITIES
Nottinghamshire County Council,01-00183,STAGECOACH EAST MIDLANDS,Transport and Travel,Bus,"1,200.00",0,"1,200.00",05-Apr-11,COMMUNITIES
Nottinghamshire County Council,01-00185,STAGECOACH EAST MIDLANDS,Transport and Travel,Bus,"1,718.16",0,"1,718.16",05-Apr-11,COMMUNITIES
Nottinghamshire County Council,01-00225,STAGECOACH EAST MIDLANDS,Transport and Travel,Bus,"41,618.71",0,"41,618.71",05-Apr-11,COMMUNITIES
Nottinghamshire County Council,01-00308,STAGECOACH EAST MIDLANDS,Transport and Travel,Bus,848.4,0,848.4,05-Apr-11,COMMUNITIES
Nottinghamshire County Council,01-00309,STAGECOACH EAST MIDLANDS,Transport and Travel,Bus,"1,134.00",0,"1,134.00",05-Apr-11,COMMUNITIES
Nottinghamshire County Council,01-00310,STAGECOACH EAST MIDLANDS,Transport and Travel,Bus,"2,061.84",0,"2,061.84",05-Apr-11,COMMUNITIES
Nottinghamshire County Council,01-00311,STAGECOACH EAST MIDLANDS,Transport and Travel,Bus,"3,479.28",0,"3,479.28",05-Apr-11,COMMUNITIES
Nottinghamshire County Council,01-00313,STAGECOACH EAST MIDLANDS,Transport and Travel,Bus,"1,966.50",0,"1,966.50",05-Apr-11,COMMUNITIES
Nottinghamshire County Council,01-00315,STAGECOACH EAST MIDLANDS,Transport and Travel,Bus,"5,059.68",0,"5,059.68",05-Apr-11,COMMUNITIES
Nottinghamshire County Council,01-00317,STAGECOACH EAST MIDLANDS,Transport and Travel,Bus,"2,126.00",0,"2,126.00",05-Apr-11,COMMUNITIES
Nottinghamshire County Council,01-00318,STAGECOACH EAST MIDLANDS,Transport and Travel,Bus,"3,608.16",0,"3,608.16",05-Apr-11,COMMUNITIES
Nottinghamshire County Council,01-00319,STAGECOACH EAST MIDLANDS,Transport and Travel,Bus,"1,740.00",0,"1,740.00",05-Apr-11,COMMUNITIES
Nottinghamshire County Council,01-00320,STAGECOACH EAST MIDLANDS,Transport and Travel,Bus,"3,221.76",0,"3,221.76",05-Apr-11,COMMUNITIES
Nottinghamshire County Council,01-00321,STAGECOACH EAST MIDLANDS,Transport and Travel,Bus,"1,159.80",0,"1,159.80",05-Apr-11,COMMUNITIES
Nottinghamshire County Council,01-00322,STAGECOACH EAST MIDLANDS,Transport and Travel,Bus,876.24,0,876.24,05-Apr-11,COMMUNITIES
Nottinghamshire County Council,01-00323,STAGECOACH EAST MIDLANDS,Transport and Travel,Bus,"7,461.60",0,"7,461.60",05-Apr-11,COMMUNITIES
Nottinghamshire County Council,01-00324,STAGECOACH EAST MIDLANDS,Transport and Travel,Bus,"2,242.08",0,"2,242.08",05-Apr-11,COMMUNITIES
